Workbook

Sheet At a glance
B2: DEMOGRAPHICS
B4: Tawanda Makombo
B6: At a glance
C7: 2024
B8: Total population (millions) | C8: 63.02
B9: — total male (millions) | C9: 30.9
B10: — total female (millions) | C10: 32.13
B11: Households (millions) | C11: 19.01 (2023)
B12: Race profilea
B13: — Black | C13: 0.817
B14: — Coloured | C14: 0.085
B15: — Indian/Asian | C15: 0.026
B16: — White | C16: 0.072
B17: Age profilea
B18: — 0-14 | C18: 0.2749680303
B19: — 15-24 | C19: 0.1619127133
B20: — 25-34 | C20: 0.169012064
B21: — 35-64 | C21: 0.3285344443
B22: — 65+ | C22: 0.06557274811
B23: People per square kilometre | C23: 51.6
B24: Life expectancy at birth in years | C24: 66.5
B25: — male | C25: 63.6
B26: — female | C26: 69.2
B27: Infant mortality rateb | C27: 22.9
B28: Under-five mortality ratec | C28: 28.6
B29: Fertility rated | C29: 2.41
B30: Birth ratee | C30: 19.6
B31: Total births in millions (2023) | C31: 0.86
B32: Death rateᶠ | C32: 8.7
B33: Total deaths in millions | C33: 0.55
B34: Population growth rate (2023-24) | C34: 0.0133
B35: a Proportions may not add up to 100%, owing to rounding.
B36: b Deaths of infants under 1 year, per 1 000 live births.
B37: c Deaths of children before the age of five, per 1 000 live births
B38: d The average number of children born alive to a woman during her child-bearing span (15-49 years) if she were to bear children.
B39: e Number of live births in a year, per 1 000 of population.
B40: f Number of deaths in a year, per 1 000 of population.

Sheet Trends at a glance
B2: Trends at a glance, 1991-2024
C4: 1991 | D4: 1995 | E4: 2000 | F4: 2005 | G4: 2010 | H4: 2024
B5: Total population (millions) | C5: 36.2 | D5: 39.48 | E5: 43.69 | F5: 46.89 | G5: 49.99 | H5: 63.02
B6: — total male (millions) | C6: 17.24 | D6: 18.49 | E6: 21.02 | F6: 23.07 | G6: 24.33 | H6: 30.9
B7: — total female (millions) | C7: 18.96 | D7: 20.53 | E7: 22.67 | F7: 23.82 | G7: 25.66 | H7: 32.13
B8: Households (millions) | C8: — | D8: — | E8: 10.82 | F8: 12.676972 | G8: 14.304 | H8: 19.01 (2023)
B9: Race profilea
B10: — Black | C10: 0.757 | D10: 0.765 | E10: 0.776 | F10: 0.793 | G10: 0.794 | H10: 0.817
B11: — Coloured | C11: 0.09 | D11: 0.089 | E11: 0.087 | F11: 0.088 | G11: 0.088 | H11: 0.085
B12: — Indian/Asian | C12: 0.027 | D12: 0.026 | E12: 0.025 | F12: 0.025 | G12: 0.026 | H12: 0.026
B13: — White | C13: 0.117 | D13: 0.107 | E13: 0.1 | F13: 0.104 | G13: 0.093 | H13: 0.072
B14: Age profilea
B15: — 0-14 | C15: — | D15: — | E15: — | F15: 0.324 | G15: 0.31 | H15: 0.2749680303
B16: — 15-24 | C16: — | D16: — | E16: — | F16: 0.203 | G16: 0.205 | H16: 0.1619127133
B17: — 25-34 | C17: — | D17: — | E17: — | F17: 0.17 | G17: 0.171 | H17: 0.169012064
B18: — 35-64 | C18: — | D18: — | E18: — | F18: 0.253 | G18: 0.264 | H18: 0.3285344443
B19: — 65+ | C19: — | D19: — | E19: — | F19: 0.0496 | G19: 0.0495 | H19: 0.06557274811
B20: People per square kilometre | C20: 29.7 | D20: 32.3 | E20: 35.8 | F20: 38.4 | G20: 40.9 | H20: 51.6
B21: Life expectancy at birth in years | C21: — | D21: — | E21: — | F21: 53.5 | G21: 58.5 | H21: 66.5
B22: — male | C22: — | D22: — | E22: — | F22: 52.1 | G22: 56.4 | H22: 63.6
B23: — female | C23: — | D23: — | E23: — | F23: 54.8 | G23: 60.6 | H23: 69.2
B24: Infant mortality rateb | C24: — | D24: — | E24: — | F24: 49.1 | G24: 41.1 | H24: 22.9
B25: Under-five mortality ratec | C25: — | D25: — | E25: — | F25: 72.5 | G25: 58.4 | H25: 28.6
B26: Fertility rated | C26: — | D26: — | E26: — | F26: 2.62 | G26: 2.61 | H26: 2.41
B27: Birth ratee | C27: — | D27: — | E27: — | F27: 23.4 | G27: 23.9 | H27: 19.6
B28: Total births (millions) | C28: — | D28: — | E28: 0.971124 | F28: 1.055594 | G28: 0.998489 | H28: 0,86 (2023)
B29: Death ratef | C29: — | D29: — | E29: – | F29: 14.8 | G29: 11.6 | H29: 8.7
B30: Total deaths (millions) | C30: — | D30: — | E30: 0.4164833 | F30: 0.598412 | G30: 0.548597 | H30: 0.55
B31: Dependency on the employedg | C31: — | D31: 390 | E31: 270 | F31: 280 | G31: 280 | H31: 278
B32: a Proportions may not add up to 100%, owing to rounding.
B33: b Deaths of infants under 1 year, per 1 000 live births.
B34: c Deaths of children before the age of five, per 1 000 live births
B35: d The average number of children born alive to a woman during her child-bearing span (15-49 years) if she were to bear children.
B36: e Number of live births in a year per 1 000 of population.
B37: f Number of deaths in a year per 1 000 of population.
B38: g People who do not work for every 100 who are employed.

Sheet POPULATION PROFILE

Sheet Race profile

Sheet Pop by race.10-24
B2: POPULATION PROFILE
B4: Breakdown by race
B6: Population by race (mid-year estimates)a, 1910-2024
B8: Year | C8: Black | D8: Coloured | E8: Indian/Asian | F8: White | G8: Other | H8: Total
B9: 1910 | C9: 3956000 | D9: 517000 | E9: 148000 | F9: 1257000 | G9: N/A | H9: 5878000
B10: 1915 | C10: 4356000 | D10: 541000 | E10: 159000 | F10: 1380000 | G10: N/A | H10: 6436000
B11: 1920 | C11: 4631000 | D11: 542000 | E11: 164000 | F11: 1500000 | G11: N/A | H11: 6838000
B12: 1925 | C12: 5225000 | D12: 608000 | E12: 181000 | F12: 1650000 | G12: N/A | H12: 7664000
B13: 1930 | C13: 5858000 | D13: 682000 | E13: 199000 | F13: 1801000 | G13: N/A | H13: 8540000
B14: 1935 | C14: 6491000 | D14: 757000 | E14: 217000 | F14: 1970000 | G14: N/A | H14: 9435000
B15: 1940 | C15: 7110000 | D15: 836000 | E15: 247000 | F15: 2160000 | G15: N/A | H15: 10353000
B16: 1945 | C16: 7728000 | D16: 915000 | E16: 280000 | F16: 2342000 | G16: N/A | H16: 11265000
B17: 1950 | C17: 8439000 | D17: 1070000 | E17: 353000 | F17: 2609000 | G17: N/A | H17: 12471000
B18: 1955 | C18: 9161000 | D18: 1242000 | E18: 410000 | F18: 2856000 | G18: N/A | H18: 13669000
B19: 1960 | C19: 12077000 | D19: 1500000 | E19: 476000 | F19: 3069000 | G19: N/A | H19: 17122000
B20: 1965 | C20: 13869000 | D20: 1782000 | E20: 548000 | F20: 3408000 | G20: N/A | H20: 19607000
B21: 1970b | C21: 13450000 | D21: 2170000 | E21: 655000 | F21: 3870000 | G21: N/A | H21: 20145000
B22: 1975b | C22: 15146000 | D22: 2354000 | E22: 717000 | F22: 4233000 | G22: N/A | H22: 22450000
B23: 1980b | C23: 17062000 | D23: 2555000 | E23: 786000 | F23: 4630000 | G23: N/A | H23: 25033000
B24: 1985b | C24: 19203000 | D24: 2884000 | E24: 866000 | F24: 4854000 | G24: N/A | H24: 27807000
B25: 1991a | C25: 27400100 | D25: 3254000 | E25: 960300 | F25: 4238000 | G25: 346500 | H25: 36198900
B26: 1995 | C26: 30184400 | D26: 3513600 | E26: 1024400 | F26: 4386600 | G26: 368200 | H26: 39477100
B27: 2000 | C27: 33879852 | D27: 3796858 | E27: 1092522 | F27: 4521664 | G27: 394803 | H27: 43685699
B28: 2005 | C28: 37205700 | D28: 4148800 | E28: 1153900 | F28: 4379800 | G28: N/A | H28: 46888200
B29: 2010 | C29: 39682600 | D29: 4424100 | E29: 1299900 | F29: 4584700 | G29: N/A | H29: 49991300
B30: 2015 | C30: 44227995 | D30: 4832916 | E30: 1362002 | F30: 4534008 | G30: N/A | H30: 54956920
B31: 2016 | C31: 45109881 | D31: 4897208 | E31: 1386002 | F31: 4515774 | G31: N/A | H31: 55908865
B32: 2017 | C32: 45656401 | D32: 4962922 | E32: 1409103 | F32: 4493523 | G32: N/A | H32: 56521948
B33: 2018 | C33: 46682896.06 | D33: 5074312.76 | E33: 1448324.305 | F33: 4520072.459 | G33: N/A | H33: 57725605.59
B34: 2019 | C34: 47443259 | D34: 5176750 | E34: 1503007 | F34: 4652006 | G34: N/A | H34: 58775022
B35: 2020 | C35: 48153727 | D35: 5247740 | E35: 1541113 | F35: 4679770 | G35: N/A | H35: 59622350
B36: 2021 | C36: 48640329 | D36: 5294968 | E36: 1545222 | F36: 4662459 | G36: N/A | H36: 60142978
B37: 2022 | C37: 49070809 | D37: 5339919 | E37: 1554996 | F37: 4639268 | G37: N/A | H37: 60604992
B38: 2023 | C38: 50711559 | D38: 5285259 | E38: 1614258 | F38: 4569315 | G38: N/A | H38: 62180391
B39: 2024 | C39: 51509312 | D39: 5338586 | E39: 1628794 | F39: 4539212 | G39: N/A | H39: 63015904
B40: Source: Bureau of Census and Statistics Pretoria, Union Statistics for Fifty Years, 1910-1960, Jubilee Issue, March 1960, pA-8; Department of Statistics Pretoria, Mid-year estimates Republic of South Africa, 19 December 1978, p1; Central Statistical Service, Mid-year estimates: 1970-1986, Statistical News Release, 9 April 1987, p1; Stats SA, Mid-year population estimates, Statistical release P0302, 1991-2024 data
B41: a Figures account for possible census undercounts and, in the 1991 estimates, adjustments include the populations of the former TBVC homelands.
B42: b Figures for 1970 to 1985 exclude the populations of the former TBVC homelands.
B43: N/A — Not available.

Sheet Race.graphics
A2: Population by race (mid-year estimates)a, 1910-2024
B4: Black | C4: Coloured | D4: Indian/Asian | E4: White | F4: Other | G4: Total
A5: 1910 | B5: 3956000 | C5: 517000 | D5: 148000 | E5: 1257000 | F5: N/A | G5: 5878000
A6: 1920 | B6: 4631000 | C6: 542000 | D6: 164000 | E6: 1500000 | F6: N/A | G6: 6838000
A7: 1930 | B7: 5858000 | C7: 682000 | D7: 199000 | E7: 1801000 | F7: N/A | G7: 8540000
A8: 1940 | B8: 7110000 | C8: 836000 | D8: 247000 | E8: 2160000 | F8: N/A | G8: 10353000
A9: 1950 | B9: 8439000 | C9: 1070000 | D9: 353000 | E9: 2609000 | F9: N/A | G9: 12471000
A10: 1960 | B10: 12077000 | C10: 1500000 | D10: 476000 | E10: 3069000 | F10: N/A | G10: 17122000
A11: 1970 | B11: 13450000 | C11: 2170000 | D11: 655000 | E11: 3870000 | F11: N/A | G11: 20145000
A12: 1980 | B12: 17062000 | C12: 2555000 | D12: 786000 | E12: 4630000 | F12: N/A | G12: 25033000
A13: 1991 | B13: 27400100 | C13: 3254000 | D13: 960300 | E13: 4238000 | F13: 346500 | G13: 36198900
A14: 2000 | B14: 33879852 | C14: 3796858 | D14: 1092522 | E14: 4521664 | F14: 394803 | G14: 43685699
A15: 2010 | B15: 39682600 | C15: 4424100 | D15: 1299900 | E15: 4584700 | F15: N/A | G15: 49991300
A16: 2024 | B16: 51509312 | C16: 5338586 | D16: 1628794 | E16: 4539212 | F16: N/A | G16: 63015904
A18: 1910 | B18: 3956000 | C18: 517000 | D18: 148000 | E18: 1257000 | F18: 5878000
A19: 2024 | B19: 51509312 | C19: 5338586 | D19: 1628794 | E19: 4539212 | F19: 63015904
B20: Black | C20: Coloured | D20: Indian/Asian | E20: White
A21: 1910 | B21: =(B18/F18) -> 0.6730180333 | C21: =(C18/F18) -> 0.08795508676 | D21: =(D18/F18) -> 0.02517863219 | E21: =(E18/F18) -> 0.2138482477
A22: 2024 | B22: =(B19/Total58775) -> 0.8174017784 | C22: =(C19/Total58775) -> 0.08471807371 | D22: =(D19/Total58775) -> 0.025847348 | E22: =(E19/Total58775) -> 0.07203279985
B25: Black | C25: Coloured | D25: Indian/Asian | E25: White | F25: Total
B26: 11.29533089 | C26: 9.241717602 | D26: 9.440689189 | E26: 2.709195704 | F26: 9.23187785
B42: Black | C42: Coloured | D42: Indian/Asian | E42: White | F42: Total
A43: % | B43: =(B19-B18)/B18 -> 12.0205541 | C43: =(C19-C18)/C18 -> 9.326085106 | D43: 10.00536486 | E43: 2.611147176 | F43: 9.720636951

Sheet Pop by race, sex, and age, 2024
B2: Breakdown by race, sex and age
B4: Population by race, sex, and age, 2024
C6: —Black— | F6: —Coloured— | I6: —Indian/Asian— | L6: —White— | O6: —South Africa—
B7: Age group | C7: Male | D7: Female | E7: Total | F7: Male | G7: Female | H7: Total | I7: Male | J7: Female | K7: Total | L7: Male | M7: Female | N7: Total | O7: Male | P7: Female | Q7: Totala
B8: 0–4 | C8: 2681519 | D8: 2605478 | E8: 5286997 | F8: 218019 | G8: 211198 | H8: 429217 | I8: 38887 | J8: 37557 | K8: 76444 | L8: 85461 | M8: 83014 | N8: 168475 | O8: 3023886 | P8: 2937247 | Q8: 5961133
B9: 5–9 | C9: 2473275 | D9: 2403561 | E9: 4876836 | F9: 214559 | G9: 208317 | H9: 422876 | I9: 45404 | J9: 43647 | K9: 89051 | L9: 108898 | M9: 105846 | N9: 214744 | O9: 2842136 | P9: 2761371 | Q9: 5603507
B10: 10–14 | C10: 2505985 | D10: 2459386 | E10: 4965371 | F10: 225537 | G10: 219613 | H10: 445150 | I10: 51673 | J10: 49410 | K10: 101083 | L10: 127185 | M10: 123930 | N10: 251115 | O10: 2910380 | P10: 2852339 | Q10: 5762719
B11: 15–19 | C11: 2352394 | D11: 2334371 | E11: 4686765 | F11: 225994 | G11: 221082 | H11: 447076 | I11: 49060 | J11: 46482 | K11: 95542 | L11: 129765 | M11: 127296 | N11: 257061 | O11: 2757213 | P11: 2729231 | Q11: 5486444
B12: 20–24 | C12: 1995803 | D12: 1983911 | E12: 3979714 | F12: 205596 | G12: 201720 | H12: 407316 | I12: 51534 | J12: 45299 | K12: 96833 | L12: 116469 | M12: 116300 | N12: 232769 | O12: 2369402 | P12: 2347230 | Q12: 4716632
B13: 25–29 | C13: 2130168 | D13: 2132145 | E13: 4262313 | F13: 213839 | G13: 210452 | H13: 424291 | I13: 67416 | J13: 54730 | K13: 122146 | L13: 121186 | M13: 122246 | N13: 243432 | O13: 2532609 | P13: 2519573 | Q13: 5052182
B14: 30–34 | C14: 2371892 | D14: 2381739 | E14: 4753631 | F14: 217948 | G14: 215150 | H14: 433098 | I14: 81542 | J14: 66053 | K14: 147595 | L14: 131777 | M14: 132165 | N14: 263942 | O14: 2803159 | P14: 2795107 | Q14: 5598266
B15: 35–39 | C15: 2338514 | D15: 2333719 | E15: 4672233 | F15: 208983 | G15: 207753 | H15: 416736 | I15: 85200 | J15: 70846 | K15: 156046 | L15: 149384 | M15: 149461 | N15: 298845 | O15: 2782081 | P15: 2761779 | Q15: 5543860
B16: 40–44 | C16: 1827257 | D16: 1831870 | E16: 3659127 | F16: 178389 | G16: 185027 | H16: 363416 | I16: 81367 | J16: 69519 | K16: 150886 | L16: 150130 | M16: 152244 | N16: 302374 | O16: 2237143 | P16: 2238660 | Q16: 4475803
B17: 45–49 | C17: 1340068 | D17: 1377381 | E17: 2717449 | F17: 151952 | G17: 155552 | H17: 307504 | I17: 67314 | J17: 59957 | K17: 127271 | L17: 151100 | M17: 159629 | N17: 310729 | O17: 1710434 | P17: 1752519 | Q17: 3462953
B18: 50–54 | C18: 1013412 | D18: 1084993 | E18: 2098405 | F18: 144938 | G18: 157847 | H18: 302785 | I18: 57808 | J18: 54722 | K18: 112530 | L18: 170956 | M18: 179261 | N18: 350217 | O18: 1387114 | P18: 1476823 | Q18: 2863937
B19: 55–59 | C19: 732195 | D19: 918211 | E19: 1650406 | F19: 128573 | G19: 155039 | H19: 283612 | I19: 47208 | J19: 49436 | K19: 96644 | L19: 156445 | M19: 168527 | N19: 324972 | O19: 1064421 | P19: 1291213 | Q19: 2355634
B20: 60–64 | C20: 578411 | D20: 799297 | E20: 1377708 | F20: 106855 | G20: 130614 | H20: 237469 | I20: 37414 | J20: 43744 | K20: 81158 | L20: 143801 | M20: 160572 | N20: 304373 | O20: 866481 | P20: 1134227 | Q20: 2000708
B21: 65–69 | C21: 418819 | D21: 631317 | E21: 1050136 | F21: 73506 | G21: 101021 | H21: 174527 | I21: 27842 | J21: 36225 | K21: 64067 | L21: 133995 | M21: 152529 | N21: 286524 | O21: 654162 | P21: 921092 | Q21: 1575254
B22: 70–74 | C22: 277805 | D22: 456220 | E22: 734025 | F22: 46217 | G22: 72715 | H22: 118932 | I22: 19737 | J22: 29335 | K22: 49072 | L22: 115822 | M22: 139420 | N22: 255242 | O22: 459581 | P22: 697690 | Q22: 1157271
B23: 75–79 | C23: 144864 | D23: 289615 | E23: 434479 | F23: 23870 | G23: 44846 | H23: 68716 | I23: 11678 | J23: 21113 | K23: 32791 | L23: 93264 | M23: 116287 | N23: 209551 | O23: 273676 | P23: 471861 | Q23: 745537
B24: 80+ | C24: 84603 | D24: 219114 | E24: 303717 | F24: 15637 | G24: 40228 | H24: 55865 | I24: 8232 | J24: 21403 | K24: 29635 | L24: 103850 | M24: 160997 | N24: 264847 | O24: 212322 | P24: 441742 | Q24: 654064
B25: Totala | C25: 25266984 | D25: 26242328 | E25: 51509312 | F25: 2600412 | G25: 2738174 | H25: 5338586 | I25: 829316 | J25: 799478 | K25: 1628794 | L25: 2189488 | M25: 2349724 | N25: 4539212 | O25: 30886200 | P25: 32129704 | Q25: 63015904
B26: Proportion of total population | C26: =C25/Total5877502 -> 0.4009620175 | D26: =D25/Total5877502 -> 0.416439761 | E26: 0.8174017784 | F26: 0.04126596359 | G26: 0.04345211012 | H26: 0.08471807371 | I26: 0.01316042376 | J26: 0.01268692424 | K26: 0.025847348 | L26: 0.03474500659 | M26: 0.03728779325 | N26: 0.07203279985 | O26: 0.4901334114 | P26: 0.5098665886 | Q26: 1
B27: Source: Stats SA, Mid-year population estimates 2024, Statistical release P0302, 30 July 2024, Table 6, p14
B28: a Figures should add up vertically and horizontally but may not, owing to rounding.

Sheet Pyramids
K1: Population by race, sex, and age, 2024
A3: SA
B4: Male | C4: Female | D4: Female
A5: 0–4 | B5: 3023886 | C5: 2937247 | D5: =(0-C5) -> -2937247
A6: 5–9 | B6: 2842136 | C6: 2761371 | D6: =(0-C6) -> -2761371
A7: 10–14 | B7: 2910380 | C7: 2852339 | D7: -2852339
A8: 15–19 | B8: 2757213 | C8: 2729231 | D8: -2729231
A9: 20–24 | B9: 2369402 | C9: 2347230 | D9: -2347230
A10: 25–29 | B10: 2532609 | C10: 2519573 | D10: -2519573
A11: 30–34 | B11: 2803159 | C11: 2795107 | D11: -2795107
A12: 35–39 | B12: 2782081 | C12: 2761779 | D12: -2761779
A13: 40–44 | B13: 2237143 | C13: 2238660 | D13: -2238660
A14: 45–49 | B14: 1710434 | C14: 1752519 | D14: -1752519
A15: 50–54 | B15: 1387114 | C15: 1476823 | D15: -1476823
A16: 55–59 | B16: 1064421 | C16: 1291213 | D16: -1291213
A17: 60–64 | B17: 866481 | C17: 1134227 | D17: -1134227
A18: 65–69 | B18: 654162 | C18: 921092 | D18: -921092
A19: 70–74 | B19: 459581 | C19: 697690 | D19: -697690
A20: 75–79 | B20: 273676 | C20: 471861 | D20: -471861
A21: 80+ | B21: 212322 | C21: 441742 | D21: -441742
B22: 30886200 | C22: 32129704
B23: Black | G23: Coloured
B24: Male | C24: Female | D24: Female | G24: Male | H24: Female | I24: Female
A25: 0–4 | B25: 2681519 | C25: 2605478 | D25: =(0-C25) -> -2605478 | F25: 0–4 | G25: 218019 | H25: 211198 | I25: =(0-H25) -> -211198
A26: 5–9 | B26: 2473275 | C26: 2403561 | D26: -2403561 | F26: 5–9 | G26: 214559 | H26: 208317 | I26: -208317
A27: 10–14 | B27: 2505985 | C27: 2459386 | D27: -2459386 | F27: 10–14 | G27: 225537 | H27: 219613 | I27: -219613
A28: 15–19 | B28: 2352394 | C28: 2334371 | D28: -2334371 | F28: 15–19 | G28: 225994 | H28: 221082 | I28: -221082
A29: 20–24 | B29: 1995803 | C29: 1983911 | D29: -1983911 | F29: 20–24 | G29: 205596 | H29: 201720 | I29: -201720
A30: 25–29 | B30: 2130168 | C30: 2132145 | D30: -2132145 | F30: 25–29 | G30: 213839 | H30: 210452 | I30: -210452
A31: 30–34 | B31: 2371892 | C31: 2381739 | D31: -2381739 | F31: 30–34 | G31: 217948 | H31: 215150 | I31: -215150
A32: 35–39 | B32: 2338514 | C32: 2333719 | D32: -2333719 | F32: 35–39 | G32: 208983 | H32: 207753 | I32: -207753
A33: 40–44 | B33: 1827257 | C33: 1831870 | D33: -1831870 | F33: 40–44 | G33: 178389 | H33: 185027 | I33: -185027
A34: 45–49 | B34: 1340068 | C34: 1377381 | D34: -1377381 | F34: 45–49 | G34: 151952 | H34: 155552 | I34: -155552
A35: 50–54 | B35: 1013412 | C35: 1084993 | D35: -1084993 | F35: 50–54 | G35: 144938 | H35: 157847 | I35: -157847
A36: 55–59 | B36: 732195 | C36: 918211 | D36: -918211 | F36: 55–59 | G36: 128573 | H36: 155039 | I36: -155039
A37: 60–64 | B37: 578411 | C37: 799297 | D37: -799297 | F37: 60–64 | G37: 106855 | H37: 130614 | I37: -130614
A38: 65–69 | B38: 418819 | C38: 631317 | D38: -631317 | F38: 65–69 | G38: 73506 | H38: 101021 | I38: -101021
A39: 70–74 | B39: 277805 | C39: 456220 | D39: -456220 | F39: 70–74 | G39: 46217 | H39: 72715 | I39: -72715
A40: 75–79 | B40: 144864 | C40: 289615 | D40: -289615 | F40: 75–79 | G40: 23870 | H40: 44846 | I40: -44846
A41: 80+ | B41: 84603 | C41: 219114 | D41: -219114 | F41: 80+ | G41: 15637 | H41: 40228 | I41: -40228
B42: 25266984 | C42: 26242328 | G42: 2600412 | H42: 2738174
B56: Indian/Asian | G56: White
B57: Male | C57: Female | D57: Female | G57: Male | H57: Female | I57: Female
A58: 0–4 | B58: 38887 | C58: 37557 | D58: =(0-C58) -> -37557 | F58: 0–4 | G58: 85461 | H58: 83014 | I58: =(0-H58) -> -83014
A59: 5–9 | B59: 45404 | C59: 43647 | D59: =(0-C59) -> -43647 | F59: 5–9 | G59: 108898 | H59: 105846 | I59: =(0-H59) -> -105846
A60: 10–14 | B60: 51673 | C60: 49410 | D60: -49410 | F60: 10–14 | G60: 127185 | H60: 123930 | I60: -123930
A61: 15–19 | B61: 49060 | C61: 46482 | D61: -46482 | F61: 15–19 | G61: 129765 | H61: 127296 | I61: -127296
A62: 20–24 | B62: 51534 | C62: 45299 | D62: -45299 | F62: 20–24 | G62: 116469 | H62: 116300 | I62: -116300
A63: 25–29 | B63: 67416 | C63: 54730 | D63: -54730 | F63: 25–29 | G63: 121186 | H63: 122246 | I63: -122246
A64: 30–34 | B64: 81542 | C64: 66053 | D64: -66053 | F64: 30–34 | G64: 131777 | H64: 132165 | I64: -132165
A65: 35–39 | B65: 85200 | C65: 70846 | D65: -70846 | F65: 35–39 | G65: 149384 | H65: 149461 | I65: -149461
A66: 40–44 | B66: 81367 | C66: 69519 | D66: -69519 | F66: 40–44 | G66: 150130 | H66: 152244 | I66: -152244
A67: 45–49 | B67: 67314 | C67: 59957 | D67: -59957 | F67: 45–49 | G67: 151100 | H67: 159629 | I67: -159629
A68: 50–54 | B68: 57808 | C68: 54722 | D68: -54722 | F68: 50–54 | G68: 170956 | H68: 179261 | I68: -179261
A69: 55–59 | B69: 47208 | C69: 49436 | D69: -49436 | F69: 55–59 | G69: 156445 | H69: 168527 | I69: -168527
A70: 60–64 | B70: 37414 | C70: 43744 | D70: -43744 | F70: 60–64 | G70: 143801 | H70: 160572 | I70: -160572
A71: 65–69 | B71: 27842 | C71: 36225 | D71: -36225 | F71: 65–69 | G71: 133995 | H71: 152529 | I71: -152529
A72: 70–74 | B72: 19737 | C72: 29335 | D72: -29335 | F72: 70–74 | G72: 115822 | H72: 139420 | I72: -139420
A73: 75–79 | B73: 11678 | C73: 21113 | D73: -21113 | F73: 75–79 | G73: 93264 | H73: 116287 | I73: -116287
A74: 80+ | B74: 8232 | C74: 21403 | D74: -21403 | F74: 80+ | G74: 103850 | H74: 160997 | I74: -160997
B75: 829316 | C75: 799478 | G75: 2189488 | H75: 2349724

Sheet Male.female pop.dis by race.24
B2: Breakdown by race and sex
B4: Male/female population distribution by race, 2024
B6: Race | C6: Male | D6: Proportion of total maleb | E6: Female | F6: Proportion of total femaleb | G6: Totala | H6: Proportion of total populationb
B7: Black | C7: 25266984 | D7: =C7/C11 -> 0.8180670979 | E7: 26242328 | F7: =E7/E11 -> 0.8167622086 | G7: 51509312 | H7: =G7/G11 -> 0.8174017784
B8: Coloured | C8: 2600412 | D8: =C8/C11 -> 0.08419332906 | E8: 2738174 | F8: =E8/E11 -> 0.08522250936 | G8: 5338586 | H8: =G8/G11 -> 0.08471807371
B9: Indian/Asian | C9: 829316 | D9: =C9/C11 -> 0.02685069708 | E9: 799478 | F9: =E9/E11 -> 0.02488283116 | G9: 1628794 | H9: =G9/G11 -> 0.025847348
B10: White | C10: 2189488 | D10: =C10/C11 -> 0.07088887594 | E10: 2349724 | F10: =E10/E11 -> 0.07313245089 | G10: 4539212 | H10: =G10/G11 -> 0.07203279985
B11: Totala | C11: 30886200 | D11: =C11/C11 -> 1 | E11: 32129704 | F11: =E11/E11 -> 1 | G11: 63015904 | H11: =G11/G11 -> 1
B12: Source: Stats SA, Mid-year population estimates 2024, Statistical release P0302, 30 July 2024, Table 6, p14
B13: a Actual numbers may not add up vertically and horizontally and proportions may not add up vertically, owing to rounding.
B14: b CRA calculations.

Sheet Age profile

Sheet Age profile by race, 2024
B2: Breakdown by race and age
L3: Black | M3: Coloured | N3: Indian/Asian | O3: White | P3: Total
B4: Age profile by race (actual numbers), 2024 | K4: 0–14 | L4: 0.2937178427 | M4: 0.242993744 | N4: 0.1636658779 | O4: 0.1397454007 | P4: 0.2749680303
K5: 15–24 | L5: 0.1682507233 | M5: 0.1600408797 | N5: 0.1181088585 | O5: 0.1079108004 | P5: 0.1619127133
B6: Age group | C6: Black | D6: Coloured | E6: Indian/Asian | F6: White | G6: Totala | K6: 25-34 | L6: 0.1750352247 | M6: 0.1606022643 | N6: 0.1656078055 | O6: 0.1117757884 | P6: 0.169012064
B7: 0–14 | C7: 15129204 | D7: 1297243 | E7: 266578 | F7: 634334 | G7: 17327359 | K7: 35–64 | L7: 0.3140272578 | M7: 0.3580577329 | N7: 0.444829119 | O7: 0.4167044853 | P7: 0.3285344443
B8: 15–24 | C8: 8666479 | D8: 854392 | E8: 192375 | F8: 489830 | G8: 10203076 | K8: 65+ | L8: 0.04896895148 | M8: 0.07830537899 | N8: 0.1077883391 | O8: 0.2238635252 | P8: 0.06557274811
B9: 25-34 | C9: 9015944 | D9: 857389 | E9: 269741 | F9: 507374 | G9: 10650448
B10: 35–64 | C10: 16175328 | D10: 1911522 | E10: 724535 | F10: 1891510 | G10: 20702895
B11: 65+ | C11: 2522357 | D11: 418040 | E11: 175565 | F11: 1016164 | G11: 4132126
B12: Totala | C12: 51509312 | D12: 5338586 | E12: 1628794 | F12: 4539212 | G12: 63015904
B13: Source: Stats SA, Mid-year population estimates 2024, Statistical release P0302, 30 July 2024, Table 6, p14
B15: Age profile by race (proportions)a, 2024
B17: Age group | C17: Black | D17: Coloured | E17: Indian/Asian | F17: White | G17: Totalb
B18: 0–14 | C18: =(C7/Total47443) -> 0.2937178427 | D18: =(D7/Total5176) -> 0.242993744 | E18: =(E7/Total1503) -> 0.1636658779 | F18: =(F7/Total4652) -> 0.1397454007 | G18: =(G7/Total587750) -> 0.2749680303
B19: 15–24 | C19: =(C8/Total47443) -> 0.1682507233 | D19: =(D8/Total5176) -> 0.1600408797 | E19: =(E8/Total1503) -> 0.1181088585 | F19: =(F8/Total4652) -> 0.1079108004 | G19: =(G8/Total587750) -> 0.1619127133
B20: 25-34 | C20: =(C9/Total47443) -> 0.1750352247 | D20: =(D9/Total5176) -> 0.1606022643 | E20: =(E9/Total1503) -> 0.1656078055 | F20: =(F9/Total4652) -> 0.1117757884 | G20: =(G9/Total587750) -> 0.169012064
B21: 35–64 | C21: =(C10/Total47443) -> 0.3140272578 | D21: =(D10/Total5176) -> 0.3580577329 | E21: =(E10/Total1503) -> 0.444829119 | F21: =(F10/Total4652) -> 0.4167044853 | G21: =(G10/Total587750) -> 0.3285344443
B22: 65+ | C22: =(C11/Total47443) -> 0.04896895148 | D22: =(D11/Total5176) -> 0.07830537899 | E22: =(E11/Total1503) -> 0.1077883391 | F22: =(F11/Total4652) -> 0.2238635252 | G22: =(G11/Total587750) -> 0.06557274811
B23: Totalb | C23: 1 | D23: 1 | E23: 1 | F23: 1 | G23: 1
B24: Source: CRA calculations based on Stats SA data
B25: a CRA calculations.
B26: b Figures may not add up vertically and horizontally and proportions may not add up vertically, owing to rounding.

Sheet Age profile by province and sex

Sheet EC
B2: Breakdown by sex and province
B4: Eastern Cape estimatesa by age and sex, 2024
B6: Age group | C6: Male | D6: Female | E6: Total
B7: 0-4 | C7: 396144.9166 | D7: 388694.6748 | E7: 784839.5914
B8: 5-9 | C8: 372355.1108 | D8: 366624.2478 | E8: 738979.3586
B9: 10-14 | C9: 377632.0039 | D9: 373326.9189 | E9: 750958.9228
B10: 15-19 | C10: 339755.5223 | D10: 344315.8217 | E10: 684071.344
B11: 20-24 | C11: 250986.1183 | D11: 268420.571 | E11: 519406.6893
B12: 25-29 | C12: 240238.2222 | D12: 267485.1729 | E12: 507723.3951
B13: 30-34 | C13: 257594.5216 | D13: 291486.3167 | E13: 549080.8382
B14: 35-39 | C14: 238110.0229 | D14: 267031.3744 | E14: 505141.3973
B15: 40-44 | C15: 189949.4134 | D15: 210061.5991 | E15: 400011.0126
B16: 45-49 | C16: 151654.9046 | D16: 176937.8298 | E16: 328592.7343
B17: 50-54 | C17: 125788.4074 | D17: 163135.6102 | E17: 288924.0176
B18: 55-59 | C18: 100162.5682 | D18: 153630.6083 | E18: 253793.1765
B19: 60-64 | C19: 87625.007 | D19: 148552.8686 | E19: 236177.8756
B20: 65-69 | C20: 72742.723 | D20: 130842.6467 | E20: 203585.3697
B21: 70-74 | C21: 54977.82319 | D21: 99864.35681 | E21: 154842.18
B22: 75-79 | C22: 37180.37222 | D22: 72528.78404 | E22: 109709.1563
B23: 80+ | C23: 55702.80643 | D23: 104690.1813 | E23: 160392.9877
B24: Total | C24: 3348600.464 | D24: 3827629.583 | E24: 7176230.047
B25: Source: Stats SA, MYPE report table website 2024, accessed 7 November 2024
B26: a Figures should add up vertically and horizontally but may not, owing to rounding.

Sheet EC pyramids
B5: Male | C5: Female | D5: Female
A6: 0–4 | B6: 396144.9166 | C6: 388694.6748 | D6: =(0-C6) -> -388694.6748
A7: 5–9 | B7: 372355.1108 | C7: 366624.2478 | D7: -366624.2478
A8: 10–14 | B8: 377632.0039 | C8: 373326.9189 | D8: -373326.9189
A9: 15–19 | B9: 339755.5223 | C9: 344315.8217 | D9: -344315.8217
A10: 20–24 | B10: 250986.1183 | C10: 268420.571 | D10: -268420.571
A11: 25–29 | B11: 240238.2222 | C11: 267485.1729 | D11: -267485.1729
A12: 30–34 | B12: 257594.5216 | C12: 291486.3167 | D12: -291486.3167
A13: 35–39 | B13: 238110.0229 | C13: 267031.3744 | D13: -267031.3744
A14: 40–44 | B14: 189949.4134 | C14: 210061.5991 | D14: -210061.5991
A15: 45–49 | B15: 151654.9046 | C15: 176937.8298 | D15: -176937.8298
A16: 50–54 | B16: 125788.4074 | C16: 163135.6102 | D16: -163135.6102
A17: 55–59 | B17: 100162.5682 | C17: 153630.6083 | D17: -153630.6083
A18: 60–64 | B18: 87625.007 | C18: 148552.8686 | D18: -148552.8686
A19: 65–69 | B19: 72742.723 | C19: 130842.6467 | D19: -130842.6467
A20: 70–74 | B20: 54977.82319 | C20: 99864.35681 | D20: -99864.35681
A21: 75–79 | B21: 37180.37222 | C21: 72528.78404 | D21: -72528.78404
A22: 80+ | B22: 55702.80643 | C22: 104690.1813 | D22: -104690.1813

Sheet FS
B1: Free State estimatesa by age and sex, 2024
B3: Age group | C3: Male | D3: Female | E3: Total
B4: 0-4 | C4: 143319.1424 | D4: 141183.3156 | E4: 284502.458
B5: 5-9 | C5: 134877.9206 | D5: 133986.6929 | E5: 268864.6135
B6: 10-14 | C6: 142780.7194 | D6: 144907.196 | E6: 287687.9155
B7: 15-19 | C7: 138512.046 | D7: 144467.6595 | E7: 282979.7055
B8: 20-24 | C8: 115573.6089 | D8: 122963.3361 | E8: 238536.9451
B9: 25-29 | C9: 114725.2546 | D9: 123327.6503 | E9: 238052.9049
B10: 30-34 | C10: 122898.2008 | D10: 132730.491 | E10: 255628.6919
B11: 35-39 | C11: 121026.1741 | D11: 131540.3782 | E11: 252566.5523
B12: 40-44 | C12: 95940.91984 | D12: 106810.6908 | E12: 202751.6107
B13: 45-49 | C13: 74155.16505 | D13: 87247.7498 | E13: 161402.9149
B14: 50-54 | C14: 62501.67375 | D14: 76809.19453 | E14: 139310.8683
B15: 55-59 | C15: 50558.61327 | D15: 68503.47945 | E15: 119062.0927
B16: 60-64 | C16: 42190.19166 | D16: 59214.85381 | E16: 101405.0455
B17: 65-69 | C17: 32614.21017 | D17: 48771.92257 | E17: 81386.13274
B18: 70-74 | C18: 22892.85408 | D18: 38528.89047 | E18: 61421.74455
B19: 75-79 | C19: 12625.55112 | D19: 25248.91675 | E19: 37874.46787
B20: 80+ | C20: 7737.764064 | D20: 22877.12011 | E20: 30614.88418
B21: Total | C21: 1434930.01 | D21: 1609119.538 | E21: 3044049.548
B22: Source: Stats SA, MYPE report table website 2024, accessed 7 November 2024
B23: a Figures should add up vertically and horizontally but may not, owing to rounding.

Sheet FS pyramids
B5: Male | C5: Female | D5: Female
A6: 0–4 | B6: 143319.1424 | C6: 141183.3156 | D6: =(0-C6) -> -141183.3156
A7: 5–9 | B7: 134877.9206 | C7: 133986.6929 | D7: -133986.6929
A8: 10–14 | B8: 142780.7194 | C8: 144907.196 | D8: -144907.196
A9: 15–19 | B9: 138512.046 | C9: 144467.6595 | D9: -144467.6595
A10: 20–24 | B10: 115573.6089 | C10: 122963.3361 | D10: -122963.3361
A11: 25–29 | B11: 114725.2546 | C11: 123327.6503 | D11: -123327.6503
A12: 30–34 | B12: 122898.2008 | C12: 132730.491 | D12: -132730.491
A13: 35–39 | B13: 121026.1741 | C13: 131540.3782 | D13: -131540.3782
A14: 40–44 | B14: 95940.91984 | C14: 106810.6908 | D14: -106810.6908
A15: 45–49 | B15: 74155.16505 | C15: 87247.7498 | D15: -87247.7498
A16: 50–54 | B16: 62501.67375 | C16: 76809.19453 | D16: -76809.19453
A17: 55–59 | B17: 50558.61327 | C17: 68503.47945 | D17: -68503.47945
A18: 60–64 | B18: 42190.19166 | C18: 59214.85381 | D18: -59214.85381
A19: 65–69 | B19: 32614.21017 | C19: 48771.92257 | D19: -48771.92257
A20: 70–74 | B20: 22892.85408 | C20: 38528.89047 | D20: -38528.89047
A21: 75–79 | B21: 12625.55112 | C21: 25248.91675 | D21: -25248.91675
A22: 80+ | B22: 7737.764064 | C22: 22877.12011 | D22: -22877.12011

Sheet GP
B1: Gauteng estimatesa by age and sex, 2024
B3: Age group | C3: Male | D3: Female | E3: Total
B4: 0-4 | C4: 639808.0739 | D4: 619755.7815 | E4: 1259563.855
B5: 5-9 | C5: 611589.9195 | D5: 590260.4629 | E5: 1201850.382
B6: 10-14 | C6: 619898.7348 | D6: 605017.9427 | E6: 1224916.678
B7: 15-19 | C7: 602862.1697 | D7: 591078.1234 | E7: 1193940.293
B8: 20-24 | C8: 584376.5979 | D8: 558038.9574 | E8: 1142415.555
B9: 25-29 | C9: 682455.5321 | D9: 651440.0491 | E9: 1333895.581
B10: 30-34 | C10: 800797.6823 | D10: 772722.5146 | E10: 1573520.197
B11: 35-39 | C11: 836323.0793 | D11: 815218.2977 | E11: 1651541.377
B12: 40-44 | C12: 686156.103 | D12: 668734.0643 | E12: 1354890.167
B13: 45-49 | C13: 535866.3018 | D13: 483218.7656 | E13: 1019085.067
B14: 50-54 | C14: 432940.6371 | D14: 377443.0498 | E14: 810383.6869
B15: 55-59 | C15: 325218.4042 | D15: 318749.1773 | E15: 643967.5815
B16: 60-64 | C16: 261889.9923 | D16: 271047.6074 | E16: 532937.5997
B17: 65-69 | C17: 196052.2314 | D17: 216537.0158 | E17: 412589.2472
B18: 70-74 | C18: 133393.2558 | D18: 157320.8425 | E18: 290714.0983
B19: 75-79 | C19: 76698.54655 | D19: 100939.0301 | E19: 177637.5767
B20: 80+ | C20: 39886.46038 | D20: 68088.12641 | E20: 107974.5868
B21: Total | C21: 8066213.722 | D21: 7865609.809 | E21: 15931823.53
B22: Source: Stats SA, MYPE report table website 2024, accessed 7 November 2024
B23: a Figures should add up vertically and horizontally but may not, owing to rounding.

Sheet GP pyramids
B7: Male | C7: Female | D7: Female
A8: 0–4 | B8: 639808.0739 | C8: 619755.7815 | D8: =(0-C8) -> -619755.7815
A9: 5–9 | B9: 611589.9195 | C9: 590260.4629 | D9: -590260.4629
A10: 10–14 | B10: 619898.7348 | C10: 605017.9427 | D10: -605017.9427
A11: 15–19 | B11: 602862.1697 | C11: 591078.1234 | D11: -591078.1234
A12: 20–24 | B12: 584376.5979 | C12: 558038.9574 | D12: -558038.9574
A13: 25–29 | B13: 682455.5321 | C13: 651440.0491 | D13: -651440.0491
A14: 30–34 | B14: 800797.6823 | C14: 772722.5146 | D14: -772722.5146
A15: 35–39 | B15: 836323.0793 | C15: 815218.2977 | D15: -815218.2977
A16: 40–44 | B16: 686156.103 | C16: 668734.0643 | D16: -668734.0643
A17: 45–49 | B17: 535866.3018 | C17: 483218.7656 | D17: -483218.7656
A18: 50–54 | B18: 432940.6371 | C18: 377443.0498 | D18: -377443.0498
A19: 55–59 | B19: 325218.4042 | C19: 318749.1773 | D19: -318749.1773
A20: 60–64 | B20: 261889.9923 | C20: 271047.6074 | D20: -271047.6074
A21: 65–69 | B21: 196052.2314 | C21: 216537.0158 | D21: -216537.0158
A22: 70–74 | B22: 133393.2558 | C22: 157320.8425 | D22: -157320.8425
A23: 75–79 | B23: 76698.54655 | C23: 100939.0301 | D23: -100939.0301
A24: 80+ | B24: 39886.46038 | C24: 68088.12641 | D24: -68088.12641

Sheet KZN
B1: Kwa-Zulu Natal estimatesa by age and sex, 2024
B3: Age group | C3: Male | D3: Female | E3: Total
B4: 0-4 | C4: 652472.7567 | D4: 632752.4728 | E4: 1285225.23
B5: 5-9 | C5: 605930.4106 | D5: 587347.6907 | E5: 1193278.101
B6: 10-14 | C6: 623830.3538 | D6: 610292.6857 | E6: 1234123.04
B7: 15-19 | C7: 585648.4249 | D7: 582688.4283 | E7: 1168336.853
B8: 20-24 | C8: 483150.1408 | D8: 492038.0854 | E8: 975188.2262
B9: 25-29 | C9: 501900.8053 | D9: 523267.3221 | E9: 1025168.127
B10: 30-34 | C10: 536904.4556 | D10: 557355.117 | E10: 1094259.573
B11: 35-39 | C11: 506305.4362 | D11: 524217.2847 | E11: 1030522.721
B12: 40-44 | C12: 379104.1718 | D12: 413646.8441 | E12: 792751.0159
B13: 45-49 | C13: 274391.1784 | D13: 320369.2325 | E13: 594760.4109
B14: 50-54 | C14: 217172.3033 | D14: 268562.5664 | E14: 485734.8697
B15: 55-59 | C15: 159223.2804 | D15: 233130.9242 | E15: 392354.2046
B16: 60-64 | C16: 131146.4135 | D16: 210664.1038 | E16: 341810.5173
B17: 65-69 | C17: 98872.14038 | D17: 169134.9439 | E17: 268007.0842
B18: 70-74 | C18: 71999.80977 | D18: 129811.8916 | E18: 201811.7013
B19: 75-79 | C19: 42987.35894 | D19: 90929.72385 | E19: 133917.0828
B20: 80+ | C20: 29342.26943 | D20: 66120.65657 | E20: 95462.926
B21: Total | C21: 5900381.71 | D21: 6412329.974 | E21: 12312711.68
B22: Source: Stats SA, MYPE report table website 2024, accessed 7 November 2024
B23: a Figures should add up vertically and horizontally but may not, owing to rounding.

Sheet KZN pyramids
B4: Male | C4: Female | D4: Female
A5: 0–4 | B5: 652472.7567 | C5: 632752.4728 | D5: =(0-C5) -> -632752.4728
A6: 5–9 | B6: 605930.4106 | C6: 587347.6907 | D6: -587347.6907
A7: 10–14 | B7: 623830.3538 | C7: 610292.6857 | D7: -610292.6857
A8: 15–19 | B8: 585648.4249 | C8: 582688.4283 | D8: -582688.4283
A9: 20–24 | B9: 483150.1408 | C9: 492038.0854 | D9: -492038.0854
A10: 25–29 | B10: 501900.8053 | C10: 523267.3221 | D10: -523267.3221
A11: 30–34 | B11: 536904.4556 | C11: 557355.117 | D11: -557355.117
A12: 35–39 | B12: 506305.4362 | C12: 524217.2847 | D12: -524217.2847
A13: 40–44 | B13: 379104.1718 | C13: 413646.8441 | D13: -413646.8441
A14: 45–49 | B14: 274391.1784 | C14: 320369.2325 | D14: -320369.2325
A15: 50–54 | B15: 217172.3033 | C15: 268562.5664 | D15: -268562.5664
A16: 55–59 | B16: 159223.2804 | C16: 233130.9242 | D16: -233130.9242
A17: 60–64 | B17: 131146.4135 | C17: 210664.1038 | D17: -210664.1038
A18: 65–69 | B18: 98872.14038 | C18: 169134.9439 | D18: -169134.9439
A19: 70–74 | B19: 71999.80977 | C19: 129811.8916 | D19: -129811.8916
A20: 75–79 | B20: 42987.35894 | C20: 90929.72385 | D20: -90929.72385
A21: 80+ | B21: 29342.26943 | C21: 66120.65657 | D21: -66120.65657

Sheet LIM
B1: Limpopo estimatesa by age and sex, 2024
B3: Age group | C3: Male | D3: Female | E3: Total
B4: 0-4 | C4: 374693.0012 | D4: 363678.1198 | E4: 738371.121
B5: 5-9 | C5: 349268.9376 | D5: 338944.098 | E5: 688213.0356
B6: 10-14 | C6: 351186.1728 | D6: 341088.6268 | E6: 692274.7996
B7: 15-19 | C7: 319283.963 | D7: 309918.1769 | E7: 629202.1399
B8: 20-24 | C8: 242108.3353 | D8: 238248.4992 | E8: 480356.8345
B9: 25-29 | C9: 235722.0598 | D9: 237361.9554 | E9: 473084.0152
B10: 30-34 | C10: 253599.455 | D10: 256599.1271 | E10: 510198.5821
B11: 35-39 | C11: 238074.7361 | D11: 236074.0547 | E11: 474148.7908
B12: 40-44 | C12: 187636.0565 | D12: 191512.0895 | E12: 379148.146
B13: 45-49 | C13: 138480.602 | D13: 167868.0292 | E13: 306348.6312
B14: 50-54 | C14: 108458.8104 | D14: 143695.9071 | E14: 252154.7174
B15: 55-59 | C15: 81857.41659 | D15: 123669.8712 | E15: 205527.2878
B16: 60-64 | C16: 63712.94709 | D16: 111553.5714 | E16: 175266.5185
B17: 65-69 | C17: 47357.57758 | D17: 92528.01743 | E17: 139885.595
B18: 70-74 | C18: 34587.12079 | D18: 75841.13163 | E18: 110428.2524
B19: 75-79 | C19: 19866.87738 | D19: 49652.56971 | E19: 69519.44709
B20: 80+ | C20: 18348.04514 | D20: 60117.69986 | E20: 78465.745
B21: Total | C21: 3064242.114 | D21: 3338351.545 | E21: 6402593.659
B22: Source: Stats SA, MYPE report table website 2024, accessed 7 November 2024
B23: a Figures should add up vertically and horizontally but may not, owing to rounding.

Sheet LIM pyramids
B5: Male | C5: Female | D5: Female
A6: 0–4 | B6: 374693.0012 | C6: 363678.1198 | D6: =(0-C6) -> -363678.1198
A7: 5–9 | B7: 349268.9376 | C7: 338944.098 | D7: -338944.098
A8: 10–14 | B8: 351186.1728 | C8: 341088.6268 | D8: -341088.6268
A9: 15–19 | B9: 319283.963 | C9: 309918.1769 | D9: -309918.1769
A10: 20–24 | B10: 242108.3353 | C10: 238248.4992 | D10: -238248.4992
A11: 25–29 | B11: 235722.0598 | C11: 237361.9554 | D11: -237361.9554
A12: 30–34 | B12: 253599.455 | C12: 256599.1271 | D12: -256599.1271
A13: 35–39 | B13: 238074.7361 | C13: 236074.0547 | D13: -236074.0547
A14: 40–44 | B14: 187636.0565 | C14: 191512.0895 | D14: -191512.0895
A15: 45–49 | B15: 138480.602 | C15: 167868.0292 | D15: -167868.0292
A16: 50–54 | B16: 108458.8104 | C16: 143695.9071 | D16: -143695.9071
A17: 55–59 | B17: 81857.41659 | C17: 123669.8712 | D17: -123669.8712
A18: 60–64 | B18: 63712.94709 | C18: 111553.5714 | D18: -111553.5714
A19: 65–69 | B19: 47357.57758 | C19: 92528.01743 | D19: -92528.01743
A20: 70–74 | B20: 34587.12079 | C20: 75841.13163 | D20: -75841.13163
A21: 75–79 | B21: 19866.87738 | C21: 49652.56971 | D21: -49652.56971
A22: 80+ | B22: 18348.04514 | C22: 60117.69986 | D22: -60117.69986

Sheet MP
B1: Mpumalanga estimatesa by age and sex, 2024
B3: Age group | C3: Male | D3: Female | E3: Total
B4: 0-4 | C4: 245700.7605 | D4: 239560.6605 | E4: 485261.421
B5: 5-9 | C5: 228185.1455 | D5: 223590.6056 | E5: 451775.7512
B6: 10-14 | C6: 236296.7199 | D6: 233597.187 | E6: 469893.907
B7: 15-19 | C7: 224233.6544 | D7: 223473.6997 | E7: 447707.3541
B8: 20-24 | C8: 194907.8286 | D8: 194794.339 | E8: 389702.1676
B9: 25-29 | C9: 215022.5404 | D9: 212583.2452 | E9: 427605.7856
B10: 30-34 | C10: 234464.7019 | D10: 225328.4518 | E10: 459793.1537
B11: 35-39 | C11: 236324.3514 | D11: 219316.0791 | E11: 455640.4305
B12: 40-44 | C12: 191002.6877 | D12: 175494.414 | E12: 366497.1017
B13: 45-49 | C13: 136989.5218 | D13: 138187.5479 | E13: 275177.0697
B14: 50-54 | C14: 104777.62 | D14: 116302.346 | E14: 221079.966
B15: 55-59 | C15: 78777.78573 | D15: 98595.08769 | E15: 177372.8734
B16: 60-64 | C16: 62921.388 | D16: 81579.24249 | E16: 144500.6305
B17: 65-69 | C17: 46038.29504 | D17: 62378.28245 | E17: 108416.5775
B18: 70-74 | C18: 32631.09593 | D18: 48316.72493 | E18: 80947.82086
B19: 75-79 | C19: 17662.24767 | D19: 29359.26745 | E19: 47021.51512
B20: 80+ | C20: 15642.82138 | D20: 33625.15341 | E20: 49267.97479
B21: Total | C21: 2501579.166 | D21: 2556082.334 | E21: 5057661.5
B22: Source: Stats SA, MYPE report table website 2024, accessed 7 November 2024
B23: a Figures should add up vertically and horizontally but may not, owing to rounding.

Sheet MP pyramids
B6: Male | C6: Female | D6: Female
A7: 0–4 | B7: 245700.7605 | C7: 239560.6605 | D7: =(0-C7) -> -239560.6605
A8: 5–9 | B8: 228185.1455 | C8: 223590.6056 | D8: -223590.6056
A9: 10–14 | B9: 236296.7199 | C9: 233597.187 | D9: -233597.187
A10: 15–19 | B10: 224233.6544 | C10: 223473.6997 | D10: -223473.6997
A11: 20–24 | B11: 194907.8286 | C11: 194794.339 | D11: -194794.339
A12: 25–29 | B12: 215022.5404 | C12: 212583.2452 | D12: -212583.2452
A13: 30–34 | B13: 234464.7019 | C13: 225328.4518 | D13: -225328.4518
A14: 35–39 | B14: 236324.3514 | C14: 219316.0791 | D14: -219316.0791
A15: 40–44 | B15: 191002.6877 | C15: 175494.414 | D15: -175494.414
A16: 45–49 | B16: 136989.5218 | C16: 138187.5479 | D16: -138187.5479
A17: 50–54 | B17: 104777.62 | C17: 116302.346 | D17: -116302.346
A18: 55–59 | B18: 78777.78573 | C18: 98595.08769 | D18: -98595.08769
A19: 60–64 | B19: 62921.388 | C19: 81579.24249 | D19: -81579.24249
A20: 65–69 | B20: 46038.29504 | C20: 62378.28245 | D20: -62378.28245
A21: 70–74 | B21: 32631.09593 | C21: 48316.72493 | D21: -48316.72493
A22: 75–79 | B22: 17662.24767 | C22: 29359.26745 | D22: -29359.26745
A23: 80+ | B23: 15642.82138 | C23: 33625.15341 | D23: -33625.15341

Sheet NW
B1: North West estimatesa by age and sex, 2024
B3: Age group | C3: Male | D3: Female | E3: Total
B4: 0-4 | C4: 205949.4315 | D4: 199562.0546 | E4: 405511.4861
B5: 5-9 | C5: 190387.652 | D5: 183662.7249 | E5: 374050.3769
B6: 10-14 | C6: 192382.8694 | D6: 188176.5123 | E6: 380559.3817
B7: 15-19 | C7: 184605.3214 | D7: 181490.1854 | E7: 366095.5068
B8: 20-24 | C8: 162699.8849 | D8: 153981.6991 | E8: 316681.5841
B9: 25-29 | C9: 174120.3712 | D9: 156722.8495 | E9: 330843.2208
B10: 30-34 | C10: 193490.6183 | D10: 172355.9663 | E10: 365846.5845
B11: 35-39 | C11: 192073.0413 | D11: 169601.6632 | E11: 361674.7045
B12: 40-44 | C12: 157554.3793 | D12: 135855.6773 | E12: 293410.0566
B13: 45-49 | C13: 122449.419 | D13: 109940.5352 | E13: 232389.9542
B14: 50-54 | C14: 97862.47187 | D14: 93621.12738 | E14: 191483.5992
B15: 55-59 | C15: 78007.61352 | D15: 79131.0451 | E15: 157138.6586
B16: 60-64 | C16: 64842.54193 | D16: 67095.28165 | E16: 131937.8236
B17: 65-69 | C17: 46755.25418 | D17: 53886.25238 | E17: 100641.5066
B18: 70-74 | C18: 28115.11591 | D18: 40502.35439 | E18: 68617.4703
B19: 75-79 | C19: 15685.15319 | D19: 27274.69915 | E19: 42959.85234
B20: 80+ | C20: 6831.159448 | D20: 28629.94139 | E20: 35461.10084
B21: Total | C21: 2113812.298 | D21: 2041490.569 | E21: 4155302.868
B22: Source: Stats SA, MYPE report table website 2024, accessed 7 November 2024
B23: a Figures should add up vertically and horizontally but may not, owing to rounding.

Sheet NW pyramids
B6: Male | C6: Female | D6: Female
A7: 0–4 | B7: 205949.4315 | C7: 199562.0546 | D7: =(0-C7) -> -199562.0546
A8: 5–9 | B8: 190387.652 | C8: 183662.7249 | D8: -183662.7249
A9: 10–14 | B9: 192382.8694 | C9: 188176.5123 | D9: -188176.5123
A10: 15–19 | B10: 184605.3214 | C10: 181490.1854 | D10: -181490.1854
A11: 20–24 | B11: 162699.8849 | C11: 153981.6991 | D11: -153981.6991
A12: 25–29 | B12: 174120.3712 | C12: 156722.8495 | D12: -156722.8495
A13: 30–34 | B13: 193490.6183 | C13: 172355.9663 | D13: -172355.9663
A14: 35–39 | B14: 192073.0413 | C14: 169601.6632 | D14: -169601.6632
A15: 40–44 | B15: 157554.3793 | C15: 135855.6773 | D15: -135855.6773
A16: 45–49 | B16: 122449.419 | C16: 109940.5352 | D16: -109940.5352
A17: 50–54 | B17: 97862.47187 | C17: 93621.12738 | D17: -93621.12738
A18: 55–59 | B18: 78007.61352 | C18: 79131.0451 | D18: -79131.0451
A19: 60–64 | B19: 64842.54193 | C19: 67095.28165 | D19: -67095.28165
A20: 65–69 | B20: 46755.25418 | C20: 53886.25238 | D20: -53886.25238
A21: 70–74 | B21: 28115.11591 | C21: 40502.35439 | D21: -40502.35439
A22: 75–79 | B22: 15685.15319 | C22: 27274.69915 | D22: -27274.69915
A23: 80+ | B23: 6831.159448 | C23: 28629.94139 | D23: -28629.94139

Sheet NC
B1: Northern Cape estimatesa by age and sex, 2024
B3: Age group | C3: Male | D3: Female | E3: Total
B4: 0-4 | C4: 69320.65498 | D4: 67609.01704 | E4: 136929.672
B5: 5-9 | C5: 64853.18878 | D5: 63858.62889 | E5: 128711.8177
B6: 10-14 | C6: 64996.6358 | D6: 64503.06529 | E6: 129499.7011
B7: 15-19 | C7: 61359.61063 | D7: 60407.32144 | E7: 121766.9321
B8: 20-24 | C8: 53526.13863 | D8: 51780.35867 | E8: 105306.4973
B9: 25-29 | C9: 54437.38209 | D9: 52109.97558 | E9: 106547.3577
B10: 30-34 | C10: 58293.49896 | D10: 55454.03068 | E10: 113747.5296
B11: 35-39 | C11: 57626.23511 | D11: 53977.66606 | E11: 111603.9012
B12: 40-44 | C12: 47817.37399 | D12: 43045.58438 | E12: 90862.95837
B13: 45-49 | C13: 37110.83143 | D13: 34569.21654 | E13: 71680.04797
B14: 50-54 | C14: 30511.18016 | D14: 30768.14812 | E14: 61279.32828
B15: 55-59 | C15: 23838.6678 | D15: 27743.11269 | E15: 51581.78048
B16: 60-64 | C16: 19005.255 | D16: 24224.60411 | E16: 43229.8591
B17: 65-69 | C17: 15024.51672 | D17: 20659.67346 | E17: 35684.19018
B18: 70-74 | C18: 10933.5963 | D18: 16697.9675 | E18: 27631.5638
B19: 75-79 | C19: 6535.061981 | D19: 11785.96589 | E19: 18321.02787
B20: 80+ | C20: 5173.255709 | D20: 13385.71244 | E20: 18558.96815
B21: Total | C21: 680363.0841 | D21: 692580.0488 | E21: 1372943.133
B22: Source: Stats SA, MYPE report table website 2024, accessed 7 November 2024
B23: a Figures should add up vertically and horizontally but may not, owing to rounding.

Sheet NC pyramids
B6: Male | C6: Female | D6: Female
A7: 0–4 | B7: 69320.65498 | C7: 67609.01704 | D7: =(0-C7) -> -67609.01704
A8: 5–9 | B8: 64853.18878 | C8: 63858.62889 | D8: -63858.62889
A9: 10–14 | B9: 64996.6358 | C9: 64503.06529 | D9: -64503.06529
A10: 15–19 | B10: 61359.61063 | C10: 60407.32144 | D10: -60407.32144
A11: 20–24 | B11: 53526.13863 | C11: 51780.35867 | D11: -51780.35867
A12: 25–29 | B12: 54437.38209 | C12: 52109.97558 | D12: -52109.97558
A13: 30–34 | B13: 58293.49896 | C13: 55454.03068 | D13: -55454.03068
A14: 35–39 | B14: 57626.23511 | C14: 53977.66606 | D14: -53977.66606
A15: 40–44 | B15: 47817.37399 | C15: 43045.58438 | D15: -43045.58438
A16: 45–49 | B16: 37110.83143 | C16: 34569.21654 | D16: -34569.21654
A17: 50–54 | B17: 30511.18016 | C17: 30768.14812 | D17: -30768.14812
A18: 55–59 | B18: 23838.6678 | C18: 27743.11269 | D18: -27743.11269
A19: 60–64 | B19: 19005.255 | C19: 24224.60411 | D19: -24224.60411
A20: 65–69 | B20: 15024.51672 | C20: 20659.67346 | D20: -20659.67346
A21: 70–74 | B21: 10933.5963 | C21: 16697.9675 | D21: -16697.9675
A22: 75–79 | B22: 6535.061981 | C22: 11785.96589 | D22: -11785.96589
A23: 80+ | B23: 5173.255709 | C23: 13385.71244 | D23: -13385.71244

Sheet WC
B1: Western Cape estimatesa by age and sex, 2024
B3: Age group | C3: Male | D3: Female | E3: Total
B4: 0-4 | C4: 296477.2622 | D4: 284450.9033 | E4: 580928.1655
B5: 5-9 | C5: 284687.7147 | D5: 273095.8483 | E5: 557783.563
B6: 10-14 | C6: 301375.79 | D6: 291428.8652 | E6: 592804.6552
B7: 15-19 | C7: 300952.2878 | D7: 291391.5835 | E7: 592343.8713
B8: 20-24 | C8: 282073.3466 | D8: 266964.154 | E8: 549037.5006
B9: 25-29 | C9: 313986.8322 | D9: 295274.7799 | E9: 609261.6121
B10: 30-34 | C10: 345115.8656 | D10: 331074.9849 | E10: 676190.8504
B11: 35-39 | C11: 356217.9237 | D11: 344802.2018 | E11: 701020.1255
B12: 40-44 | C12: 301981.8943 | D12: 293499.0365 | E12: 595480.9308
B13: 45-49 | C13: 239336.076 | D13: 234180.0936 | E13: 473516.1696
B14: 50-54 | C14: 207100.8961 | D14: 206485.0505 | E14: 413585.9466
B15: 55-59 | C15: 166776.6504 | D15: 188059.694 | E15: 354836.3444
B16: 60-64 | C16: 133147.2635 | D16: 160294.8667 | E16: 293442.1302
B17: 65-69 | C17: 98705.05151 | D17: 126353.2454 | E17: 225058.2969
B18: 70-74 | C18: 70050.32827 | D18: 90805.84021 | E18: 160856.1685
B19: 75-79 | C19: 44434.83096 | D19: 64142.04305 | E19: 108576.874
B20: 80+ | C20: 33657.41803 | D20: 44207.40848 | E20: 77864.8265
B21: Total | C21: 3776077.432 | D21: 3786510.599 | E21: 7562588.031
B22: Source: Stats SA, MYPE report table website 2024, accessed 7 November 2024
B23: a Figures should add up vertically and horizontally but may not, owing to rounding.

Sheet WC pyramids
B6: Male | C6: Female | D6: Female
A7: 0–4 | B7: 296477.2622 | C7: 284450.9033 | D7: =(0-C7) -> -284450.9033
A8: 5–9 | B8: 284687.7147 | C8: 273095.8483 | D8: -273095.8483
A9: 10–14 | B9: 301375.79 | C9: 291428.8652 | D9: -291428.8652
A10: 15–19 | B10: 300952.2878 | C10: 291391.5835 | D10: -291391.5835
A11: 20–24 | B11: 282073.3466 | C11: 266964.154 | D11: -266964.154
A12: 25–29 | B12: 313986.8322 | C12: 295274.7799 | D12: -295274.7799
A13: 30–34 | B13: 345115.8656 | C13: 331074.9849 | D13: -331074.9849
A14: 35–39 | B14: 356217.9237 | C14: 344802.2018 | D14: -344802.2018
A15: 40–44 | B15: 301981.8943 | C15: 293499.0365 | D15: -293499.0365
A16: 45–49 | B16: 239336.076 | C16: 234180.0936 | D16: -234180.0936
A17: 50–54 | B17: 207100.8961 | C17: 206485.0505 | D17: -206485.0505
A18: 55–59 | B18: 166776.6504 | C18: 188059.694 | D18: -188059.694
A19: 60–64 | B19: 133147.2635 | C19: 160294.8667 | D19: -160294.8667
A20: 65–69 | B20: 98705.05151 | C20: 126353.2454 | D20: -126353.2454
A21: 70–74 | B21: 70050.32827 | C21: 90805.84021 | D21: -90805.84021
A22: 75–79 | B22: 44434.83096 | C22: 64142.04305 | D22: -64142.04305
A23: 80+ | B23: 33657.41803 | C23: 44207.40848 | D23: -44207.40848

Sheet SA
B1: South Africa estimatesa by age and sex, 2024
B3: Age group | C3: Male | D3: Female | E3: Total
B4: 0-4 | C4: 3023886 | D4: 2937247 | E4: 5961133
B5: 5-9 | C5: 2842136 | D5: 2761371 | E5: 5603507
B6: 10-14 | C6: 2910380 | D6: 2852339 | E6: 5762719
B7: 15-19 | C7: 2757213 | D7: 2729231 | E7: 5486444
B8: 20-24 | C8: 2369402 | D8: 2347230 | E8: 4716632
B9: 25-29 | C9: 2532609 | D9: 2519573 | E9: 5052182
B10: 30-34 | C10: 2803159 | D10: 2795107 | E10: 5598266
B11: 35-39 | C11: 2782081 | D11: 2761779 | E11: 5543860
B12: 40-44 | C12: 2237143 | D12: 2238660 | E12: 4475803
B13: 45-49 | C13: 1710434 | D13: 1752519 | E13: 3462953
B14: 50-54 | C14: 1387114 | D14: 1476823 | E14: 2863937
B15: 55-59 | C15: 1064421 | D15: 1291213 | E15: 2355634
B16: 60-64 | C16: 866481 | D16: 1134227 | E16: 2000708
B17: 65-69 | C17: 654162 | D17: 921092 | E17: 1575254
B18: 70-74 | C18: 459581 | D18: 697690 | E18: 1157271
B19: 75-79 | C19: 273676 | D19: 471861 | E19: 745537
B20: 80+ | C20: 212322 | D20: 441742 | E20: 654064
B21: Total | C21: 30886200 | D21: 32129704 | E21: 63015904
B22: Source: Stats SA, MYPE report table website 2024, accessed 7 November 2024
B23: a Figures should add up vertically and horizontally but may not, owing to rounding.

Sheet SA pyramids
B5: Male | C5: Female | D5: Female
A6: 0–4 | B6: 3023886 | C6: 2937247 | D6: =(0-C6) -> -2937247
A7: 5–9 | B7: 2842136 | C7: 2761371 | D7: -2761371
A8: 10–14 | B8: 2910380 | C8: 2852339 | D8: -2852339
A9: 15–19 | B9: 2757213 | C9: 2729231 | D9: -2729231
A10: 20–24 | B10: 2369402 | C10: 2347230 | D10: -2347230
A11: 25–29 | B11: 2532609 | C11: 2519573 | D11: -2519573
A12: 30–34 | B12: 2803159 | C12: 2795107 | D12: -2795107
A13: 35–39 | B13: 2782081 | C13: 2761779 | D13: -2761779
A14: 40–44 | B14: 2237143 | C14: 2238660 | D14: -2238660
A15: 45–49 | B15: 1710434 | C15: 1752519 | D15: -1752519
A16: 50–54 | B16: 1387114 | C16: 1476823 | D16: -1476823
A17: 55–59 | B17: 1064421 | C17: 1291213 | D17: -1291213
A18: 60–64 | B18: 866481 | C18: 1134227 | D18: -1134227
A19: 65–69 | B19: 654162 | C19: 921092 | D19: -921092
A20: 70–74 | B20: 459581 | C20: 697690 | D20: -697690
A21: 75–79 | B21: 273676 | C21: 471861 | D21: -471861
A22: 80+ | B22: 212322 | C22: 441742 | D22: -441742

Sheet Growth-Population

Sheet Annual pop grwth rates, 02-24
C3: Population growth rates
C5: Annual population growth rates, 2002-24
C7: Year | D7: Children (0-14 years) | E7: Youth (15-24 years) | F7: Elderly (60+ years) | G7: Total | AC7: Children (0-14 years) | AD7: Youth (15-24 years) | AE7: Elderly (60+ years)
C8: 2002-03 | D8: -1.52548625 | E8: 3.456930766 | F8: 1.402678329 | G8: 0.9239818896 | AB8: 2002-03 | AC8: -1.52548625 | AD8: 3.456930766 | AE8: 1.402678329
C9: 2003-04 | D9: -1.10563396 | E9: 3.315682421 | F9: 1.607462619 | G9: 1.057065566 | AB9: 2003-04 | AC9: -1.10563396 | AD9: 3.315682421 | AE9: 1.607462619
C10: 2004-05 | D10: -0.5866468453 | E10: 2.731245745 | F10: 1.717105413 | G10: 1.1633772 | AB10: 2004-05 | AC10: -0.5866468453 | AD10: 2.731245745 | AE10: 1.717105413
C11: 2005-06 | D11: -0.1949767405 | E11: 1.830562278 | F11: 1.767762648 | G11: 1.203141001 | AB11: 2005-06 | AC11: -0.1949767405 | AD11: 1.830562278 | AE11: 1.767762648
C12: 2006-07 | D12: 0.1541507125 | E12: 1.401781738 | F12: 2.144865752 | G12: 1.271344372 | AB12: 2006-07 | AC12: 0.1541507125 | AD12: 1.401781738 | AE12: 2.144865752
C13: 2007-08 | D13: 0.4716631229 | E13: 0.9661575336 | F13: 2.347596743 | G13: 1.353253245 | AB13: 2007-08 | AC13: 0.4716631229 | AD13: 0.9661575336 | AE13: 2.347596743
C14: 2008-09 | D14: 0.7092203997 | E14: 0.5577088316 | F14: 2.490097702 | G14: 1.427488696 | AB14: 2008-09 | AC14: 0.7092203997 | AD14: 0.5577088316 | AE14: 2.490097702
C15: 2009-10 | D15: 0.7954415421 | E15: 0.1525829916 | F15: 2.672064192 | G15: 1.472110987 | AB15: 2009-10 | AC15: 0.7954415421 | AD15: 0.1525829916 | AE15: 2.672064192
C16: 2010-11 | D16: 1.090947234 | E16: -0.9322176438 | F16: 2.831796591 | G16: 1.567322102 | AB16: 2010-11 | AC16: 1.090947234 | AD16: -0.9322176438 | AE16: 2.831796591
C17: 2011-12 | D17: 1.380772267 | E17: -1.305069114 | F17: 2.932800934 | G17: 1.617148837 | AB17: 2011-12 | AC17: 1.380772267 | AD17: -1.305069114 | AE17: 2.932800934
C18: 2012-13 | D18: 1.53430194 | E18: -1.634991248 | F18: 2.919510031 | G18: 1.629391731 | AB18: 2012-13 | AC18: 1.53430194 | AD18: -1.634991248 | AE18: 2.919510031
C19: 2013-14 | D19: 1.452392706 | E19: -1.586781061 | F19: 3.03889591 | G19: 1.635928594 | AB19: 2013-14 | AC19: 1.452392706 | AD19: -1.586781061 | AE19: 3.03889591
C20: 2014-15 | D20: 1.278984053 | E20: -1.305763734 | F20: 3.021778279 | G20: 1.593824856 | AB20: 2014-15 | AC20: 1.278984053 | AD20: -1.305763734 | AE20: 3.021778279
C21: 2015-16 | D21: 1.144720716 | E21: -1.400657721 | F21: 2.982546835 | G21: 1.483608561 | AB21: 2015-16 | AC21: 1.144720716 | AD21: -1.400657721 | AE21: 2.982546835
C22: 2016-17 | D22: 1.099431944 | E22: -1.360014846 | F22: 2.92787863 | G22: 1.444955795 | AB22: 2016-17 | AC22: 1.099431944 | AD22: -1.360014846 | AE22: 2.92787863
C23: 2017-18 | D23: 1.365798202 | E23: -1.362939767 | F23: 2.991007813 | G23: 1.499843824 | AB23: 2017-18 | AC23: 1.365798202 | AD23: -1.362939767 | AE23: 2.991007813
C24: 2018-19 | D24: 1.114815725 | E24: -0.4453500793 | F24: 2.969919631 | G24: 1.530175948 | AB24: 2018-19 | AC24: 1.114815725 | AD24: -0.4453500793 | AE24: 2.969919631
C25: 2019-20 | D25: 0.9019783414 | E25: 0.1911235704 | F25: 2.883840616 | G25: 1.463092303 | AB25: 2019-20 | AC25: 0.9019783414 | AD25: 0.1911235704 | AE25: 2.883840616
C26: 2020-21 | D26: 0.6760941518 | E26: 0.317249579 | F26: 1.652318952 | G26: 1.059162518 | AB26: 2020-21 | AC26: 0.6760941518 | AD26: 0.317249579 | AE26: 1.652318952
C27: 2021-22 | D27: 0.4711203775 | E27: 1.286309574 | F27: 2.214451303 | G27: 1.171553423 | AB27: 2021-22 | AC27: 0.4711203775 | AD27: 1.286309574 | AE27: 2.214451303
C28: 2022-23 | D28: 0.3038390946 | E28: 2.117096568 | F28: 2.915303682 | G28: 1.334398881 | AB28: 2022-23 | AC28: 0.3038390946 | AD28: 2.117096568 | AE28: 2.915303682
C29: 2023-24 | D29: 0.2807769889 | E29: 2.183053981 | F29: 2.835194226 | G29: 1.334744617 | AB29: 2023-24 | AC29: 0.2807769889 | AD29: 2.183053981 | AE29: 2.835194226
C30: Source: Stats SA, Mid-year population estimates 2024, Statistical release P0302, 30 July 2024, Appendix 4, p30

Sheet Av.ann.pop.growth,SC.90-23
C2: Annual population growth, selected countries, 1990-2023
C4: Country | D4: 1990 | E4: 2000 | F4: 2010 | G4: 2023
C5: Australia | D5: 0.0148 | E5: 0.0119 | F5: 0.0156 | G5: 2.370899711
C6: Botswana | D6: 0.0334 | E6: 0.0203 | F6: 0.0171 | G6: 1.698457309
C7: Brazil | D7: 0.0181 | E7: 0.0142 | F7: 0.0094 | G7: 0.5137169857
C8: Chile | D8: 0.0164 | E8: 0.0118 | F8: 0.0104 | G8: 0.1318114387
C9: China | D9: 0.0147 | E9: 0.0079 | F9: 0.0048 | G9: -0.1037945316
C10: Denmark | D10: 0.0016 | E10: 0.0033 | F10: 0.0044 | G10: 0.7411855157
C11: Egypt | D11: 0.0243 | E11: 0.0193 | F11: 0.0198 | G11: 1.543565098
C12: France | D12: 0.0051 | E12: 0.0068 | F12: 0.0049 | G12: 0.2922210855
C13: Germany | D13: 0.0086 | E13: 0.0014 | F13: -0.0015 | G13: 0.8132692499
C14: Ghana | D14: 0.0288 | E14: 0.0245 | F14: 0.0249 | G14: 1.911701717
C15: Greece | D15: 0.0106 | E15: 0.0041 | F15: 0.0013 | G15: -0.6313598464
C16: Hong Kong | D16: 0.0032 | E16: 0.0088 | F16: 0.0073 | G16: 2.553524667
C17: India | D17: 0.0208 | E17: 0.0177 | F17: 0.0135 | G17: 0.8050143013
C18: Indonesia | D18: 0.0178 | E18: 0.0138 | F18: 0.0134 | G18: 0.7351398954
C19: Ireland | D19: 0.0008 | E19: 0.0133 | F19: 0.0054 | G19: 2.602992591
C20: Israel | D20: 0.0309 | E20: 0.0264 | F20: 0.0183 | G20: 2.062804191
C21: Italy | D21: 0.0008 | E21: 0.0005 | F21: 0.0031 | G21: -0.3046333828
C22: Japan | D22: 0.0034 | E22: 0.0017 | F22: 0.0002 | G22: -0.487370782
C23: Kazakhstan | D23: 0.006 | E23: -0.003 | F23: 0.0141 | G23: 1.341580393
C24: Lithuania | D24: 0.0037 | E24: -0.007 | F24: -0.021 | G24: 1.411709108
C25: Mexico | D25: 0.0189 | E25: 0.0144 | F25: 0.0144 | G25: 0.7434345421
C26: Mozambique | D26: 0.0141 | E26: 0.0268 | F26: 0.0274 | G26: 2.775352062
C27: Nigeria | D27: 0.0258 | E27: 0.025 | F27: 0.0267 | G27: 2.379888269
C28: Pakistan | D28: 0.0296 | E28: 0.0265 | F28: 0.022 | G28: 1.957103432
C29: Philippines | D29: 0.0254 | E29: 0.0216 | F29: 0.0167 | G29: 1.527197277
C30: Poland | D30: 0.0039 | E30: -0.0104 | F30: -0.0029 | G30: -0.3697581163
C31: Russia | D31: 0.0039 | E31: -0.0042 | F31: 0.0004 | G31: -0.2852176008
C32: Saudi Arabia | D32: 0.0356 | E32: 0.023 | F32: 0.0293 | G32: 1.467407696
C33: South Africa | D33: 0.0239 | E33: 0.0141 | F33: 0.0146 | G33: 0.8654646494
C34: Spain | D34: 0.001 | E34: 0.0045 | F34: 0.0046 | G34: 1.23763541
C35: Switzerland | D35: 0.0103 | E35: 0.0056 | F35: 0.0104 | G35: 0.8407360428
C36: Turkey | D36: 0.0174 | E36: 0.0152 | F36: 0.014 | G36: 0.4064303703
C37: Uganda | D37: 0.0347 | E37: 0.0299 | F37: 0.0319 | G37: 2.781609605
C38: United Kingdom | D38: 0.003 | E38: 0.0036 | F38: 0.0078 | G38: 0.8212120398
C39: United States | D39: 0.0113 | E39: 0.0111 | F39: 0.0083 | G39: 0.4919248717
C40: Venezuela | D40: 0.024 | E40: 0.0189 | F40: 0.0145 | G40: 1.878953311
C41: Source: World Bank, wdi.databank.org, World Development Indicators, accessed 14 November 2024

Sheet Ave.ann.pop.growth.EM.90-23
C2: Annual population growth, emerging markets, 1990-2023
C4: Country | D4: 1990 | E4: 2000 | F4: 2010 | G4: 2023
C5: Brazil | D5: 0.0181 | E5: 0.0142 | F5: 0.0094 | G5: 0.5137169857
C6: Bulgaria | D6: -0.018 | E6: -0.0049 | F6: -0.0066 | G6: -0.5385936616
C7: Chile | D7: 0.0164 | E7: 0.0118 | F7: 0.0104 | G7: 0.1318114387
C8: China | D8: 0.0147 | E8: 0.0079 | F8: 0.0048 | G8: -0.1037945316
C9: Colombia | D9: 0.0197 | E9: 0.016 | F9: 0.0105 | G9: 0.4062061012
C10: Czech Republic | D10: -0.0027 | E10: -0.0028 | F10: 0.0029 | G10: 1.87114719
C11: Egypt | D11: 0.0243 | E11: 0.0193 | F11: 0.0198 | G11: 1.543565098
C12: Estonia | D12: 0.0007 | E12: 0.0048 | F12: -0.0023 | G12: 1.277941597
C13: Greece | D13: 0.0106 | E13: 0.0041 | F13: 0.0013 | G13: -0.6313598464
C14: Hungary | D14: -0.0103 | E14: -0.0026 | F14: -0.0023 | G14: -0.552969965
C15: India | D15: 0.0208 | E15: 0.0177 | F15: 0.0135 | G15: 0.8050143013
C16: Indonesia | D16: 0.0178 | E16: 0.0138 | F16: 0.0134 | G16: 0.7351398954
C17: Jordan | D17: 0.0478 | E17: 0.0179 | F17: 0.052 | G17: 0.4524887598
C18: Kuwait | D18: 0.0012 | E18: 0.0468 | F18: 0.0588 | G18: 0.9613103829
C19: Latvia | D19: -0.0014 | E19: -0.0096 | F19: -0.0208 | G19: 0.1258663447
C20: Lithuania | D20: 0.0037 | E20: -0.007 | F20: -0.021 | G20: 1.411709108
C21: Malaysia | D21: 0.0282 | E21: 0.0232 | F21: 0.0169 | G21: 1.085202316
C22: Mauritius | D22: 0.0071 | E22: 0.0098 | F22: 0.0024 | G22: -0.1174529491
C23: Mexico | D23: 0.0189 | E23: 0.0144 | F23: 0.0144 | G23: 0.7434345421
C24: Morocco | D24: 0.0184 | E24: 0.0118 | F24: 0.0129 | G24: 1.014837587
C25: Oman | D25: 0.04 | E25: 0.0058 | F25: 0.0559 | G25: 1.476837342
C26: Pakistan | D26: 0.0296 | E26: 0.0265 | F26: 0.022 | G26: 1.957103432
C27: Peru | D27: 0.0209 | E27: 0.0145 | F27: 0.0081 | G27: 0.8863238616
C28: Philippines | D28: 0.0254 | E28: 0.0216 | F28: 0.0167 | G28: 1.527197277
C29: Poland | D29: 0.0039 | E29: -0.0104 | F29: -0.0029 | G29: -0.3697581163
C30: Qatar | D30: 0.0311 | E30: 0.0378 | F30: 0.1148 | G30: 0.786068869
C31: Romania | D31: 0.0017 | E31: -0.0013 | F31: -0.0059 | G31: 0.04780185443
C32: Russia | D32: 0.0039 | E32: -0.0042 | F32: 0.0004 | G32: -0.2852176008
C33: Slovakia | D33: 0.0044 | E33: -0.0014 | F33: 0.0009 | G33: -0.09231485101
C34: South Africa | D34: 0.0239 | E34: 0.0141 | F34: 0.0146 | G34: 0.8654646494
C35: Sri Lanka | D35: 0.0127 | E35: 0.0061 | F35: 0.0068 | G35: -0.6513207701
C36: Thailand | D36: 0.014 | E36: 0.0104 | F36: 0.0049 | G36: 0.1452965113
C37: Turkey | D37: 0.0174 | E37: 0.0152 | F37: 0.014 | G37: 0.4064303703
C38: United Arab Emirates | D38: 0.0578 | E38: 0.0551 | F38: 0.0769 | G38: 0.7990547843
C39: Vietnam | D39: 0.0214 | E39: 0.011 | F39: 0.01 | G39: 0.6821729627
C40: Source: World Bank, wdi.databank.org, World Development Indicators, accessed 14 November 2024

Sheet Ave ann pop growth,Africa.90-23
B2: Annual population growth, selected African countries, 1990-2023
B4: Country | C4: 1990 | D4: 2000 | E4: 2010 | F4: 2023
B5: Algeria | C5: 0.0257 | D5: 0.0136 | E5: 0.0181 | F5: 1.554019324
B6: Angola | C6: 0.0338 | D6: 0.0328 | E6: 0.0367 | F6: 3.03099631
B7: Botswana | C7: 0.0334 | D7: 0.0203 | E7: 0.0171 | F7: 1.698457309
B8: Burundi | C8: 0.0245 | D8: 0.0177 | E8: 0.0326 | F8: 2.671478503
B9: Cameroon | C9: 0.0305 | D9: 0.0262 | E9: 0.0275 | F9: 2.591139679
B10: Central African Republic | C10: 0.022 | D10: 0.0229 | E10: 0.0113 | F10: 2.882707952
B11: Congo (DRC) | C11: 0.0337 | D11: 0.0255 | E11: 0.0333 | F11: 3.232305236
B12: Congo (Republic) | C12: 0.0273 | D12: 0.0289 | E12: 0.0305 | F12: 2.259625656
B13: Egypt | C13: 0.0243 | D13: 0.0193 | E13: 0.0198 | F13: 1.543565098
B14: Eritrea | C14: 0.0123 | D14: 0.0243 | E14: 0.0161 | F14: 1.74549258
B15: Eswatini | C15: 0.0295 | D15: 0.0113 | E15: 0.0069 | F15: 0.7587211815
B16: Ethiopia | C16: 0.0343 | D16: 0.0288 | E16: 0.0278 | F16: 2.518779054
B17: Ghana | C17: 0.0288 | D17: 0.0245 | E17: 0.0249 | F17: 1.911701717
B18: Ivory Coast | C18: 0.0361 | D18: 0.026 | E18: 0.0233 | F18: 2.498630168
B19: Kenya | C19: 0.0338 | D19: 0.0275 | E19: 0.0272 | F19: 1.966741573
B20: Lesotho | C20: 0.0221 | D20: 0.0065 | E20: 0.0027 | F20: 1.056620897
B21: Liberia | C21: -0.0146 | D21: 0.0536 | E21: 0.0359 | F21: 2.15837824
B22: Libya | C22: 0.0246 | D22: 0.0154 | E22: 0.0103 | F22: 1.110127512
B23: Madagascar | C23: 0.0289 | D23: 0.0312 | E23: 0.0279 | F23: 2.382656675
B24: Malawi | C24: 0.0356 | D24: 0.0268 | E24: 0.0287 | F24: 2.547168863
B25: Mauritius | C25: 0.0071 | D25: 0.0098 | E25: 0.0024 | F25: -0.1174529491
B26: Morocco | C26: 0.0184 | D26: 0.0118 | E26: 0.0129 | F26: 1.014837587
B27: Mozambique | C27: 0.0141 | D27: 0.0268 | E27: 0.0274 | F27: 2.775352062
B28: Namibia | C28: 0.0333 | D28: 0.0173 | E28: 0.018 | F28: 1.43721978
B29: Nigeria | C29: 0.0258 | D29: 0.025 | E29: 0.0267 | F29: 2.379888269
B30: Rwanda | C30: 0.0016 | D30: 0.056 | E30: 0.0259 | F30: 2.281901984
B31: Senegal | C31: 0.03 | D31: 0.0237 | E31: 0.0274 | F31: 2.546995953
B32: Somalia | C32: 0.0128 | D32: 0.0366 | E32: 0.0275 | F32: 3.054817406
B33: South Africa | C33: 0.0239 | D33: 0.0141 | E33: 0.0146 | F33: 0.8654646494
B34: Sudan | C34: 0.0339 | D34: 0.0241 | E34: 0.0223 | F34: 2.60018917
B35: Tanzania | C35: 0.0319 | D35: 0.0247 | E35: 0.0291 | F35: 2.919446871
B36: Tunisia | C36: 0.0224 | D36: 0.0098 | E36: 0.0104 | F36: 0.8229642721
B37: Uganda | C37: 0.0347 | D37: 0.0299 | E37: 0.0319 | F37: 2.781609605
B38: Zambia | C38: 0.0273 | D38: 0.0268 | E38: 0.0291 | F38: 2.72052847
B39: Zimbabwe | C39: 0.0271 | D39: 0.005 | E39: 0.0135 | F39: 2.091100051
B40: Source: World Bank, wdi.databank.org, World Development Indicators, accessed 14 November 2024

Sheet Provincial population

Sheet Pop by province, 96-24
B2: Breakdown by province
B4: Population by province, 1996-2024
C6: — 1996— | E6: — 2001— | G6: — 2024—
B7: Province | C7: Population | D7: Proportion of total | E7: Population | F7: Proportion of total | G7: Population | H7: Proportion of total
B8: Eastern Cape | C8: 6147244 | D8: =(C8/Total45) -> 0.1514712369 | E8: 6278651 | F8: =(E8/Total42) -> 0.1400866153 | G8: 7176230.047 | H8: 11.38796652
B9: Free State | C9: 2633504 | D9: 0.06489088578 | E9: 2706775 | F9: 0.06039242318 | G9: 3044049.548 | H9: 4.83060522
B10: Gauteng | C10: 7834125 | D10: 0.1930368477 | E10: 9388854 | F10: 0.2094801541 | G10: 15931823.53 | H10: 25.28222642
B11: KwaZulu-Natal | C11: 8572302 | D11: 0.2112259066 | E11: 9584129 | F11: 0.2138370476 | G11: 12312711.68 | H11: 19.53905427
B12: Limpopo | C12: 4576566 | D12: 0.1127689275 | E12: 4995462 | F12: 0.1114566431 | G12: 6402593.659 | H12: 10.16028217
B13: Mpumalanga | C13: 3123869 | D13: 0.07697373023 | E13: 3365554 | F13: 0.07509082263 | G13: 5057661.5 | H13: 8.026008006
B14: North West | C14: 2727223 | D14: 0.06720016988 | E14: 2984098 | F14: 0.0665799371 | G14: 4155302.868 | H14: 6.594054205
B15: Northern Cape | C15: 1011864 | D15: 0.0249328466 | E15: 991919 | F15: 0.02213127874 | G15: 1372943.133 | H15: 2.2
B16: Western Cape | C16: 3956875 | D16: 0.09749942421 | E16: 4524335 | F16: 0.100945056 | G16: 7562588.031 | H16: 12.00107838
B17: South Africaa | C17: 40583573 | D17: 1 | E17: 44819778 | F17: 1 | G17: 63015904 | H17: 100
B18: Source: Stats SA, Mid-year population estimates 2024, Statistical release P0302, 30 July 2024, Figure 1, pvii; www.census.statssa.gov.za, accessed 11 November 2023
B19: a Figures may not add up vertically, owing to rounding

Sheet Provincial populations.BC
A2: Population by province, 1996-2024
B4: 1996 | C4: 2001 | D4: 2024
A5: Eastern Cape | B5: 15 | C5: 14 | D5: 11
A6: Free State | B6: 6 | C6: 6 | D6: 5
A7: Gauteng | B7: 19 | C7: 21 | D7: 25
A8: KwaZulu-Natal | B8: 21 | C8: 21 | D8: 20
A9: Limpopo | B9: 11 | C9: 11 | D9: 10
A10: Mpumalanga | B10: 8 | C10: 8 | D10: 8
A11: North West | B11: 7 | C11: 7 | D11: 7
A12: Northern Cape | B12: 2 | C12: 2 | D12: 2
A13: Western Cape | B13: 10 | C13: 10 | D13: 12

Sheet Density

Sheet Pop density by province, 2024
B2: Population density
B4: Population density by province, 2024
B6: Province | C6: Provincial population | D6: Area km2 | E6: People per km2a
B7: Eastern Cape | C7: 7176230 | D7: 168966 | E7: =C7/D7 -> 42.47144396
B8: Free State | C8: 3044050 | D8: 129825 | E8: =C8/D8 -> 23.44733295
B9: Gauteng | C9: 15931824 | D9: 18178 | E9: 876.4343712
B10: KwaZulu-Natal | C10: 12312712 | D10: 94361 | E10: 130.4851793
B11: Limpopo | C11: 6402594 | D11: 125754 | E11: 50.91364092
B12: Mpumalanga | C12: 5057662 | D12: 76495 | E12: 66.11755017
B13: North West | C13: 4155303 | D13: 104882 | E13: 39.61883831
B14: Northern Cape | C14: 1372943 | D14: 372889 | E14: 3.681908021
B15: Western Cape | C15: 7562588 | D15: 129462 | E15: 58.41550416
B16: South Africa | C16: 63015904 | D16: 1220813 | E16: 51.61798244
B17: Source: Stats SA, Mid-year population estimates 2024, Statistical release P0302, 30 July 2024, Figure 1, pvii
B18: a CRA calculations.

Sheet Pop density.24.BC
B5: Density 2024
A6: EC | B6: 42.47144396
A7: FS | B7: 23.44733295
A8: GAU | B8: 876.4343712
A9: KZN | B9: 130.4851793
A10: LIM | B10: 50.91364092
A11: MPU | B11: 66.11755017
A12: NW | B12: 39.61883831
A13: NC | B13: 3.681908021
A14: WC | B14: 58.41550416
A15: SA | B15: 51.61798244

Sheet Geography and demographics
B2: Breakdown by municipality
B4: Geography and demographics of district and metropolitan municipalities, 2024
B6: Province/municipalitya | C6: Head officea | D6: Area km2a | E6: Populationb | F6: Population densityb
B7: Eastern Cape | C7: Bhisho | D7: 168966 | E7: 7176230 | F7: =(E7/D7) -> 42.47144396
B8: Alfred Nzo District (4) | C8: Mount Ayliff | D8: 10731 | E8: 899932 | F8: =(E8/D8) -> 83.86282732
B9: Amathole District (6) | C9: East London | D9: 21595 | E9: 844253 | F9: 39.09483677
B10: Buffalo City Metropolitan | C10: East London | D10: 2536 | E10: 880910 | F10: 347.3619874
B11: Chris Hani District (8) | C11: Queenstown | D11: 36144 | E11: 752481 | F11: 20.8189741
B12: Joe Gqabi District (4) | C12: Barkly East | D12: 25663 | E12: 368767 | F12: 14.36959825
B13: Nelson Mandela Metropolitan | C13: Gqeberha (Port Elizabeth) | D13: 1959 | E13: 1262388 | F13: 644.4042879
B14: O R Tambo District (5) | C14: Mthatha | D14: 12096 | E14: 1647014 | F14: 136.1618717
B15: Sarah Baartman District (Cacadu) (9) | C15: Gqeberha (Port Elizabeth) | D15: 58243 | E15: 520485 | F15: 8.936438714
B16: Free State | C16: Mangaung (Bloemfontein) | D16: 129825 | E16: 3044050 | F16: 23.44733295
B17: Fezile Dabi District (4) | C17: Sasolburg | D17: 20668 | E17: 539478 | F17: 26.10209019
B18: Lejweleputswa District (5) | C18: Welkom | D18: 31930 | E18: 696086 | F18: 21.80037582
B19: Mangaung Metropolitan | C19: Mangaung | D19: 6284 | E19: 854015 | F19: 135.9030872
B20: Thabo Mofutsanyana District (6) | C20: Phuthaditjhaba | D20: 33269 | E20: 817529 | F20: 24.57329646
B21: Xhariep District (4) | C21: Trompsburg | D21: 37674 | E21: 136942 | F21: 3.634920635
B22: Gauteng | C22: Johannesburg | D22: 18178 | E22: 15931824 | F22: 876.4343712
B23: Ekurhuleni Metropolitan | C23: Germiston | D23: 1975 | E23: 3987871 | F23: 2019.17519
B24: Johannesburg Metropolitan | C24: Johannesburg | D24: 1645 | E24: 5836917 | F24: 3548.277812
B25: Sedibeng District (3) | C25: Vereeniging | D25: 4173 | E25: 1060171 | F25: 254.0548766
B26: Tshwane Metropolitan | C26: Pretoria | D26: 6298 | E26: 4012961 | F26: 637.1802159
B27: West Rand District (4) | C27: Randfontein | D27: 4087 | E27: 1033904 | F27: 252.9738194
B28: KwaZulu-Natal | C28: Pietermaritzburg | D28: 94361 | E28: 12312712 | F28: 130.4851793
B29: Amajuba District (3) | C29: Newcastle | D29: 6911 | E29: 616024 | F29: 89.13673853
B30: eThekwini Metropolitan | C30: Durban | D30: 2291 | E30: 4351817 | F30: 1899.527281
B31: Harry Gwala (Sisonke) District (5) | C31: Ixopo | D31: 10547 | E31: 522357 | F31: 49.52659524
B32: Ilembe District (4) | C32: KwaDukuza (Stanger) | D32: 3269 | E32: 735621 | F32: 225.0293668
B33: Ugu District (6) | C33: Port Shepstone | D33: 5047 | E33: 837718 | F33: 165.9833564
B34: uMgungundlovu District (7) | C34: Pietermaritzburg | D34: 9513 | E34: 1226709 | F34: 128.9508042
B35: uMkhanyakude District (5) | C35: Mkuze | D35: 13855 | E35: 724278 | F35: 52.27556839
B36: uMzinyathi District (4) | C36: Dundee | D36: 8589 | E36: 620539 | F36: 72.24810805
B37: uThukela District (5) | C37: Ladysmith | D37: 11326 | E37: 740051 | F37: 65.34089705
B38: King Cetshwayo District (6) | C38: Richards Bay | D38: 8213 | E38: 1013774 | F38: 123.4352855
B39: Zululand District (5) | C39: Ulundi | D39: 14799 | E39: 923824 | F39: 62.42475843
B40: Limpopo | C40: Polokwane (Pietersburg) | D40: 125754 | E40: 6402594 | F40: 50.91364092
B41: Capricorn District (5) | C41: Polokwane | D41: 21705 | E41: 1441987 | F41: 66.43570606
B42: Mopani District ( 5) | C42: Giyani | D42: 20011 | E42: 1294456 | F42: 64.68722203
B43: Sekhukhune District (5) | C43: Groblersdal | D43: 13528 | E43: 1317946 | F43: 97.42356594
B44: Vhembe District (4) | C44: Thohoyandou | D44: 25596 | E44: 1529045 | F44: 59.73765432
B45: Waterberg District (6) | C45: Modimolle (Nylstroom) | D45: 44913 | E45: 819160 | F45: 18.23881727
B46: Mpumalanga | C46: Mbombela (Nelspruit) | D46: 76495 | E46: 5057662 | F46: 66.11755017
B47: Ehlanzeni District (5) | C47: Nelspruit | D47: 27896 | E47: 1925155 | F47: 69.0118655
B48: Gert Sibande District (7) | C48: Ermelo | D48: 31841 | E48: 1358075 | F48: 42.65176973
B49: Nkangala District (6) | C49: Middelburg | D49: 16758 | E49: 1774432 | F49: 105.8856665
B50: North West | C50: Mahikeng | D50: 104882 | E50: 4155303 | F50: 39.61883831
B51: Bojanala Platinum District (5) | C51: Rustenburg | D51: 18333 | E51: 1957447 | F51: 106.7717777
B52: Dr Kenneth Kaunda District (4) | C52: Orkney | D52: 14642 | E52: 806506 | F52: 55.08168283
B53: Dr Ruth Segomotsi Mompati District (5) | C53: Vryburg | D53: 43700 | E53: 475612 | F53: 10.88356979
B54: Ngaka Modiri Molema District (5) | C54: Mahikeng | D54: 28206 | E54: 915737 | F54: 32.4660356
B55: Northern Cape | C55: Kimberley | D55: 372889 | E55: 1372943 | F55: 3.681908021
B56: Frances Baard District (4) | C56: Kimberley | D56: 12836 | E56: 443356 | F56: 34.54004363
B57: John Taolo Gaetsewe District(3) | C57: Kuruman | D57: 27283 | E57: 289323 | F57: 10.60451563
B58: Namakwa District (6) | C58: Springbok | D58: 126836 | E58: 128082 | F58: 1.009823709
B59: Pixley Ka Seme District (8) | C59: De Aar | D59: 103410 | E59: 215769 | F59: 2.086539019
B60: ZF Mgcawu (Siyanda) District (6) | C60: Upington | D60: 102524 | E60: 296413 | F60: 2.891157192
B61: Western Cape | C61: Cape Town | D61: 129462 | E61: 7562588 | F61: 58.41550416
B62: Cape Town Metropolitan | C62: Cape Town | D62: 2445 | E62: 4976527 | F62: 2035.389366
B63: Cape Winelands District (5) | C63: Stellenbosch | D63: 12575 | E63: 1013983 | F63: 80.63483101
B64: Central Karoo District (3) | C64: Beaufort West | D64: 38854 | E64: 77883 | F64: 2.004504041
B65: Garden Route District (7) | C65: George | D65: 20968 | E65: 674960 | F65: 32.19000382
B66: Overberg District (4) | C66: Bredasdorp | D66: 12241 | E66: 326974 | F66: 26.71137979
B67: West Coast District (5) | C67: Moorreesberg | D67: 31118.67 | E67: 492261 | F67: 15.81883159
B68: SOUTH AFRICA | C68: Pretoria | D68: 1220813 | E68: 63015904 | F68: 51.61798244
B69: Source: The Gaffney Group, Gaffney’s Local Government in South Africa — Official Yearbook 2013-2015, November 2013, pp 406-1 606; Stats SA, www.statssa.gov.za, Mid-year population estimates 2024, accessed 16 November 2024
B70: a Figures may not add up vertically, owing to rounding.
B71: b Stats SA data. The population density is calculated by the CRA by dividing the population of each area by its size.

Sheet Age profile of district
B2: Age profile of district and metropolitan municipalities, 2024
B4: Province/municipalitya | C4: —Proportion of population by ageb—
C5: 0-14 | D5: 15-24 | E5: 25-34 | F5: 35-64 | G5: 65+
B6: Eastern Cape | C6: 0.3169878694 | D6: 0.1677033798 | E6: 0.1472645423 | F6: 0.2804592663 | G6: 0.08758494218
B7: Alfred Nzo District (4) | C7: 0.3993301832 | D7: 0.1848869356 | E7: 0.1434948077 | F7: 0.1989850533 | G7: 0.07330302019
B8: Amathole District (7) | C8: 0.3257108732 | D8: 0.1666991884 | E8: 0.1319407532 | F8: 0.2618551644 | G8: 0.1137940208
B9: Buffalo City Metropolitan | C9: 0.2765295621 | D9: 0.1523095288 | E9: 0.141025812 | F9: 0.3499097789 | G9: 0.08022531824
B10: Chris Hani District (8) | C10: 0.3288768198 | D10: 0.170196457 | E10: 0.1341979949 | F10: 0.2591993712 | G10: 0.107529357
B11: Joe Gqabi District (4) | C11: 0.345157972 | D11: 0.1756068837 | E11: 0.1407676067 | F11: 0.2477902934 | G11: 0.09067724417
B12: Nelson Mandela Metropolitan | C12: 0.2398864767 | D12: 0.1376611237 | E12: 0.1383657003 | F12: 0.3751662783 | G12: 0.1089204209
B13: O R Tambo District (5) | C13: 0.3520609452 | D13: 0.1908525447 | E13: 0.1712135345 | F13: 0.2237064592 | G13: 0.06216651647
B14: Sarah Baartman (Cacadu) District (9) | C14: 0.2678121754 | D14: 0.1560830229 | E14: 0.1584907061 | F14: 0.3377304729 | G14: 0.07988362273
B15: Free State | C15: 0.2762947757 | D15: 0.171323312 | E15: 0.1621792251 | F15: 0.3207894842 | G15: 0.06941320304
B16: Fezile Dabi District (4) | C16: 0.2679973337 | D16: 0.1633104756 | E16: 0.156787741 | F16: 0.3341800583 | G16: 0.07772439136
B17: Lejweleputswa District (5) | C17: 0.2603395054 | D17: 0.165474593 | E17: 0.1654572237 | F17: 0.338259333 | G17: 0.07046934485
B18: Mangaung Metropolitan | C18: 0.268062524 | D18: 0.170712322 | E18: 0.1583553937 | F18: 0.3264020644 | G18: 0.07646769587
B19: Thabo Mofutsanyana District (6) | C19: 0.2996890836 | D19: 0.1812789222 | E19: 0.1661894716 | F19: 0.2958983982 | G19: 0.05694412437
B20: Xhariep District (4) | C20: 0.3017616616 | D20: 0.1769955219 | E20: 0.1666624157 | F20: 0.2928323733 | G20: 0.06174802752
B21: Gauteng | C21: 0.231381606 | D21: 0.1466471082 | E21: 0.182491086 | F21: 0.3774084911 | G21: 0.06207170868
B22: Ekurhuleni Metropolitan | C22: 0.2424535427 | D22: 0.1499279027 | E22: 0.1803924748 | F22: 0.3686729508 | G22: 0.05855312899
B23: Johannesburg Metropolitan | C23: 0.217288509 | D23: 0.1409627208 | E23: 0.1831133587 | F23: 0.3944585145 | G23: 0.06417689702
B24: Sedibeng District (3) | C24: 0.250643843 | D24: 0.1555767318 | E24: 0.1741211984 | F24: 0.342170739 | G24: 0.07748748774
B25: Tshwane Metropolitan | C25: 0.2354377978 | D25: 0.148802866 | E25: 0.1861474245 | F25: 0.3719452324 | G25: 0.05766667931
B26: West Rand District (4) | C26: 0.2327436229 | D26: 0.1485602625 | E26: 0.1814635261 | F26: 0.3721841194 | G26: 0.06504846914
B27: KwaZulu-Natal | C27: 0.3015279222 | D27: 0.1740904144 | E27: 0.1721333005 | F27: 0.2954616199 | G27: 0.05678674303
B28: Amajuba District (3) | C28: 0.3079707561 | D28: 0.1846938443 | E28: 0.1761094869 | F28: 0.2784773569 | G28: 0.05274855573
B29: eThekwini Metropolitan | C29: 0.2414181858 | D29: 0.1578750238 | E29: 0.180599918 | F29: 0.3533542931 | G29: 0.06675257933
B30: Harry Gwala (Sisonke) District (5) | C30: 0.371135323 | D30: 0.1871017142 | E30: 0.1632565573 | F30: 0.2310977842 | G30: 0.04740862135
B31: Ilembe District (4) | C31: 0.3135589787 | D31: 0.1771897108 | E31: 0.1622031301 | F31: 0.2799467927 | G31: 0.06710138778
B32: Ugu District (6) | C32: 0.3152594148 | D32: 0.1803403483 | E32: 0.1849065198 | F32: 0.2780810185 | G32: 0.04141269856
B33: uMgungundlovu District (7) | C33: 0.2683344769 | D33: 0.1658835708 | E33: 0.1868158502 | F33: 0.3263780564 | G33: 0.0525880458
B34: uMkhanyakude District (5) | C34: 0.3652408242 | D34: 0.1865415556 | E34: 0.1608220762 | F34: 0.2403957539 | G34: 0.04699979
B35: uMzinyathi District (4) | C35: 0.3751774166 | D35: 0.1908642177 | E35: 0.1710251725 | F35: 0.2186954992 | G35: 0.04423769398
B36: uThukela District (5) | C36: 0.3494389853 | D36: 0.1879749168 | E36: 0.1575609844 | F36: 0.2514541263 | G36: 0.05357098718
B37: King Cetshwayo District (6) | C37: 0.3457566819 | D37: 0.1846241335 | E37: 0.1631503622 | F37: 0.2563740732 | G37: 0.05009474906
B38: Zululand District (5) | C38: 0.376737265 | D38: 0.1950996004 | E38: 0.1425892887 | F38: 0.2304124021 | G38: 0.0551614438
B39: Limpopo | C39: 0.3309375964 | D39: 0.173298359 | E39: 0.1535756679 | F39: 0.2799793626 | G39: 0.06220901415
B40: Capricorn District (5) | C40: 0.3304876216 | D40: 0.170476804 | E40: 0.1430666329 | F40: 0.2741529161 | G40: 0.0818160254
B41: Mopani District ( 5) | C41: 0.3317775645 | D41: 0.1763788195 | E41: 0.1482691747 | F41: 0.2824486095 | G41: 0.06112583175
B42: Sekhukhune District (5) | C42: 0.3407454611 | D42: 0.178653336 | E42: 0.1620527395 | F42: 0.2600376227 | G42: 0.05851084068
B43: Vhembe District (4) | C43: 0.3389724714 | D43: 0.1763378925 | E43: 0.1551893528 | F43: 0.2795705668 | G43: 0.04992971647
B44: Waterberg District (6) | C44: 0.2996245898 | D44: 0.1591081777 | E44: 0.1638095485 | F44: 0.3191811424 | G44: 0.05827654168
B45: Mpumalanga | C45: 0.2781781816 | D45: 0.1655724729 | E45: 0.1754563723 | F45: 0.3243135334 | G45: 0.05647943981
B46: Ehlanzeni District (5) | C46: 0.319977519 | D46: 0.1661221188 | E46: 0.1568403031 | F46: 0.2985879144 | G46: 0.0584721447
B47: Gert Sibande District (7) | C47: 0.2640601177 | D47: 0.1680383926 | E47: 0.1851771532 | F47: 0.3253197817 | G47: 0.05740455474
B48: Nkangala District (6) | C48: 0.2436337122 | D48: 0.1630888297 | E48: 0.1882138464 | F48: 0.3514541834 | G48: 0.05360942828
B49: North West | C49: 0.2791905384 | D49: 0.1643146391 | E49: 0.167662822 | F49: 0.3292262539 | G49: 0.05960574666
B50: Bojanala Platinum District (5) | C50: 0.242553678 | D50: 0.1497408817 | E50: 0.18015584 | F50: 0.3683119084 | G50: 0.05923769193
B51: Dr Kenneth Kaunda District (4) | C51: 0.2808412183 | D51: 0.1751791513 | E51: 0.1633122729 | F51: 0.3292204012 | G51: 0.05144695628
B52: Dr Ruth Segomotsi Mompati District (5) | C52: 0.3588185608 | D52: 0.1839601376 | E52: 0.1402921343 | F52: 0.2466896737 | G52: 0.0702394935
B53: Ngaka Modiri Molema District (5) | C53: 0.3146935456 | D53: 0.1756950162 | E53: 0.1590054684 | F53: 0.2885507964 | G53: 0.06205517334
B54: Northern Cape | C54: 0.2878059414 | D54: 0.1653917223 | E54: 0.1604544879 | F54: 0.3133690428 | G54: 0.0729788056
B55: Frances Baard District (4) | C55: 0.301346139 | D55: 0.1641449691 | E55: 0.1520125584 | F55: 0.3159761301 | G55: 0.06652020337
B56: John Taolo Gaetsewe District(3) | C56: 0.3075489694 | D56: 0.1738431179 | E56: 0.1592341678 | F56: 0.2920850668 | G56: 0.06728867818
B57: Namakwa District (6) | C57: 0.2349497473 | D57: 0.1535765101 | E57: 0.1623386591 | F57: 0.3506241838 | G57: 0.09851089963
B58: Pixley Ka Seme District (8) | C58: 0.2825190069 | D58: 0.1675975277 | E58: 0.1531454164 | F58: 0.3031698326 | G58: 0.09356821642
B59: ZF Mgcawu (Siyanda) District | C59: 0.2749707216 | D59: 0.1625070603 | E59: 0.1787788819 | F59: 0.3215705121 | G59: 0.06217282405
B60: Western Cape | C60: 0.2289581789 | D60: 0.1509247056 | E60: 0.1699752065 | F60: 0.37445933 | G60: 0.07568257897
B61: Cape Town Metropolitan | C61: 0.225265768 | D61: 0.1507510075 | E61: 0.170143647 | F61: 0.3799243336 | G61: 0.07391524391
B62: Cape Winelands District (5) | C62: 0.2333782807 | D62: 0.1534736411 | E62: 0.1766204513 | F62: 0.3695582443 | G62: 0.06696938269
B63: Central Karoo District (3) | C63: 0.2836969087 | D63: 0.1649680888 | E63: 0.1488966819 | F63: 0.2995224131 | G63: 0.1029159075
B64: Garden Route District (7) | C64: 0.2442060365 | D64: 0.1489103277 | E64: 0.1509170812 | F64: 0.3508801254 | G64: 0.1050864293
B65: Overberg District (4) | C65: 0.2230834728 | D65: 0.1423598992 | E65: 0.1749275781 | F65: 0.3729954595 | G65: 0.08663359044
B66: West Coast District (5) | C66: 0.2315166692 | D66: 0.1536594233 | E66: 0.1807609897 | F66: 0.3744651349 | G66: 0.05959778285
B67: SOUTH AFRICA | C67: 0.2749680303 | D67: 0.1619127133 | E67: 0.169012064 | F67: 0.3285344443 | G67: 0.06557274811
B68: Source: CRA calculations based on Stats SA data
B69: a The proportion of people in each age group as a share of the total population of each area. In 2024, for example, 31.7% of all people in the Eastern Cape were aged 0 to 14. Proportions should add up horizontally to 100% but may not, owing to rounding.

Sheet Urbanisation

Sheet Urban&ruralpopselcount.90+23
A1: Urbanisation
B3: Urban and rural population as a proportion of total population,
B4: selected countries, 1990 and 2023
C6: —Urban— | F6: —Rurala—
B7: Country | C7: 1990 | D7: 2023 | E7: Change | F7: 1990 | G7: 2023 | H7: Change
B8: Australia | C8: 0.854 | D8: 0.866 | E8: =(D8-C8)/C8 -> 0.01405152225 | F8: =(100%-C8) -> 0.146 | G8: =100%-D8 -> 0.134 | H8: =(G8-F8)/F8 -> -0.08219178082
B9: Botswana | C9: 0.419 | D9: 0.729 | E9: =(D9-C9)/C9 -> 0.7398568019 | F9: =(100%-C9) -> 0.581 | G9: =100%-D9 -> 0.271 | H9: =(G9-F9)/F9 -> -0.5335628227
B10: Brazil | C10: 0.739 | D10: 0.878 | E10: =(D10-C10)/C10 -> 0.1880920162 | F10: 0.261 | G10: 0.122 | H10: =(G10-F10)/F10 -> -0.5325670498
B11: Chile | C11: 0.833 | D11: 0.88 | E11: 0.05642256903 | F11: 0.167 | G11: 0.12 | H11: =(G11-F11)/F11 -> -0.2814371257
B12: China | C12: 0.264 | D12: 0.646 | E12: =(D12-C12)/C12 -> 1.446969697 | F12: 0.736 | G12: 0.354 | H12: =(G12-F12)/F12 -> -0.5190217391
B13: Denmark | C13: 0.848 | D13: 0.885 | E13: 0.04363207547 | F13: 0.152 | G13: 0.115 | H13: -0.2434210526
B14: Egypt | C14: 0.435 | D14: 0.431 | E14: -0.009195402299 | F14: 0.565 | G14: 0.569 | H14: 0.007079646018
B15: France | C15: 0.741 | D15: 0.818 | E15: 0.1039136302 | F15: 0.259 | G15: 0.182 | H15: -0.2972972973
B16: Germany | C16: 0.731 | D16: 0.778 | E16: 0.06429548564 | F16: 0.269 | G16: 0.222 | H16: -0.1747211896
B17: Ghana | C17: 0.364 | D17: 0.592 | E17: 0.6263736264 | F17: 0.636 | G17: 0.408 | H17: -0.358490566
B18: Greece | C18: 0.715 | D18: 0.807 | E18: 0.1286713287 | F18: 0.285 | G18: 0.193 | H18: =(G18-F18)/F18 -> -0.3228070175
B19: Hong Kong | C19: 0.995 | D19: 1 | E19: 0.005025125628 | F19: 0.005 | G19: 0 | H19: =(G19-F19)/F19 -> -1
B20: India | C20: 0.255 | D20: 0.364 | E20: 0.4274509804 | F20: 0.745 | G20: 0.636 | H20: -0.1463087248
B21: Indonesia | C21: 0.306 | D21: 0.586 | E21: 0.9150326797 | F21: 0.694 | G21: 0.414 | H21: -0.4034582133
B22: Ireland | C22: 0.569 | D22: 0.645 | E22: 0.1335676626 | F22: 0.431 | G22: 0.355 | H22: -0.1763341067
B23: Israel | C23: 0.904 | D23: 0.929 | E23: 0.02765486726 | F23: 0.096 | G23: 0.071 | H23: -0.2604166667
B24: Italy | C24: 0.667 | D24: 0.72 | E24: 0.07946026987 | F24: 0.333 | G24: 0.28 | H24: -0.1591591592
B25: Japan | C25: 0.773 | D25: 0.92 | E25: 0.1901681759 | F25: 0.227 | G25: 0.08 | H25: -0.6475770925
B26: Kazakhstan | C26: 0.563 | D26: 0.582 | E26: 0.03374777975 | F26: 0.437 | G26: 0.418 | H26: -0.04347826087
B27: Lithuania | C27: 0.676 | D27: 0.687 | E27: 0.01627218935 | F27: 0.324 | G27: 0.313 | H27: -0.03395061728
B28: Mexico | C28: 0.714 | D28: 0.816 | E28: 0.1428571429 | F28: 0.286 | G28: 0.184 | H28: -0.3566433566
B29: Mozambique | C29: 0.25 | D29: 0.388 | E29: 0.552 | F29: 0.75 | G29: 0.612 | H29: -0.184
B30: Nigeria | C30: 0.297 | D30: 0.543 | E30: 0.8282828283 | F30: 0.703 | G30: 0.457 | H30: -0.3499288762
B31: Pakistan | C31: 0.306 | D31: 0.38 | E31: 0.2418300654 | F31: 0.694 | G31: 0.62 | H31: -0.1066282421
B32: Philippines | C32: 0.47 | D32: 0.483 | E32: 0.02765957447 | F32: 0.53 | G32: 0.517 | H32: -0.02452830189
B33: Poland | C33: 0.613 | D33: 0.602 | E33: -0.01794453507 | F33: 0.387 | G33: 0.398 | H33: 0.02842377261
B34: Russia | C34: 0.734 | D34: 0.753 | E34: 0.02588555858 | F34: 0.266 | G34: 0.247 | H34: -0.07142857143
B35: Saudi Arabia | C35: 0.766 | D35: 0.85 | E35: 0.1096605744 | F35: 0.234 | G35: 0.15 | H35: -0.358974359
B36: South Africa | C36: 0.52 | D36: 0.688 | E36: 0.3230769231 | F36: 0.48 | G36: 0.312 | H36: =(G36-F36)/F36 -> -0.35
B37: Spain | C37: 0.754 | D37: 0.826 | E37: 0.09549071618 | F37: 0.246 | G37: =100%-D37 -> 0.174 | H37: -0.2926829268
B38: Switzerland | C38: 0.739 | D38: 0.742 | E38: 0.004059539919 | F38: 0.261 | G38: 0.258 | H38: -0.01149425287
B39: Turkey | C39: 0.592 | D39: 0.775 | E39: 0.3091216216 | F39: 0.408 | G39: 0.225 | H39: -0.4485294118
B40: Uganda | C40: 0.111 | D40: 0.268 | E40: 1.414414414 | F40: 0.889 | G40: 0.732 | H40: -0.1766029246
B41: United Kingdom | C41: 0.781 | D41: 0.846 | E41: 0.08322663252 | F41: 0.219 | G41: =100%-D41 -> 0.154 | H41: -0.296803653
B42: United States | C42: 0.753 | D42: 0.833 | E42: 0.1062416999 | F42: 0.247 | G42: 0.167 | H42: -0.3238866397
B43: Venezuela | C43: 0.843 | D43: 0.884 | E43: 0.04863582444 | F43: 0.157 | G43: 0.116 | H43: =(G43-F43)/F43 -> -0.2611464968
B44: Source: World Bank, wdi.databank.org, World Development Indicators, accessed 14 November 2024
B45: a CRA calculations.

Sheet Urban&ruralpopemerg mark.90+23
B2: Urban and rural populations as a proportion of total population,
B3: emerging markets, 1990 and 2023
C5: —Urban— | F5: —Rurala—
B6: Country | C6: 1990 | D6: 2023 | E6: Change | F6: 1990 | G6: 2023 | H6: Change
B7: Brazil | C7: 0.739 | D7: 0.878 | E7: =(D7-C7)/C7 -> 0.1880920162 | F7: =(100%-C7) -> 0.261 | G7: =(100%-D7) -> 0.122 | H7: =(G7-F7)/F7 -> -0.5325670498
B8: Bulgaria | C8: 0.664 | D8: 0.767 | E8: =(D8-C8)/C8 -> 0.1551204819 | F8: 0.336 | G8: =(100%-D8) -> 0.233 | H8: =(G8-F8)/F8 -> -0.306547619
B9: Chile | C9: 0.833 | D9: 0.88 | E9: 0.05642256903 | F9: 0.167 | G9: 0.12 | H9: -0.2814371257
B10: China | C10: 0.264 | D10: 0.646 | E10: 1.446969697 | F10: 0.736 | G10: 0.354 | H10: -0.5190217391
B11: Colombia | C11: 0.695 | D11: 0.824 | E11: 0.1856115108 | F11: 0.305 | G11: 0.176 | H11: -0.4229508197
B12: Czech Republic | C12: 0.752 | D12: 0.746 | E12: -0.007978723404 | F12: 0.248 | G12: 0.254 | H12: 0.02419354839
B13: Egypt | C13: 0.435 | D13: 0.431 | E13: -0.009195402299 | F13: 0.565 | G13: 0.569 | H13: 0.007079646018
B14: Estonia | C14: 0.712 | D14: 0.698 | E14: -0.01966292135 | F14: 0.288 | G14: 0.302 | H14: 0.04861111111
B15: Greece | C15: 0.715 | D15: 0.807 | E15: 0.1286713287 | F15: 0.285 | G15: 0.193 | H15: -0.3228070175
B16: Hungary | C16: 0.658 | D16: 0.729 | E16: 0.1079027356 | F16: 0.342 | G16: 0.271 | H16: -0.2076023392
B17: India | C17: 0.255 | D17: 0.364 | E17: 0.4274509804 | F17: 0.745 | G17: 0.636 | H17: -0.1463087248
B18: Indonesia | C18: 0.306 | D18: 0.586 | E18: 0.9150326797 | F18: 0.694 | G18: 0.414 | H18: -0.4034582133
B19: Jordan | C19: 0.733 | D19: 0.92 | E19: 0.2551159618 | F19: 0.267 | G19: 0.08 | H19: -0.7003745318
B20: Kuwait | C20: 0.98 | D20: 1 | E20: 0.02040816327 | F20: 0.02 | G20: 0 | H20: -1
B21: Latvia | C21: 0.693 | D21: 0.687 | E21: -0.008658008658 | F21: 0.307 | G21: 0.313 | H21: 0.01954397394
B22: Lithuania | C22: 0.676 | D22: 0.687 | E22: 0.01627218935 | F22: 0.324 | G22: 0.313 | H22: -0.03395061728
B23: Malaysia | C23: 0.498 | D23: 0.787 | E23: 0.5803212851 | F23: 0.502 | G23: 0.213 | H23: -0.5756972112
B24: Mauritius | C24: 0.439 | D24: 0.409 | E24: -0.06833712984 | F24: 0.561 | G24: 0.591 | H24: 0.05347593583
B25: Mexico | C25: 0.714 | D25: 0.816 | E25: 0.1428571429 | F25: 0.286 | G25: 0.184 | H25: -0.3566433566
B26: Morocco | C26: 0.484 | D26: 0.651 | E26: 0.3450413223 | F26: 0.516 | G26: 0.349 | H26: =(G26-F26)/F26 -> -0.3236434109
B27: Oman | C27: 0.661 | D27: 0.884 | E27: 0.3373676248 | F27: 0.339 | G27: 0.116 | H27: -0.6578171091
B28: Pakistan | C28: 0.306 | D28: 0.38 | E28: 0.2418300654 | F28: 0.694 | G28: 0.62 | H28: -0.1066282421
B29: Peru | C29: 0.689 | D29: 0.789 | E29: 0.145137881 | F29: 0.311 | G29: 0.211 | H29: -0.3215434084
B30: Philippines | C30: 0.47 | D30: 0.483 | E30: =(D30-C30)/C30 -> 0.02765957447 | F30: 0.53 | G30: 0.517 | H30: -0.02452830189
B31: Poland | C31: 0.613 | D31: 0.602 | E31: =(D31-C31)/C31 -> -0.01794453507 | F31: 0.387 | G31: 0.398 | H31: 0.02842377261
B32: Qatar | C32: 0.928 | D32: 0.994 | E32: 0.07112068966 | F32: 0.072 | G32: =(100%-D32) -> 0.006 | H32: -0.9166666667
B33: Romania | C33: 0.532 | D33: 0.547 | E33: 0.02819548872 | F33: 0.468 | G33: 0.453 | H33: -0.03205128205
B34: Russia | C34: 0.734 | D34: 0.753 | E34: 0.02588555858 | F34: 0.266 | G34: 0.247 | H34: -0.07142857143
B35: Slovakia | C35: 0.565 | D35: 0.54 | E35: -0.04424778761 | F35: 0.435 | G35: 0.46 | H35: 0.05747126437
B36: South Africa | C36: 0.52 | D36: 0.688 | E36: 0.3230769231 | F36: =(100%-C36) -> 0.48 | G36: 0.312 | H36: -0.35
B37: Sri Lanka | C37: 0.185 | D37: 0.192 | E37: 0.03783783784 | F37: =(100%-C37) -> 0.815 | G37: 0.808 | H37: -0.008588957055
B38: Thailand | C38: 0.294 | D38: 0.536 | E38: 0.8231292517 | F38: 0.706 | G38: 0.464 | H38: -0.342776204
B39: Turkey | C39: 0.592 | D39: 0.775 | E39: 0.3091216216 | F39: 0.408 | G39: 0.225 | H39: -0.4485294118
B40: United Arab Emirates | C40: 0.791 | D40: 0.878 | E40: 0.1099873578 | F40: 0.209 | G40: 0.122 | H40: =(G40-F40)/F40 -> -0.4162679426
B41: Venezuela | C41: 0.843 | D41: 0.884 | E41: 0.04863582444 | F41: 0.157 | G41: 0.116 | H41: -0.2611464968
B42: Vietnam | C42: 0.203 | D42: 0.395 | E42: 0.9458128079 | F42: 0.797 | G42: =(100%-D42) -> 0.605 | H42: =(G42-F42)/F42 -> -0.2409033877
B43: Source: World Bank, wdi.databank.org, World Development Indicators, accessed 14 November 2024
B44: a CRA calculations.

Sheet Urban&ruralpop.Africa.90+23
B2: Urban and rural populations as a proportion of total population,
B3: selected African countries, 1990 and 2023
C5: —Urban— | F5: —Rurala—
B6: Country | C6: 1990 | D6: 2023 | E6: Change | F6: 1990 | G6: 2023 | H6: Change
B7: Algeria | C7: 0.521 | D7: 0.753 | E7: =(D7-C7)/C7 -> 0.4452975048 | F7: =(100%-C7) -> 0.479 | G7: =(100%-D7) -> 0.247 | H7: =(G7-F7)/F7 -> -0.48434238
B8: Angola | C8: 0.371 | D8: 0.687 | E8: 0.8517520216 | F8: 0.629 | G8: =(100%-D8) -> 0.313 | H8: =(G8-F8)/F8 -> -0.5023847377
B9: Botswana | C9: 0.419 | D9: 0.729 | E9: 0.7398568019 | F9: 0.581 | G9: 0.271 | H9: -0.5335628227
B10: Burundi | C10: 0.063 | D10: 0.148 | E10: 1.349206349 | F10: 0.937 | G10: 0.852 | H10: -0.09071504803
B11: Cameroon | C11: 0.397 | D11: 0.593 | E11: 0.4937027708 | F11: 0.603 | G11: 0.407 | H11: -0.3250414594
B12: Central African Republic | C12: 0.368 | D12: 0.436 | E12: 0.1847826087 | F12: 0.632 | G12: 0.564 | H12: -0.1075949367
B13: Congo (DRC) | C13: 0.306 | D13: 0.474 | E13: 0.5490196078 | F13: 0.694 | G13: 0.526 | H13: -0.242074928
B14: Congo (Republic) | C14: 0.543 | D14: 0.692 | E14: 0.2744014733 | F14: 0.457 | G14: 0.308 | H14: -0.3260393873
B15: Egypt | C15: 0.435 | D15: 0.431 | E15: -0.009195402299 | F15: 0.565 | G15: 0.569 | H15: 0.007079646018
B16: Eritrea | C16: 0.189 | D16: 0.433 | E16: =(D16-C16)/C16 -> 1.291005291 | F16: 0.811 | G16: 0.567 | H16: -0.3008631319
B17: Eswatini | C17: 0.202 | D17: 0.248 | E17: 0.2277227723 | F17: =(100%-C17) -> 0.798 | G17: 0.752 | H17: -0.05764411028
B18: Ethiopia | C18: 0.126 | D18: 0.232 | E18: 0.8412698413 | F18: 0.874 | G18: =(100%-D18) -> 0.768 | H18: -0.1212814645
B19: Ghana | C19: 0.364 | D19: 0.592 | E19: 0.6263736264 | F19: 0.636 | G19: 0.408 | H19: -0.358490566
B20: Ivory Coast | C20: 0.393 | D20: 0.531 | E20: 0.3511450382 | F20: 0.607 | G20: 0.469 | H20: -0.2273476112
B21: Kenya | C21: 0.167 | D21: 0.295 | E21: 0.7664670659 | F21: 0.833 | G21: 0.705 | H21: -0.1536614646
B22: Lesotho | C22: 0.14 | D22: 0.304 | E22: 1.171428571 | F22: 0.86 | G22: 0.696 | H22: -0.1906976744
B23: Liberia | C23: 0.554 | D23: 0.536 | E23: -0.03249097473 | F23: 0.446 | G23: 0.464 | H23: 0.04035874439
B24: Libya | C24: 0.757 | D24: 0.816 | E24: 0.07793923382 | F24: 0.243 | G24: 0.184 | H24: -0.2427983539
B25: Madagascar | C25: 0.236 | D25: 0.406 | E25: 0.7203389831 | F25: 0.764 | G25: 0.594 | H25: -0.222513089
B26: Malawi | C26: 0.116 | D26: 0.183 | E26: 0.5775862069 | F26: 0.884 | G26: 0.817 | H26: -0.0757918552
B27: Mauritius | C27: 0.439 | D27: 0.409 | E27: -0.06833712984 | F27: 0.561 | G27: 0.591 | H27: 0.05347593583
B28: Morocco | C28: 0.484 | D28: 0.651 | E28: 0.3450413223 | F28: 0.516 | G28: 0.349 | H28: -0.3236434109
B29: Mozambique | C29: 0.25 | D29: 0.388 | E29: 0.552 | F29: 0.75 | G29: 0.612 | H29: -0.184
B30: Namibia | C30: 0.277 | D30: 0.549 | E30: 0.9819494585 | F30: 0.723 | G30: 0.451 | H30: -0.3762102351
B31: Nigeria | C31: 0.297 | D31: 0.543 | E31: 0.8282828283 | F31: 0.703 | G31: 0.457 | H31: -0.3499288762
B32: Rwanda | C32: 0.054 | D32: 0.179 | E32: 2.314814815 | F32: 0.946 | G32: 0.821 | H32: -0.1321353066
B33: Senegal | C33: 0.389 | D33: 0.496 | E33: 0.2750642674 | F33: 0.611 | G33: 0.504 | H33: -0.1751227496
B34: Somalia | C34: 0.297 | D34: 0.479 | E34: 0.6127946128 | F34: 0.703 | G34: 0.521 | H34: -0.2588904694
B35: South Africa | C35: 0.52 | D35: 0.688 | E35: 0.3230769231 | F35: 0.48 | G35: 0.312 | H35: -0.35
B36: Sudan | C36: 0.286 | D36: 0.363 | E36: 0.2692307692 | F36: 0.714 | G36: 0.637 | H36: =(G36-F36)/F36 -> -0.1078431373
B37: Tanzania | C37: 0.189 | D37: 0.374 | E37: 0.9788359788 | F37: =(100%-C37) -> 0.811 | G37: 0.626 | H37: -0.2281134402
B38: Tunisia | C38: 0.579 | D38: 0.705 | E38: 0.2176165803 | F38: 0.421 | G38: 0.295 | H38: -0.2992874109
B39: Uganda | C39: 0.111 | D39: 0.268 | E39: =(D39-C39)/C39 -> 1.414414414 | F39: 0.889 | G39: 0.732 | H39: -0.1766029246
B40: Zambia | C40: 0.394 | D40: 0.463 | E40: 0.1751269036 | F40: 0.606 | G40: 0.537 | H40: -0.1138613861
B41: Zimbabwe | C41: 0.29 | D41: 0.325 | E41: 0.1206896552 | F41: 0.71 | G41: =(100%-D41) -> 0.675 | H41: -0.04929577465
B42: Source: World Bank, wdi.databank.org, World Development Indicators, accessed 14 November 2024
B43: a CRA calculations.

Sheet MIGRATION

Sheet Internal migration by province
B1: Internal migration
B3: Internal migrationa by province, 2016-21
B5: Province | C5: Eastern Cape | D5: Free State | E5: Gauteng | F5: KwaZulu-Natal | G5: Limpopo | H5: Mpumalanga | I5: North West | J5: Northern Cape | K5: Western Cape | L5: Out-migration | M5: In-migration | N5: Net migration | P5: —
B7: Eastern Cape | C7: — | D7: 14286.08035 | E7: 139395.2985 | F7: 106258.3222 | G7: 15064.88303 | H7: 17825.16563 | I7: 20860.59515 | J7: 8727.358777 | K7: 172096.9472 | L7: 494514.6507 | M7: 197285.1247 | N7: -297229.526
B8: Free State | C8: 8695.338091 | D8: — | E8: 77029.64093 | F8: 9294.572882 | G8: 6859.08193 | H8: 11122.27497 | I8: 21023.83068 | J8: 9428.719121 | K8: 13085.8887 | L8: 156539.3473 | M8: 145902.4757 | N8: -10636.87162
B9: Gauteng | C9: 52757.28345 | D9: 44887.10625 | E9: — | F9: 103394.5499 | G9: 84864.06892 | H9: 85004.27816 | I9: 99989.37564 | J9: 11652.79766 | K9: 104834.0396 | L9: 587383.4995 | M9: 1452721.369 | N9: 865337.8698
B10: KwaZulu-Natal | C10: 27673.66635 | D10: 13928.35617 | E10: 185424.9501 | F10: — | G10: 9930.280009 | H10: 39655.38555 | I10: 12783.30434 | J10: 9171.058547 | K10: 36598.48041 | L10: 335165.4815 | M10: 338159.7727 | N10: 2994.291232
B11: Limpopo | C11: 4839.388084 | D11: 6282.8093 | E11: 314937.9169 | F11: 8868.840539 | G11: — | H11: 50633.86882 | I11: 34508.64234 | J11: 2769.181223 | K11: 12565.39312 | L11: 435406.0403 | M11: 273565.0453 | N11: -161840.9951
B12: Mpumalanga | C12: 5497.373338 | D12: 5679.036941 | E12: 127136.9012 | F12: 13749.31701 | G12: 25513.72074 | H12: — | I12: 14609.05606 | J12: 2531.567171 | K12: 10657.24862 | L12: 205374.2211 | M12: 295897.6096 | N12: 90523.38848
B13: North West | C13: 5199.740282 | D13: 13061.6943 | E13: 93961.727 | F13: 5486.212685 | G13: 20637.11908 | H13: 11918.0398 | I13: — | J13: 23647.49953 | K13: 9134.480099 | L13: 183046.5128 | M13: 295574.122 | N13: 112527.6092
B14: Northern Cape | C14: 4702.961219 | D14: 9690.218767 | E14: 18359.89287 | F14: 6172.837654 | G14: 2856.36396 | H14: 4888.990491 | I14: 13834.39242 | J14: — | K14: 19408.81949 | L14: 79914.47687 | M14: 88004.03201 | N14: 8089.555144
B15: Western Cape | C15: 52561.5482 | D15: 8342.324216 | E15: 64546.03837 | F15: 13526.22709 | G15: 5978.576028 | H15: 7534.401276 | I15: 8696.092537 | J15: 13177.42203 | K15: — | L15: 174362.6297 | M15: 491324.3086 | N15: 316961.6788
B16: Outside SA (net migration) | C16: 35357.82574 | D16: 29744.84939 | E16: 431929.0034 | F16: 71408.89283 | G16: 101860.9516 | H16: 67315.20489 | I16: 69268.83283 | J16: 6898.427951 | K16: 112943.0114 | L16: — | M16: — | N16: —
B17: Source: Stats SA, Mid-year population estimates 2024, Statistical release P0302, 30 July 2024, Table 8, p19
B18: a The figures in the table show the number of people moving in and out of each province. For example, 14 286 people moved from the Eastern Cape to the Free State, while 145 902 moved in to the Free State from elsewhere.
B19: b CRA calculations.
B20: Internal migrationa by province, 2021-26
B22: Province | C22: Eastern Cape | D22: Free State | E22: Gauteng | F22: KwaZulu-Natal | G22: Limpopo | H22: Mpumalanga | I22: North West | J22: Northern Cape | K22: Western Cape | L22: Out-migration | M22: In-migration | N22: Net migration
B24: Eastern Cape | C24: — | D24: 14573.23927 | E24: 142280.782 | F24: 110129.6806 | G24: 15373.53454 | H24: 18182.8903 | I24: 20876.3236 | J24: 8900.712584 | K24: 175614.806 | L24: 505931.9689 | M24: 196864.3844 | N24: -309067.5845
B25: Free State | C25: 9002.982694 | D25: — | E25: 79817.28784 | F25: 9628.97368 | G25: 7100.286294 | H25: 11520.92669 | I25: 21732.18499 | J25: 9767.756603 | K25: 13555.49147 | L25: 162125.8903 | M25: 145586.9477 | N25: -16538.94256
B26: Gauteng | C26: 52655.61719 | D26: 45765.78835 | E26: — | F26: 115059.9715 | G26: 90826.3751 | H26: 91259.2144 | I26: 111292.9709 | J26: 12429.66541 | K26: 116556.8623 | L26: 635846.4651 | M26: 1381023.919 | N26: 745177.4537
B27: KwaZulu-Natal | C27: 29413.6109 | D27: 14794.6077 | E27: 164329.4136 | F27: — | G27: 10554.1842 | H27: 42176.91233 | I27: 13598.20563 | J27: 9745.324909 | K27: 38889.77215 | L27: 323502.0314 | M27: 344247.2209 | N27: 20745.18953
B28: Limpopo | C28: 5123.02017 | D28: 6648.972738 | E28: 313711.9683 | F28: 9394.455968 | G28: — | H28: 53606.92443 | I28: 36540.27191 | J28: 2935.829901 | K28: 13294.83975 | L28: 441256.2832 | M28: 266572.4771 | N28: -174683.8061
B29: Mpumalanga | C29: 5954.225529 | D29: 6149.443547 | E29: 137861.1585 | F29: 14882.70962 | G29: 27640.77787 | H29: — | I29: 15828.42913 | J29: 2743.569211 | K29: 11540.91683 | L29: 222601.2303 | M29: 297917.2306 | N29: 75316.00032
B30: North West | C30: 5647.50899 | D30: 14185.75326 | E30: 101953.761 | F30: 5957.609574 | G30: 22416.54415 | H30: 12949.83951 | I30: — | J30: 25684.92851 | K30: 9919.556866 | L30: 198715.5018 | M30: 300470.5728 | N30: 101755.0709
B31: Northern Cape | C31: 4996.984199 | D31: 10295.81067 | E31: 19533.05269 | F31: 6563.943558 | G31: 3037.002617 | H31: 5197.836847 | I31: 14705.13305 | J31: — | K31: 20626.87088 | L31: 84956.63451 | M31: 91685.85427 | N31: 6729.219761
B32: Western Cape | C32: 55147.21029 | D32: 8831.963895 | E32: 67846.34096 | F32: 14214.21879 | G32: 6284.788051 | H32: 7946.341599 | I32: 9209.655363 | J32: 13841.16228 | K32: — | L32: 183321.6812 | M32: 492427.0802 | N32: 309105.399
B33: Outside SA (net migration) | C33: 28923.2244 | D33: 24341.36827 | E33: 353690.1539 | F33: 58415.65762 | G33: 83338.98428 | H33: 55076.34448 | I33: 56687.39819 | J33: 5636.90486 | K33: 92427.96399 | L33: 758538 | M33: — | N33: —
B34: Source: Stats SA, Mid-year population estimates 2024,Statistical release P0302, 30 July 2024, Table 9, p20

Sheet Fertility

Sheet Fertility rate, 2002-24
B2: DEMOGRAPHIC INDICATORS
B4: Fertility rate
B6: Fertility ratea, 2002-24
C8: Year | D8: Rate | E8: GDP per headb
C9: 2002 | D9: 2.55 | E9: 65118
C10: 2003 | D10: 2.48 | E10: 66121
C11: 2004 | D11: 2.62 | E11: 68391
C12: 2005 | D12: 2.74 | E12: 71186
C13: 2006 | D13: 2.77 | E13: 74292
C14: 2007 | D14: 2.77 | E14: 77299
C15: 2008 | D15: 2.78 | E15: 78709
C16: 2009 | D16: 2.74 | E16: 76407
C17: 2010 | D17: 2.65 | E17: 77568
C18: 2011 | D18: 2.64 | E18: 78811
C19: 2012 | D19: 2.61 | E19: 79464
C20: 2013 | D20: 2.56 | E20: 80191
C21: 2014 | D21: 2.52 | E21: 80077
C22: 2015 | D22: 2.45 | E22: 79917
C23: 2016 | D23: 2.33 | E23: 79264
C24: 2017 | D24: 2.28 | E24: 78988
C25: 2018 | D25: 2.34 | E25: 79017
C26: 2019 | D26: 2.38 | E26: 78061
C27: 2020 | D27: 2.42 | E27: 72269
C28: 2021 | D28: 2.42 | E28: 75069
C29: 2022 | D29: 2.42 | E29: 75743
C30: 2023 | D30: 2.42 | E30: 75548
C31: 2024 | D31: 2.41 | E31: N/A
C32: 2002-24 | D32: =(D31-D9)/D9 -> -0.05490196078 | E32: —
B33: Source: Stats SA, Mid-year population estimates 2024, Statistical release P0302, 30 July 2024, Table 2, p4;South African Reserve Bank (SARB), www.resbank.co.za, time series data, accessed 17 November 2024
B34: a The average number of children born alive to a woman during her child-bearing span (15-49 years) if she were to bear children. For example, a girl born in 2002 would be expected to have, on average, 2.45 children in her lifetime if she bore children.
B35: b At constant 2015 prices.
B36: Please refer to the ‘Families’ section of this chapter for information on teenage fertility.
B37: N/A — Not available.

Sheet Fertility rate by prov.01-26
B2: Fertility ratea by province, 2001-26
B4: Province | C4: 2001-06 | D4: 2006-11 | E4: 2011-16 | F4: 2016-21 | G4: 2021-26 | H4: Change 2001-26 | L4: 2001-06 | M4: 2021-26
B6: Eastern Cape | C6: 3.121263142 | D6: 3.167874406 | E6: 3.002208215 | F6: 2.906134083 | G6: 2.940585733 | H6: =(G6-C6)/C6 -> -0.0578859907 | K6: EC | L6: 3.121263142 | M6: 2.940585733
B7: Free State | C7: 2.738608549 | D7: 2.839312562 | E7: 2.534386047 | F7: 2.337505477 | G7: 2.382255219 | H7: =(G7-C7)/C7 -> -0.1301220395 | K7: FS | L7: 2.738608549 | M7: 2.382255219
B8: Gauteng | C8: 2.23425522 | D8: 2.337356844 | E8: 2.043137168 | F8: 1.878991747 | G8: 1.885273334 | H8: -0.1561960705 | K8: GAU | L8: 2.23425522 | M8: 1.885273334
B9: KwaZulu-Natal | C9: 2.961102347 | D9: 3.023929763 | E9: 2.705335363 | F9: 2.548166294 | G9: 2.578333294 | H9: -0.1292657287 | K9: KZN | L9: 2.961102347 | M9: 2.578333294
B10: Limpopo | C10: 3.258060994 | D10: 3.459318367 | E10: 3.290303824 | F10: 3.182413452 | G10: 3.178887163 | H10: -0.02430090518 | K10: LIM | L10: 3.258060994 | M10: 3.178887163
B11: Mpumalanga | C11: 2.802797041 | D11: 2.887413284 | E11: 2.557663568 | F11: 2.376235878 | G11: 2.403217449 | H11: -0.1425645832 | K11: MPU | L11: 2.802797041 | M11: 2.403217449
B12: North West | C12: 3.047989978 | D12: 3.092358372 | E12: 2.763046677 | F12: 2.601070392 | G12: 2.61380171 | H12: -0.1424506874 | K12: NW | L12: 3.047989978 | M12: 2.61380171
B13: Northern Cape | C13: 3.066760884 | D13: 3.098190745 | E13: 2.959799914 | F13: 2.747104288 | G13: 2.761342865 | H13: -0.0995897726 | K13: NC | L13: 3.066760884 | M13: 2.761342865
B14: Western Cape | C14: 2.268451704 | D14: 2.360150885 | E14: 2.108551976 | F14: 1.935484484 | G14: 1.951355259 | H14: =(G14-C14)/C14 -> -0.1397854073 | K14: WC | L14: 2.268451704 | M14: 1.951355259
B15: Source: Stats SA, Mid-year population estimates 2024, Statistical release P0302, 30 July 2024, Figure 8, p16
B16: a The average number of children born alive to a woman during her child-bearing span (15-49 years) if she were to bear children. For example, girls born in the Eastern Cape between 2016 and 2021 would in future be expected to have an average of 2.91 children each, if they bear children.

Sheet Fertility rate,intern.comp.22
B2: Total fertility ratea, international comparisons, 2022
B4: —Selected countries— | D4: —Emerging markets— | F4: —Selected African countries—
B5: Australia | C5: 1.63 | D5: Brazil | E5: 1.626 | F5: Algeria | G5: 2.829
B6: Botswana | C6: 2.754 | D6: Bulgaria | E6: 1.78 | F6: Angola | G6: 5.209
B7: Chile | C7: 1.539 | D7: Chile | E7: 1.539 | F7: Burundi | G7: 4.98
B8: China | C8: 1.175 | D8: China | E8: 1.175 | F8: Cameroon | G8: 4.383
B9: Denmark | C9: 1.55 | D9: Colombia | E9: 1.692 | F9: Central African Republic | G9: 5.918
B10: Egypt | C10: 2.878 | D10: Czech Republic | E10: 1.617746603 | F10: Congo (DRC) | G10: 6.106
B11: France | C11: 1.794 | D11: Egypt | E11: 2.878 | F11: Congo (Republic) | G11: 4.095
B12: Germany | C12: 1.455 | D12: Estonia | E12: 1.41 | F12: Eritrea | G12: 3.786
B13: Greece | C13: 1.43 | D13: Hungary | E13: 1.52 | F13: Eswatini | G13: 2.785
B14: Hong Kong | C14: 0.701 | D14: India | E14: 2.011 | F14: Ethiopia | G14: 4.063
B15: India | C15: 2.011 | D15: Indonesia | E15: 2.153 | F15: Ghana | G15: 3.507
B16: Indonesia | C16: 2.153 | D16: Jordan | E16: 2.786 | F16: Ivory Coast | G16: 4.342
B17: Ireland | C17: 1.7 | D17: Kuwait | E17: 2.092 | F17: Kenya | G17: 3.296
B18: Israel | C18: 2.89 | D18: Latvia | E18: 1.47 | F18: Lesotho | G18: 2.98
B19: Italy | C19: 1.24 | D19: Lithuania | E19: 1.27 | F19: Liberia | G19: 4.016
B20: Japan | C20: 1.26 | D20: Malaysia | E20: 1.787 | F20: Libya | G20: 2.402
B21: Kazakhstan | C21: 3.05 | D21: Mauritius | E21: 1.32 | F21: Madagascar | G21: 3.791
B22: Lithuania | C22: 1.27 | D22: Mexico | E22: 1.803 | F22: Malawi | G22: 3.849
B23: Mexico | C23: 1.803 | D23: Morocco | E23: 2.299 | F23: Mauritius | G23: 1.32
B24: Nigeria | C24: 5.143 | D24: Oman | E24: 2.567 | F24: Morocco | G24: 2.299
B25: Pakistan | C25: 3.41 | D25: Pakistan | E25: 3.41 | F25: Mozambique | G25: 4.561
B26: Philippines | C26: 2.725 | D26: Peru | E26: 2.164 | F26: Namibia | G26: 3.248
B27: Poland | C27: 1.261 | D27: Philippines | E27: 2.725 | F27: Nigeria | G27: 5.143
B28: Russia | C28: 1.416 | D28: Poland | E28: 1.261 | F28: Rwanda | G28: 3.749
B29: Saudi Arabia | C29: 2.393 | D29: Qatar | E29: 1.781 | F29: Senegal | G29: 4.314
B30: South Africa | C30: 2.341 | D30: Romania | E30: 1.81 | F30: Somalia | G30: 6.202
B31: Spain | C31: 1.16 | D31: Russia | E31: 1.416 | F31: South Africa | G31: 2.341
B32: Switzerland | C32: 1.39 | D32: Slovakia | E32: 1.57 | F32: Sudan | G32: 4.384
B33: Turkey | C33: 1.882 | D33: South Africa | E33: 2.341 | F33: Tanzania | G33: 4.661
B34: Uganda | C34: 4.468 | D34: Sri Lanka | E34: 1.974 | F34: Tunisia | G34: 2.064
B35: United Kingdom | C35: 1.57 | D35: Thailand | E35: 1.317 | F35: Uganda | G35: 4.468
B36: United States | C36: 1.665 | D36: Turkey | E36: 1.882 | F36: Zambia | G36: 4.242
B37: Venezuela | C37: 2.188 | D37: United Arab Emirates | E37: 1.443 | F37: Zimbabwe | G37: 3.437
B38: Source: World Bank, wdi.databank.org, World Development Indicators, accessed 13 November 2024
B39: a The number of children a woman would have by the age of 50. For example, girls born in South Africa in 2022 were expected to have an average of 2.34 children during their child-bearing years.
B40: For more information on teenage fertility, please refer to the Families section in this chapter.

Sheet Births

Sheet Birth rate, 2002-24
C2: Births
C4: Birth rate ͣ, 2002-24
C6: Year | D6: Rate
C7: 2002 | D7: 21.3
C8: 2003 | D8: 20.8
C9: 2004 | D9: 22.2
C10: 2005 | D10: 23.3
C11: 2006 | D11: 23.7
C12: 2007 | D12: 23.9
C13: 2008 | D13: 24.1
C14: 2009 | D14: 23.8
C15: 2010 | D15: 23.2
C16: 2011 | D16: 23.1
C17: 2012 | D17: 22.8
C18: 2013 | D18: 22.3
C19: 2014 | D19: 21.9
C20: 2015 | D20: 21.3
C21: 2016 | D21: 20.1
C22: 2017 | D22: 19.7
C23: 2018 | D23: 20
C24: 2019 | D24: 20.2
C25: 2020 | D25: 20.4
C26: 2021 | D26: 20.3
C27: 2022 | D27: 20.1
C28: 2023 | D28: 19.8
C29: 2024 | D29: 19.6
C30: 2002-24 | D30: =(D29-D7)/D7 -> -0.07981220657
B31: Source: Stats SA, Mid-year population estimates 2024, Statistical release P0302, 30 July 2024, Appendix 2, p28
B32: a Births per 1 000 people in a given year.

Sheet Recorded live births.00-23
B2: Recorded live birthsa by sex, 2000-23
B4: Year | C4: Male | D4: Female | E4: Totalb | F4: Total population | G4: Births as a proportion of total population ͨ
B6: 2000 | C6: 491435 | D6: 489739 | E6: =C6+D6 -> 981174 | F6: 43685699 | G6: 0.02245984435
B7: 2001 | C7: 482989 | D7: 481434 | E7: =C7+D7 -> 964423 | F7: 44819778 | G7: 0.02151779958
B8: 2002 | C8: 488090 | D8: 486905 | E8: =C8+D8 -> 974995 | F8: 45454200 | G8: 0.02145005302
B9: 2003 | C9: 487273 | D9: 483000 | E9: 970273 | F9: 46429800 | G9: 0.02089763471
B10: 2004 | C10: 517856 | D10: 512346 | E10: 1030202 | F10: 46586607 | G10: 0.02208220487
B11: 2005 | C11: 539210 | D11: 532696 | E11: 1071906 | F11: 46888200 | G11: 0.02282651072
B12: 2006 | C12: 554320 | D12: 549261 | E12: 1103581 | F12: 46888200 | G12: 0.02349783101
B13: 2007 | C13: 548495 | D13: 541027 | E13: 1089522 | F13: 47850700 | G13: 0.02274067046
B14: 2008 | C14: 559796 | D14: 553245 | E14: 1113041 | F14: 48687000 | G14: 0.02283687637
B15: 2009 | C15: 534640 | D15: 527437 | E15: 1062077 | F15: 49320500 | G15: 0.02150004562
B16: 2010 | C16: 522377 | D16: 513132 | E16: 1035509 | F16: 49991300 | G16: 0.0206764577
B17: 2011 | C17: 526851 | D17: 517688 | E17: 1044539 | F17: 51770560 | G17: 0.02013920653
B18: 2012 | C18: 527149 | D18: 517934 | E18: 1045083 | F18: 52274943 | G18: 0.01995162386
B19: 2013 | C19: 520951 | D19: 511308 | E19: 1032259 | F19: 52981991 | G19: 0.01943649117
B20: 2014 | C20: 522935 | D20: 513598 | E20: 1036533 | F20: 54001953 | G20: 0.01913508573
B21: 2015 | C21: 497581 | D21: 489843 | E21: 987424 | F21: 54956920 | G21: 0.01788899378
B22: 2016 | C22: 470046 | D22: 460389 | E22: 930435 | F22: 55908865 | G22: 0.01654556929
B23: 2017 | C23: 476604 | D23: 468123 | E23: 944727 | F23: 56521948 | G23: 0.01659159023
B24: 2018 | C24: 490859 | D24: 491011 | E24: 981870 | F24: 57725606 | G24: 0.01669117168
B25: 2019 | C25: 501249 | D25: 492229 | E25: 993478 | F25: 58775022 | G25: 0.01671870068
B26: 2020 | C26: 512740 | D26: 503164 | E26: 1015904 | F26: 59622350 | G26: 0.01676399874
B27: 2021 | C27: 509616 | D27: 501629 | E27: 1011245 | F27: 60142978 | G27: 0.01645460589
B28: 2022 | C28: 476855 | D28: 468808 | E28: 945663 | F28: 61356168 | G28: 0.01627363371
B29: 2023 | C29: 435614 | D29: 427833 | E29: 863447 | F29: 62180391 | G29: 0.01614009105
B30: 2000-23 | C30: =(C29-C6)/C6 -> -0.1135877583 | D30: =(D29-D6)/D6 -> -0.1264061061 | E30: -0.1199858537 | F30: 0.4233580422 | G30: ─
B31: Source: Stats SA, Recorded live births 2020, Statistical release P0305, 11 November 2021, Table 10, p25; Recorded live births 2023, Statistical release P0305, 12 September 2024, Table 11, p25; Census counts and population estimates
B32: a Generally, more males than females are born. In 2023, the male/female ratio of babies was 102 males per 100 females.
B33: b Figures include updated births at 1 July 2024 and are thus higher in number than those in the table that follows.
B34: c CRA calculations, based on census counts and population estimates.

Sheet Births by age of mother 00-23#
B2: Births by age of mother (actual numbers), 2000-23
B4: Year | C4: 15-19 | D4: 20-24 | E4: 25-29 | F4: 30-34 | G4: 35-39 | H4: 40-44 | I4: 45-49 | J4: 50-54 | K4: Othera | L4: Totalb | M4: 15-19 | N4: 20-24 | O4: 25-29 | P4: 30-34 | Q4: 35-39 | R4: 40-44 | S4: 45-49 | T4: 50-54 | U4: Othera
B5: 2000 | C5: 115216 | D5: 214088 | E5: 218845 | F5: 182475 | G5: 110395 | H5: 45524 | I5: 8995 | J5: 3791 | K5: 27137 | L5: =C5+D5+E5+F5+G5+H5+I5+J5+K5 -> 926466 | M5: =(C5/L5) -> 0.1243607429 | N5: =(D5/L5) -> 0.2310802555 | O5: =(E5/L5) -> 0.2362148206 | P5: =(F5/L5) -> 0.1969581183 | Q5: =(G5/L5) -> 0.119157098 | R5: =(H5/L5) -> 0.04913725922 | S5: =(I5/L5) -> 0.009708936971 | T5: =(J5/L5) -> 0.00409189328 | U5: =(K5/L5) -> 0.02929087522
B6: 2001 | C6: 120899 | D6: 217499 | E6: 222136 | F6: 178555 | G6: 111513 | H6: 44489 | I6: 8839 | J6: 3104 | K6: 14512 | L6: =C6+D6+E6+F6+G6+H6+I6+J6+K6 -> 921546 | M6: =(C6/L6) -> 0.1311914978 | N6: =(D6/L6) -> 0.2360153481 | O6: =(E6/L6) -> 0.24104711 | P6: =(F6/L6) -> 0.1937559275 | Q6: =(G6/L6) -> 0.1210064392 | R6: =(H6/L6) -> 0.04827648321 | S6: =(I6/L6) -> 0.009591490821 | T6: =(J6/L6) -> 0.003368252914 | U6: =(K6/L6) -> 0.01574745048
B7: 2002 | C7: 118810 | D7: 225548 | E7: 214513 | F7: 184323 | G7: 103173 | H7: 45356 | I7: 7875 | J7: 3103 | K7: 6837 | L7: =C7+D7+E7+F7+G7+H7+I7+J7+K7 -> 909538 | M7: 0.1306267578 | N7: 0.247980843 | O7: 0.2358483098 | P7: 0.202655634 | Q7: 0.1134345129 | R7: 0.04986707537 | S7: 0.008658241877 | T7: 0.003411622164 | U7: 0.007517003138
B8: 2003 | C8: 126805 | D8: 241745 | E8: 211642 | F8: 176626 | G8: 95849 | H8: 49524 | I8: 6754 | J8: 2293 | K8: 5041 | L8: 916279 | M8: 0.1383912542 | N8: 0.2638333957 | O8: 0.2309798653 | P8: 0.1927644309 | Q8: 0.1046067846 | R8: 0.05404903965 | S8: 0.007371117313 | T8: 0.002502512881 | U8: 0.005501599404
B9: 2004 | C9: 143638 | D9: 270838 | E9: 232617 | F9: 188123 | G9: 104303 | H9: 51082 | I9: 5638 | J9: 1638 | K9: 4710 | L9: 1002587 | M9: 0.1432673673 | N9: 0.27013915 | O9: 0.2320167726 | P9: 0.1876375816 | Q9: 0.1040338644 | R9: 0.05095019185 | S9: 0.005623452129 | T9: 0.001633773428 | U9: 0.004697846671
B10: 2005 | C10: 151861 | D10: 289758 | E10: 243346 | F10: 188252 | G10: 113639 | H10: 44867 | I10: 8504 | J10: 1367 | K10: 4898 | L10: 1046492 | M10: 0.1451143439 | N10: 0.2768850598 | O10: 0.2325349835 | P10: 0.1798886184 | Q10: 0.1085904145 | R10: 0.04287371523 | S10: 0.008126196856 | T10: 0.001306268944 | U10: 0.004680398895
B11: 2006 | C11: 151972 | D11: 305136 | E11: 252145 | F11: 196209 | G11: 111850 | H11: 39742 | I11: 7590 | J11: 1175 | K11: 4713 | L11: 1070532 | M11: 0.1419593249 | N11: 0.2850321149 | O11: 0.2355324269 | P11: 0.1832817702 | Q11: 0.1044807628 | R11: 0.03712359836 | S11: 0.007089932856 | T11: 0.001097585126 | U11: 0.004402483999
B12: 2007 | C12: 147962 | D12: 296148 | E12: 255289 | F12: 190360 | G12: 113914 | H12: 35824 | I12: 6536 | J12: 851 | K12: 4154 | L12: 1051038 | M12: 0.1407770223 | N12: 0.2817671673 | O12: 0.2428922646 | P12: 0.1811161918 | Q12: 0.1083823801 | R12: 0.03408440037 | S12: 0.00621861436 | T12: 0.0008096757681 | U12: 0.003952283362
B13: 2008 | C13: 151002 | D13: 297256 | E13: 266139 | F13: 190671 | G13: 112295 | H13: 35917 | I13: 5925 | J13: 656 | K13: 3811 | L13: 1063672 | M13: 0.1419629359 | N13: 0.2794620898 | O13: 0.2502077708 | P13: 0.1792573274 | Q13: 0.1055729586 | R13: 0.03376698832 | S13: 0.005570326191 | T13: 0.0006167314736 | U13: 0.003582871411
B14: 2009 | C14: 152421 | D14: 286836 | E14: 257209 | F14: 181800 | G14: 106253 | H14: 34341 | I14: 4956 | J14: 499 | K14: 5422 | L14: 1029737 | M14: 0.1480193486 | N14: 0.278552679 | O14: 0.2497812548 | P14: 0.1765499346 | Q14: 0.1031845996 | R14: 0.0333492921 | S14: 0.004812879405 | T14: 0.0004845897545 | U14: 0.005265422142
B15: 2010 | C15: 147570 | D15: 279170 | E15: 259450 | F15: 182327 | G15: 106417 | H15: 34516 | I15: 3701 | J15: 406 | K15: 4904 | L15: 1018461 | M15: 0.1448950917 | N15: 0.2741096615 | O15: 0.2547471135 | P15: 0.1790220735 | Q15: 0.1044880462 | R15: 0.03389035024 | S15: 0.003633914308 | T15: 0.0003986406941 | U15: 0.004815108286
B16: 2011 | C16: 148396 | D16: 278497 | E16: 264032 | F16: 183342 | G16: 109141 | H16: 32946 | I16: 3383 | J16: 342 | K16: 4766 | L16: 1024845 | M16: 0.1447984817 | N16: 0.2717454835 | O16: 0.257631154 | P16: 0.1788972967 | Q16: 0.1064951285 | R16: 0.03214730032 | S16: 0.003300986979 | T16: 0.0003337089999 | U16: 0.004650459338
B17: 2012 | C17: 144509 | D17: 275466 | E17: 260051 | F17: 189786 | G17: 109162 | H17: 34690 | I17: 2899 | J17: 297 | K17: 5441 | L17: 1022301 | M17: 0.1413566063 | N17: 0.2694568429 | O17: 0.2543781137 | P17: 0.1856459105 | Q17: 0.106780684 | R17: 0.03393325449 | S17: 0.002835759722 | T17: 0.0002905210892 | U17: 0.005322307227
B18: 2014 | C18: 162143 | D18: 272631 | E18: 254209 | F18: 186301 | G18: 100446 | H18: 29828 | I18: 2128 | J18: 271 | K18: 8969 | L18: 1016926 | M18: 0.1594442467 | N18: 0.2680932536 | O18: 0.2499778745 | P18: 0.1832001542 | Q18: 0.09877414876 | R18: 0.02933153445 | S18: 0.002092580974 | T18: 0.0002664894004 | U18: 0.008819717462
B19: 2015 | C19: 141768 | D19: 251579 | E19: 244788 | F19: 193228 | G19: 102440 | H19: 30480 | I19: 2164 | J19: 178 | K19: 1895 | L19: 968520 | M19: 0.1463759138 | N19: 0.2597561227 | O19: 0.2527443935 | P19: 0.1995085285 | Q19: 0.1057696279 | R19: 0.03147069756 | S19: 0.002234336926 | T19: 0.0001837855697 | U19: 0.001956593565
B20: 2016 | C20: 122844 | D20: 233956 | E20: 233696 | F20: 190274 | G20: 100369 | H20: 30547 | I20: 2112 | J20: 152 | K20: 5403 | L20: 919353 | M20: =(C20/L20) -> 0.1336200567 | N20: 0.2544789651 | O20: 0.2541961575 | P20: 0.2069651157 | Q20: 0.1091735166 | R20: 0.03322662786 | S20: 0.002297267752 | T20: 0.000165333664 | U20: 0.005876959122
B21: 2017 | C21: 109505 | D21: 235527 | E21: 240808 | F21: 195964 | G21: 105266 | H21: 31281 | I21: 2268 | J21: 181 | K21: 11290 | L21: =C21+D21+E21+F21+G21+H21+I21+J21+K21 -> 932090 | M21: 0.1174832902 | N21: 0.2526869723 | O21: 0.2583527342 | P21: 0.2102415003 | Q21: 0.1129354461 | R21: 0.03356006394 | S21: 0.002433241425 | T21: 0.0001941872566 | U21: 0.01211256424
B22: 2018 | C22: 96714 | D22: 242444 | E22: 251928 | F22: 205450 | G22: 114958 | H22: 32589 | I22: 2606 | J22: 220 | K22: 7729 | L22: 954638 | M22: 0.1013096064 | N22: 0.2539643299 | O22: 0.2638989858 | P22: 0.215212468 | Q22: 0.1204205154 | R22: 0.03413754743 | S22: 0.002729830575 | T22: 0.0002304538474 | U22: 0.008096262667
B23: 2019 | C23: 111875 | D23: 249622 | E23: 262540 | F23: 215274 | G23: 124533 | H23: 33809 | I23: 2526 | J23: 143 | K23: 16666 | L23: 1016988 | M23: 0.1100062144 | N23: 0.2454522571 | O23: 0.2581544718 | P23: 0.2116780139 | Q23: 0.1224527723 | R23: 0.03324424674 | S23: 0.002483805119 | T23: 0.0001406112953 | U23: 0.01638760733
B24: 2020 | C24: 91580 | D24: 214875 | E24: 234514 | F24: 197713 | G24: 118687 | H24: 33527 | I24: 2689 | J24: 196 | K24: 5522 | L24: 899303 | M24: 0.1018344207 | N24: 0.2389350419 | O24: 0.2607730654 | P24: 0.2198513738 | Q24: 0.131976653 | R24: 0.03728109436 | S24: 0.002990093439 | T24: 0.0002179465653 | U24: 0.006140310885
B25: 2021 | C25: 106744 | D25: 220163 | E25: 242136 | F25: 207282 | G25: 128143 | H25: 35279 | I25: 2445 | J25: 125 | K25: 7440 | L25: 949757 | M25: 0.1123908537 | N25: 0.2318098208 | O25: 0.2549452123 | P25: 0.2182474043 | Q25: 0.13492188 | R25: 0.03714529085 | S25: 0.0025743427 | T25: 0.0001316126125 | U25: 0.007833582695
B26: 2022 | C26: 101569 | D26: 203766 | E26: 232276 | F26: 203622 | G26: 127357 | H26: 36797 | I26: 2625 | J26: 134 | K26: 242 | L26: 908388
B27: 2023 | C27: 100095 | D27: 183990 | E27: 212256 | F27: 190186 | G27: 120396 | H27: 36391 | I27: 2389 | J27: 107 | K27: 216 | L27: =C27+D27+E27+F27+G27+H27+I27+J27+K27 -> 846026
B28: 2000-23 | C28: =(C27-C5)/C5 -> -0.1312404527 | D28: =(D27-D5)/D5 -> -0.1405870483 | E28: -0.03010806735 | F28: 0.04225784354 | G28: 0.09059287105 | H28: -0.2006194535 | I28: -0.7344080044 | J28: -0.9717752572 | K28: -0.9920403877 | L28: =(L27-L5)/L5 -> -0.08682455697 | M28: =(M25-M5)/M5 -> -0.09625134853 | N28: 0.003157194533 | O28: 0.07929388864 | P28: 0.1080904217 | Q28: 0.1323025 | R28: -0.2440504123 | S28: -0.7348481396 | T28: -0.9678357661 | U28: -0.7325589407
B29: Source: Stats SA, interactive data, accessed 25 June 2013; Recorded live births 2018, Statistical release P0305, 26 September 2019, Appendix D, p36; Recorded live births 2020, Statistical release P0305, 11 November 2021, Appendix D, p39; Recorded live births 2021, Statistical release P0305, 19 December 2022, Table 10, p21; Recorded live births 2022, Statistical release P0305, 13 December 2023, Table 10, p22; Recorded live births 2023, Statistical release P0305, 12 September 2024, Table 10, p22
B30: a Births by mothers aged below 15 or over 54, including unknown/unspecified.
B31: b Totals are different from those in the previous table on births, which is based on an updated births register.
C32: Peak.

Sheet Births by age of mum 00-23%
B2: Births by age of mother (proportions) ͣ, 2000-23
B4: Year | C4: 15-19 | D4: 20-24 | E4: 25-29 | F4: 30-34 | G4: 35-39 | H4: 40-44 | I4: 45-49 | J4: 50-54 | K4: Otherb | L4: Totalc
B5: 2000 | C5: 0.1243607429 | D5: 0.2310802555 | E5: 0.2362148206 | F5: 0.1969581183 | G5: 0.119157098 | H5: 0.04913725922 | I5: 0.009708936971 | J5: 0.00409189328 | K5: 0.02929087522 | L5: 1 | P5: 15-19 | Q5: 20-24 | R5: 25-29 | S5: 30-34 | T5: 35-39 | U5: 40-44 | V5: 45-49 | W5: 50-54 | X5: Other
B6: 2001 | C6: 0.1311914978 | D6: 0.2360153481 | E6: 0.24104711 | F6: 0.1937559275 | G6: 0.1210064392 | H6: 0.04827648321 | I6: 0.009591490821 | J6: 0.003368252914 | K6: 0.01574745048 | L6: 1 | O6: 2000 | P6: 0.1243607429 | Q6: 0.2310802555 | R6: 0.2362148206 | S6: 0.1969581183 | T6: 0.119157098 | U6: 0.04913725922 | V6: 0.009708936971 | W6: 0.00409189328 | X6: 0.02929087522
B7: 2002 | C7: 0.1306267578 | D7: 0.247980843 | E7: 0.2358483098 | F7: 0.202655634 | G7: 0.1134345129 | H7: 0.04986707537 | I7: 0.008658241877 | J7: 0.003411622164 | K7: 0.007517003138 | L7: 1 | O7: 2023 | P7: 0.1183119668 | Q7: 0.2174755859 | R7: 0.2508859066 | S7: 0.2247992378 | T7: 0.1423076832 | U7: 0.04301404449 | V7: 0.002823790285 | W7: 0.0001264736545 | X7: 0.0002553113025 | Y7: 1
B8: 2003 | C8: 0.1383912542 | D8: 0.2638333957 | E8: 0.2309798653 | F8: 0.1927644309 | G8: 0.1046067846 | H8: 0.05404903965 | I8: 0.007371117313 | J8: 0.002502512881 | K8: 0.005501599404 | L8: 1
B9: 2004 | C9: 0.1432673673 | D9: 0.27013915 | E9: 0.2320167726 | F9: 0.1876375816 | G9: 0.1040338644 | H9: 0.05095019185 | I9: 0.005623452129 | J9: 0.001633773428 | K9: 0.004697846671 | L9: 1 | O9: 2023 | P9: 0.1183119668 | Q9: 0.2174755859 | R9: 0.2508859066 | S9: 0.2247992378 | T9: 0.1423076832 | U9: 0.04301404449 | V9: 0.002823790285 | W9: 0.0001264736545 | X9: 0.0002553113025 | Y9: 896120
B10: 2005 | C10: 0.1451143439 | D10: 0.2768850598 | E10: 0.2325349835 | F10: 0.1798886184 | G10: 0.1085904145 | H10: 0.04287371523 | I10: 0.008126196856 | J10: 0.001306268944 | K10: 0.004680398895 | L10: 1
B11: 2006 | C11: 0.1419593249 | D11: 0.2850321149 | E11: 0.2355324269 | F11: 0.1832817702 | G11: 0.1044807628 | H11: 0.03712359836 | I11: 0.007089932856 | J11: 0.001097585126 | K11: 0.004402483999 | L11: 1
B12: 2007 | C12: 0.1407770223 | D12: 0.2817671673 | E12: 0.2428922646 | F12: 0.1811161918 | G12: 0.1083823801 | H12: 0.03408440037 | I12: 0.00621861436 | J12: 0.0008096757681 | K12: 0.003952283362 | L12: 1
B13: 2008 | C13: 0.1419629359 | D13: 0.2794620898 | E13: 0.2502077708 | F13: 0.1792573274 | G13: 0.1055729586 | H13: 0.03376698832 | I13: 0.005570326191 | J13: 0.0006167314736 | K13: 0.003582871411 | L13: 1
B14: 2009 | C14: 0.1480193486 | D14: 0.278552679 | E14: 0.2497812548 | F14: 0.1765499346 | G14: 0.1031845996 | H14: 0.0333492921 | I14: 0.004812879405 | J14: 0.0004845897545 | K14: 0.005265422142 | L14: 1
B15: 2010 | C15: 0.1448950917 | D15: 0.2741096615 | E15: 0.2547471135 | F15: 0.1790220735 | G15: 0.1044880462 | H15: 0.03389035024 | I15: 0.003633914308 | J15: 0.0003986406941 | K15: 0.004815108286 | L15: 1
B16: 2011 | C16: 0.1447984817 | D16: 0.2717454835 | E16: 0.257631154 | F16: 0.1788972967 | G16: 0.1064951285 | H16: 0.03214730032 | I16: 0.003300986979 | J16: 0.0003337089999 | K16: 0.004650459338 | L16: 1
B17: 2012 | C17: 0.1413566063 | D17: 0.2694568429 | E17: 0.2543781137 | F17: 0.1856459105 | G17: 0.106780684 | H17: 0.03393325449 | I17: 0.002835759722 | J17: 0.0002905210892 | K17: 0.005322307227 | L17: 1
B18: 2014 | C18: 0.1594442467 | D18: 0.2680932536 | E18: 0.2499778745 | F18: 0.1832001542 | G18: 0.09877414876 | H18: 0.02933153445 | I18: 0.002092580974 | J18: 0.0002664894004 | K18: 0.008819717462 | L18: 1
B19: 2015 | C19: 0.1463759138 | D19: 0.2597561227 | E19: 0.2527443935 | F19: 0.1995085285 | G19: 0.1057696279 | H19: 0.03147069756 | I19: 0.002234336926 | J19: 0.0001837855697 | K19: 0.001956593565 | L19: 1
B20: 2016 | C20: 0.1336200567 | D20: 0.2544789651 | E20: 0.2541961575 | F20: 0.2069651157 | G20: 0.1091735166 | H20: 0.03322662786 | I20: 0.002297267752 | J20: 0.000165333664 | K20: 0.005876959122 | L20: 1
B21: 2017 | C21: 0.1174832902 | D21: 0.2526869723 | E21: 0.2583527342 | F21: 0.2102415003 | G21: 0.1129354461 | H21: 0.03356006394 | I21: 0.002433241425 | J21: 0.0001941872566 | K21: 0.01211256424 | L21: 1
B22: 2018 | C22: 0.1013096064 | D22: 0.2539643299 | E22: 0.2638989858 | F22: 0.215212468 | G22: 0.1204205154 | H22: 0.03413754743 | I22: 0.002729830575 | J22: 0.0002304538474 | K22: 0.008096262667 | L22: 1
B23: 2019 | C23: 0.1100062144 | D23: 0.2454522571 | E23: 0.2581544718 | F23: 0.2116780139 | G23: 0.1224527723 | H23: 0.03324424674 | I23: 0.002483805119 | J23: 0.0001406112953 | K23: 0.01638760733 | L23: 1
B24: 2020 | C24: 0.1018344207 | D24: 0.2389350419 | E24: 0.2607730654 | F24: 0.2198513738 | G24: 0.131976653 | H24: 0.03728109436 | I24: 0.002990093439 | J24: 0.0002179465653 | K24: 0.006140310885 | L24: 1
B25: 2021 | C25: 0.112628026 | D25: 0.2322989965 | E25: 0.2554832093 | F25: 0.21870796 | G25: 0.1352065983 | H25: 0.03722367653 | I25: 0.002579775196 | J25: 0.0001318903474 | K25: 0.007850113478 | L25: 1
B26: 2022 | C26: 0.1118123533 | D26: 0.2243160412 | E26: 0.2557013083 | F26: 0.2241575186 | G26: 0.1402011035 | H26: 0.0405080208 | I26: 0.002889734343 | J26: 0.0001475140579 | K26: 0.0002664059851 | L26: 1
B27: 2023 | C27: 0.1183119668 | D27: 0.2174755859 | E27: 0.2508859066 | F27: 0.2247992378 | G27: 0.1423076832 | H27: 0.04301404449 | I27: 0.002823790285 | J27: 0.0001264736545 | K27: 0.0002553113025 | L27: 1
B28: Source: CRA calculations based on Stats SA data.
B29: a CRA calculations.
B30: b Births by mothers aged below 15 or over 54, including unknown/unspecified.
B31: c Figures should add up horizontally to 100% but may not, owing to rounding.

Sheet Birthsminusdeaths.00-23
B2: Births minus deaths
B4: Births minus deaths, 2000-23
B6: Year | C6: Births | D6: Deaths | E6: Births minus deathsa | F6: Deaths as a proportion of birthsa
B7: 2000 | C7: 981174 | D7: 417616 | E7: =(C7-D7) -> 563558 | F7: =(D7/C7) -> 0.4256288895
B8: 2001 | C8: 964423 | D8: 456649 | E8: =(C8-D8) -> 507774 | F8: =(D8/C8) -> 0.4734945143
B9: 2002 | C9: 974995 | D9: 503818 | E9: 471177 | F9: 0.5167390602
B10: 2003 | C10: 970273 | D10: 558858 | E10: 411415 | F10: 0.5759801623
B11: 2004 | C11: 1030202 | D11: 578829 | E11: 451373 | F11: 0.5618597129
B12: 2005 | C12: 1071906 | D12: 600020 | E12: 471886 | F12: 0.5597692335
B13: 2006 | C13: 1103581 | D13: 614578 | E13: 489003 | F13: 0.5568943286
B14: 2007 | C14: 1089522 | D14: 606605 | E14: 482917 | F14: 0.5567625069
B15: 2008 | C15: 1113041 | D15: 598647 | E15: 514394 | F15: 0.5378481116
B16: 2009 | C16: 1062077 | D16: 584447 | E16: 477630 | F16: 0.5502868436
B17: 2010 | C17: 1035509 | D17: 552521 | E17: 482988 | F17: 0.5335743098
B18: 2011 | C18: 1044539 | D18: 519249 | E18: 525290 | F18: 0.4971082937
B19: 2012 | C19: 1045083 | D19: 496656 | E19: 548427 | F19: =(D19/C19) -> 0.4752311539
B20: 2013 | C20: 1032259 | D20: 478317 | E20: 553942 | F20: 0.4633691738
B21: 2014 | C21: 1036533 | D21: 478719 | E21: 557814 | F21: 0.4618463667
B22: 2015 | C22: 987424 | D22: 475937 | E22: 511487 | F22: 0.4819986146
B23: 2016 | C23: 930435 | D23: 472875 | E23: 457560 | F23: 0.5082300214
B24: 2017 | C24: 944727 | D24: 467334 | E24: 477393 | F24: 0.4946762398
B25: 2018 | C25: 981870 | D25: 467565 | E25: 514305 | F25: 0.4761984784
B26: 2019 | C26: 993478 | D26: 463618 | E26: 529860 | F26: 0.4666615667
B27: 2020 | C27: 1015904 | D27: 489744 | E27: 526160 | F27: 0.4820770467
B28: 2021 | C28: 1011245 | D28: N/A | E28: N/A | F28: N/A
B29: 2022 | C29: 945663 | D29: N/A | E29: N/A | F29: N/A
B30: 2023 | C30: 863447 | D30: N/A | E30: N/A | F30: N/A
B31: Source: Stats SA, Recorded live births 2023, Statistical release P0305, 12 September 2024, Table 11, p25; Census counts and population estimates; Mortality and causes of death in South Africa 2020: Findings from death notification, Statistical release P0309.3, 30 April 2024, Table 4.4, p33
B32: a CRA calculations.
B33: N/A — Not available.

Sheet Deaths

Sheet Death rate.02-24
D2: Mortality
D4: Death ratea, 2002-24
D6: Year | E6: Rate
D7: 2002 | E7: 13.34955566
D8: 2003 | E8: 13.6060749
D9: 2004 | E9: 13.90548988
D10: 2005 | E10: 14.22001238
D11: 2006 | E11: 14.36673253
D12: 2007 | E12: 14.0234182
D13: 2008 | E13: 13.55053938
D14: 2009 | E14: 12.7146598
D15: 2010 | E15: 11.84454612
D16: 2011 | E16: 10.9668802
D17: 2012 | E17: 10.30797464
D18: 2013 | E18: 9.814664058
D19: 2014 | E19: 9.406238212
D20: 2015 | E20: 9.222307933
D21: 2016 | E21: 9.187567807
D22: 2017 | E22: 9.121362023
D23: 2018 | E23: 8.935399117
D24: 2019 | E24: 8.840249577
D25: 2020 | E25: 8.801579544
D26: 2021 | E26: 11.13297878
D27: 2022 | E27: 10.29436845
D28: 2023 | E28: 8.694380838
D29: 2024 | E29: 8.68606122
D30: 2002-24 | E30: =(E29-E7)/E7 -> -0.3493370533
C31: Source: Stats SA, Mid-year population estimates 2024, Statistical release P0302, 30 July 2024, Appendix 2, p28
C32: a Deaths per 1000 people in a given year.

Sheet Mortality

Sheet Inf. & U5 mortality.02-24
B2: Infant and under-five mortality rate, 2002-24
C4: Year | D4: Infant mortality ratea | E4: Under-five mortality rateᵇ
C6: 2002 | D6: 57 | E6: 79.7
C7: 2003 | D7: 57.1 | E7: 82.3
C8: 2004 | D8: 57.2 | E8: 81.3
C9: 2005 | D9: 56.2 | E9: 80.9
C10: 2006 | D10: 55.1 | E10: 78.2
C11: 2007 | D11: 49.4 | E11: 71
C12: 2008 | D12: 48.9 | E12: 63.8
C13: 2009 | D13: 44.7 | E13: 55.9
C14: 2010 | D14: 41.9 | E14: 50.6
C15: 2011 | D15: 37.1 | E15: 44
C16: 2012 | D16: 34.6 | E16: 40.4
C17: 2013 | D17: 32.9 | E17: 38.5
C18: 2014 | D18: 30.9 | E18: 37.4
C19: 2015 | D19: 29.2 | E19: 36.7
C20: 2016 | D20: 28.2 | E20: 36.2
C21: 2017 | D21: 27.3 | E21: 35.7
C22: 2018 | D22: 25.6 | E22: 33.4
C23: 2019 | D23: 25.4 | E23: 32.5
C24: 2020 | D24: 24.5 | E24: 31.4
C25: 2021 | D25: 24.5 | E25: 31.3
C26: 2022 | D26: 24.9 | E26: 31.2
C27: 2023 | D27: 24 | E27: 30.5
C28: 2024 | D28: 22.9 | E28: 28.6
C29: 2002-24 | D29: =(D28-D6)/D6 -> -0.598245614 | E29: =(E28-E6)/E6 -> -0.6411543287
B30: Source: Stats SA, Mid-year population estimates 2024, Statistical release P0302, 30 July 2024, Appendix 2, p28
B31: a The number of deaths of infants under one year of age, per 1 000 live births.
B32: b The number of children who die by the age of five, per 1 000 live births.

Sheet Inf&U5.02-24.BC
C3: Infant mortality rate | D3: Under-five mortality rate
B5: 2002 | C5: 57 | D5: 79.7
B6: 2003 | C6: 57.1 | D6: 82.3
B7: 2004 | C7: 57.2 | D7: 81.3
B8: 2005 | C8: 56.2 | D8: 80.9
B9: 2006 | C9: 55.1 | D9: 78.2
B10: 2007 | C10: 49.4 | D10: 71
B11: 2008 | C11: 48.9 | D11: 63.8
B12: 2009 | C12: 44.7 | D12: 55.9
B13: 2010 | C13: 41.9 | D13: 50.6
B14: 2011 | C14: 37.1 | D14: 44
B15: 2012 | C15: 34.6 | D15: 40.4
B16: 2013 | C16: 32.9 | D16: 38.5
B17: 2014 | C17: 30.9 | D17: 37.4
B18: 2015 | C18: 29.2 | D18: 36.7
B19: 2016 | C19: 28.2 | D19: 36.2
B20: 2017 | C20: 27.3 | D20: 35.7
B21: 2018 | C21: 25.6 | D21: 33.4
B22: 2019 | C22: 25.4 | D22: 32.5
B23: 2020 | C23: 24.5 | D23: 31.4
B24: 2021 | C24: 24.5 | D24: 31.3
B25: 2022 | C25: 24.9 | D25: 31.2
B26: 2023 | C26: 24 | D26: 30.5
B27: 2024 | C27: 22.9 | D27: 28.6

Sheet Inf. & mort sel count. 90 &22
B2: Infant and under-five mortality rate, selected countries, 1990 and 2022
C4: —Infant mortality ratea— | F4: —Under-five mortality rateb—
B5: Country | C5: 1990 | D5: 2022 | E5: Change | F5: 1990 | G5: 2022 | H5: Change
B6: Australia | C6: 7.6 | D6: 3.2 | E6: =(D6-C6)/C6 -> -0.5789473684 | F6: 9.2 | G6: 3.8 | H6: =(G6-F6)/F6 -> -0.5869565217
B7: Botswana | C7: 36.2 | D7: 31.2 | E7: =(D7-C7)/C7 -> -0.138121547 | F7: 48.4 | G7: 38.7 | H7: =(G7-F7)/F7 -> -0.2004132231
B8: Brazil | C8: 52.4 | D8: 12.5 | E8: =(D8-C8)/C8 -> -0.7614503817 | F8: 62.9 | G8: 14 | H8: =(G8-F8)/F8 -> -0.7774244833
B9: Chile | C9: 16.1 | D9: 5.4 | E9: -0.6645962733 | F9: 19.1 | G9: 6.3 | H9: -0.6701570681
B10: China | C10: 42.1 | D10: 4.8 | E10: -0.8859857482 | F10: 53.8 | G10: 6.6 | H10: -0.8773234201
B11: Denmark | C11: 7.4 | D11: 3.1 | E11: -0.5810810811 | F11: 9 | G11: 3.5 | H11: -0.6111111111
B12: Egypt | C12: 62.7 | D12: 15.5 | E12: -0.7527910686 | F12: 85.5 | G12: 18.1 | H12: -0.7883040936
B13: France | C13: 7.4 | D13: 3.3 | E13: -0.5540540541 | F13: 9 | G13: 4.1 | H13: -0.5444444444
B14: Germany | C14: 7 | D14: 3 | E14: -0.5714285714 | F14: 8.5 | G14: 3.6 | H14: -0.5764705882
B15: Ghana | C15: 79.7 | D15: 31.6 | E15: -0.6035131744 | F15: 127.2 | G15: 42.3 | H15: -0.6674528302
B16: Greece | C16: 9.1 | D16: 3.3 | E16: -0.6373626374 | F16: 10.4 | G16: 3.9 | H16: -0.625
B17: Hong Kong | C17: N/A | D17: N/A | E17: N/A | F17: N/A | G17: N/A | H17: N/A
B18: India | C18: 88.6 | D18: 25.5 | E18: -0.7121896163 | F18: 126.2 | G18: 29.1 | H18: =(G18-F18)/F18 -> -0.7694136292
B19: Indonesia | C19: 61.8 | D19: 18.1 | E19: -0.7071197411 | F19: 84 | G19: 21.3 | H19: -0.7464285714
B20: Ireland | C20: 7.6 | D20: 2.7 | E20: -0.6447368421 | F20: 9.2 | G20: 3.1 | H20: -0.6630434783
B21: Israel | C21: 9.7 | D21: 2.7 | E21: -0.7216494845 | F21: 11.6 | G21: 3.4 | H21: -0.7068965517
B22: Italy | C22: 8.4 | D22: 2.2 | E22: -0.7380952381 | F22: 9.7 | G22: 2.6 | H22: -0.7319587629
B23: Japan | C23: 4.6 | D23: 1.7 | E23: -0.6304347826 | F23: 6.3 | G23: 2.3 | H23: -0.6349206349
B24: Kazakhstan | C24: 44.1 | D24: 8.7 | E24: -0.8027210884 | F24: 51.8 | G24: 9.7 | H24: -0.8127413127
B25: Lithuania | C25: 11.9 | D25: 2.9 | E25: -0.756302521 | F25: 15 | G25: 3.5 | H25: -0.7666666667
B26: Mexico | C26: 36.2 | D26: 11 | E26: -0.6961325967 | F26: 45.3 | G26: 12.8 | H26: -0.7174392936
B27: Mozambique | C27: 161.7 | D27: 48.7 | E27: -0.6988249845 | F27: 243.1 | G27: 66.2 | H27: -0.7276840806
B28: Nigeria | C28: 124.3 | D28: 68.5 | E28: -0.4489139179 | F28: 209.5 | G28: 107.2 | H28: -0.4883054893
B29: Pakistan | C29: 106.7 | D29: 51 | E29: -0.5220243674 | F29: 139.5 | G29: 61 | H29: -0.5627240143
B30: Philippines | C30: 39.9 | D30: 21.8 | E30: -0.4536340852 | F30: 56.6 | G30: 27.5 | H30: -0.5141342756
B31: Poland | C31: 15.2 | D31: 3.8 | E31: -0.75 | F31: 17.4 | G31: 4.4 | H31: -0.7471264368
B32: Russia | C32: 18.4 | D32: 3.8 | E32: =(D32-C32)/C32 -> -0.7934782609 | F32: 21.6 | G32: 4.8 | H32: -0.7777777778
B33: Saudi Arabia | C33: 35.6 | D33: 5.5 | E33: -0.845505618 | F33: 44.4 | G33: 6.4 | H33: -0.8558558559
B34: South Africa | C34: 44.5 | D34: 27.7 | E34: -0.3775280899 | F34: 57.3 | G34: 34.5 | H34: -0.3979057592
B35: Spain | C35: 7.4 | D35: 2.5 | E35: -0.6621621622 | F35: 9.1 | G35: 3 | H35: -0.6703296703
B36: Switzerland | C36: 6.6 | D36: 3.5 | E36: -0.4696969697 | F36: 8.2 | G36: 4 | H36: -0.512195122
B37: Turkey | C37: 55.4 | D37: 8.3 | E37: -0.8501805054 | F37: 73.9 | G37: 9.6 | H37: -0.8700947226
B38: Uganda | C38: 106.8 | D38: 30.2 | E38: -0.7172284644 | F38: 182.1 | G38: 40.5 | H38: -0.7775947282
B39: United Kingdom | C39: 7.9 | D39: 3.6 | E39: =(D39-C39)/C39 -> -0.5443037975 | F39: 9.3 | G39: 4.1 | H39: -0.5591397849
B40: United States | C40: 9.4 | D40: 5.4 | E40: -0.4255319149 | F40: 11.2 | G40: 6.3 | H40: -0.4375
B41: Venezuela | C41: 24.7 | D41: 21.2 | E41: -0.1417004049 | F41: 29.5 | G41: 24.2 | H41: =(G41-F41)/F41 -> -0.1796610169
B42: Source: World Bank, databank.worldbank.org, World Development Indicators, accessed 14 November 2024
B43: a Number of deaths of infants under one year of age, per 1 000 live births.
B44: b Number of children who die by the age of five, per 1 000 live births.
B45: N/A — Not available.

Sheet Inf. & mort. emer mark. 90 &22
B2: Infant and under-five mortality rate, emerging markets, 1990 and 2022
C4: —Infant mortality ratea— | F4: —Under-five mortality rateb—
B5: Country | C5: 1990 | D5: 2022 | E5: Change | F5: 1990 | G5: 2022 | H5: Change
B6: Brazil | C6: 52.4 | D6: 12.5 | E6: =(D6-C6)/C6 -> -0.7614503817 | F6: 62.9 | G6: 14 | H6: =(G6-F6)/F6 -> -0.7774244833
B7: Bulgaria | C7: 14.7 | D7: 5 | E7: -0.6598639456 | F7: 18.4 | G7: 6.1 | H7: -0.6684782609
B8: Chile | C8: 16.1 | D8: 5.4 | E8: -0.6645962733 | F8: 19.1 | G8: 6.3 | H8: -0.6701570681
B9: China | C9: 42.1 | D9: 4.8 | E9: -0.8859857482 | F9: 53.8 | G9: 6.6 | H9: -0.8773234201
B10: Colombia | C10: 28.8 | D10: 10.6 | E10: -0.6319444444 | F10: 35.1 | G10: 12.4 | H10: -0.6467236467
B11: Czech Republic | C11: 10.3 | D11: 2.1 | E11: -0.7961165049 | F11: 12.2 | G11: 2.6 | H11: -0.7868852459
B12: Egypt | C12: 62.7 | D12: 15.5 | E12: -0.7527910686 | F12: 85.5 | G12: 18.1 | H12: -0.7883040936
B13: Estonia | C13: 14 | D13: 1.5 | E13: -0.8928571429 | F13: 17.7 | G13: 1.9 | H13: -0.8926553672
B14: Greece | C14: 9.1 | D14: 3.3 | E14: -0.6373626374 | F14: 10.4 | G14: 3.9 | H14: -0.625
B15: Hungary | C15: 15.2 | D15: 3.3 | E15: -0.7828947368 | F15: 17.2 | G15: 4 | H15: -0.7674418605
B16: India | C16: 88.6 | D16: 25.5 | E16: -0.7121896163 | F16: 126.2 | G16: 29.1 | H16: -0.7694136292
B17: Indonesia | C17: 61.8 | D17: 18.1 | E17: -0.7071197411 | F17: 84 | G17: 21.3 | H17: -0.7464285714
B18: Jordan | C18: 29.5 | D18: 12.2 | E18: -0.586440678 | F18: 36 | G18: 14.1 | H18: -0.6083333333
B19: Kuwait | C19: 15 | D19: 7.4 | E19: -0.5066666667 | F19: 17.5 | G19: 8.6 | H19: -0.5085714286
B20: Latvia | C20: 13.2 | D20: 2.8 | E20: -0.7878787879 | F20: 17 | G20: 3.2 | H20: -0.8117647059
B21: Lithuania | C21: 11.9 | D21: 2.9 | E21: -0.756302521 | F21: 15 | G21: 3.5 | H21: -0.7666666667
B22: Malaysia | C22: 14.2 | D22: 6.7 | E22: -0.5281690141 | F22: 16.6 | G22: 7.8 | H22: -0.5301204819
B23: Mauritius | C23: 20 | D23: 13.4 | E23: -0.33 | F23: 23 | G23: 15 | H23: -0.347826087
B24: Mexico | C24: 36.2 | D24: 11 | E24: -0.6961325967 | F24: 45.3 | G24: 12.8 | H24: -0.7174392936
B25: Morocco | C25: 62.5 | D25: 14.8 | E25: -0.7632 | F25: 79.1 | G25: 17.3 | H25: -0.781289507
B26: Oman | C26: 31.5 | D26: 9 | E26: -0.7142857143 | F26: 38.7 | G26: 10.5 | H26: -0.7286821705
B27: Pakistan | C27: 106.7 | D27: 51 | E27: -0.5220243674 | F27: 139.5 | G27: 61 | H27: -0.5627240143
B28: Peru | C28: 56.7 | D28: 11.7 | E28: -0.7936507937 | F28: 80.3 | G28: 15.1 | H28: -0.8119551681
B29: Philippines | C29: 39.9 | D29: 21.8 | E29: -0.4536340852 | F29: 56.6 | G29: 27.5 | H29: -0.5141342756
B30: Poland | C30: 15.2 | D30: 3.8 | E30: -0.75 | F30: 17.4 | G30: 4.4 | H30: -0.7471264368
B31: Qatar | C31: 17.7 | D31: 4.5 | E31: -0.7457627119 | F31: 20.8 | G31: 5.2 | H31: -0.75
B32: Romania | C32: 24.2 | D32: 5.5 | E32: -0.7727272727 | F32: 30.9 | G32: 6.8 | H32: -0.7799352751
B33: Russia | C33: 18.4 | D33: 3.8 | E33: =(D33-C33)/C33 -> -0.7934782609 | F33: 21.6 | G33: 4.8 | H33: -0.7777777778
B34: Slovakia | C34: 12.6 | D34: 4.9 | E34: -0.6111111111 | F34: 14.7 | G34: 5.9 | H34: -0.5986394558
B35: South Africa | C35: 44.5 | D35: 27.7 | E35: -0.3775280899 | F35: 57.3 | G35: 34.5 | H35: -0.3979057592
B36: Sri Lanka | C36: 18.7 | D36: 5.6 | E36: -0.7005347594 | F36: 21.9 | G36: 6.5 | H36: -0.703196347
B37: Thailand | C37: 30.2 | D37: 7 | E37: =(D37-C37)/C37 -> -0.7682119205 | F37: 36.9 | G37: 8.1 | H37: -0.7804878049
B38: Turkey | C38: 55.4 | D38: 8.3 | E38: =(D38-C38)/C38 -> -0.8501805054 | F38: 73.9 | G38: 9.6 | H38: -0.8700947226
B39: United Arab Emirates | C39: 14.2 | D39: 4.3 | E39: -0.6971830986 | F39: 16.6 | G39: 5.3 | H39: -0.6807228916
B40: Venezuela | C40: 24.7 | D40: 21.2 | E40: -0.1417004049 | F40: 29.5 | G40: 24.2 | H40: -0.1796610169
B41: Vietnam | C41: 36.9 | D41: 16.2 | E41: -0.5609756098 | F41: 51.3 | G41: 20.3 | H41: -0.604288499
B42: Source: World Bank, databank.worldbank.org, World Development Indicators, accessed 14 November 2024
B43: a Number of deaths of infants under one year of age, per 1 000 live births.
B44: b Number of children who die by the age of five, per 1 000 live births.

Sheet Inf.&mort. Africa. 90&22
B2: Infant and under-five mortality rate, selected African countries, 1990 and 2022
C4: —Infant mortality ratea— | F4: — Under-five mortality rateb—
B5: Country | C5: 1990 | D5: 2022 | E5: Change | F5: 1990 | G5: 2022 | H5: Change
B6: Algeria | C6: 41.8 | D6: 18.7 | E6: =(D6-C6)/C6 -> -0.5526315789 | F6: 49.5 | G6: 21.8 | H6: =(G6-F6)/F6 -> -0.5595959596
B7: Angola | C7: 131.3 | D7: 45.7 | E7: =(D7-C7)/C7 -> -0.6519421173 | F7: 222.2 | G7: 66.9 | H7: =(G7-F7)/F7 -> -0.698919892
B8: Botswana | C8: 36.2 | D8: 31.2 | E8: -0.138121547 | F8: 48.4 | G8: 38.7 | H8: -0.2004132231
B9: Burundi | C9: 105.2 | D9: 36.4 | E9: -0.6539923954 | F9: 174.3 | G9: 50.5 | H9: -0.71026965
B10: Cameroon | C10: 84.4 | D10: 47 | E10: -0.4431279621 | F10: 135.7 | G10: 69.8 | H10: -0.4856300663
B11: Central African Republic | C11: 115.5 | D11: 73.5 | E11: -0.3636363636 | F11: 176.8 | G11: 96.8 | H11: -0.4524886878
B12: Congo (DRC) | C12: 119.3 | D12: 60.1 | E12: -0.4962279966 | F12: 185.4 | G12: 75.6 | H12: -0.5922330097
B13: Congo (Republic) | C13: 59 | D13: 31.2 | E13: -0.4711864407 | F13: 90.4 | G13: 41.6 | H13: -0.5398230088
B14: Egypt | C14: 62.7 | D14: 15.5 | E14: -0.7527910686 | F14: 85.5 | G14: 18.1 | H14: -0.7883040936
B15: Eritrea | C15: 93.7 | D15: 28 | E15: -0.7011739594 | F15: 152.7 | G15: 36.6 | H15: -0.7603143418
B16: Eswatini | C16: 51.3 | D16: 39.7 | E16: =(D16-C16)/C16 -> -0.2261208577 | F16: 67.4 | G16: 50 | H16: =(G16-F16)/F16 -> -0.2581602374
B17: Ethiopia | C17: 119.1 | D17: 33.9 | E17: -0.7153652393 | F17: 199.9 | G17: 46.2 | H17: -0.7688844422
B18: Ghana | C18: 79.7 | D18: 31.6 | E18: -0.6035131744 | F18: 127.2 | G18: 42.3 | H18: -0.6674528302
B19: Ivory Coast | C19: 103.8 | D19: 52.4 | E19: -0.4951830443 | F19: 152.3 | G19: 69.4 | H19: -0.5443204202
B20: Kenya | C20: 64.8 | D20: 30.5 | E20: -0.5293209877 | F20: 101.5 | G20: 41.1 | H20: -0.5950738916
B21: Lesotho | C21: 68.3 | D21: 56.4 | E21: -0.1742313324 | F21: 85.2 | G21: 72.2 | H21: -0.1525821596
B22: Liberia | C22: 175.2 | D22: 54.9 | E22: -0.6866438356 | F22: 262.6 | G22: 73.2 | H22: -0.721249048
B23: Libya | C23: 35.6 | D23: 8.9 | E23: -0.75 | F23: 41.7 | G23: 10.3 | H23: -0.7529976019
B24: Madagascar | C24: 96.2 | D24: 45.1 | E24: -0.5311850312 | F24: 157.3 | G24: 65.8 | H24: -0.5816910362
B25: Malawi | C25: 141 | D25: 30.1 | E25: -0.7865248227 | F25: 242.8 | G25: 40.1 | H25: -0.8348434926
B26: Mauritius | C26: 20 | D26: 13.4 | E26: -0.33 | F26: 23 | G26: 15 | H26: -0.347826087
B27: Morocco | C27: 62.5 | D27: 14.8 | E27: -0.7632 | F27: 79.1 | G27: 17.3 | H27: -0.781289507
B28: Mozambique | C28: 161.7 | D28: 48.7 | E28: -0.6988249845 | F28: 243.1 | G28: 66.2 | H28: -0.7276840806
B29: Namibia | C29: 48.7 | D29: 28.6 | E29: -0.4127310062 | F29: 72.3 | G29: 37.9 | H29: -0.4757952974
B30: Nigeria | C30: 124.3 | D30: 68.5 | E30: -0.4489139179 | F30: 209.5 | G30: 107.2 | H30: -0.4883054893
B31: Rwanda | C31: 91.9 | D31: 28.8 | E31: -0.6866158868 | F31: 149.8 | G31: 38 | H31: -0.7463284379
B32: Senegal | C32: 71 | D32: 28.2 | E32: -0.6028169014 | F32: 138.6 | G32: 37 | H32: -0.733044733
B33: Somalia | C33: 107.3 | D33: 68 | E33: -0.3662628145 | F33: 178.2 | G33: 106.1 | H33: -0.4046015713
B34: South Africa | C34: 44.5 | D34: 27.7 | E34: -0.3775280899 | F34: 57.3 | G34: 34.5 | H34: -0.3979057592
B35: Sudan | C35: 81.6 | D35: 37 | E35: -0.5465686275 | F35: 130.6 | G35: 51.6 | H35: =(G35-F35)/F35 -> -0.6049004594
B36: Tanzania | C36: 100 | D36: 30 | E36: =(D36-C36)/C36 -> -0.7 | F36: 165.1 | G36: 40.5 | H36: -0.7546941248
B37: Tunisia | C37: 43.2 | D37: 9.9 | E37: -0.7708333333 | F37: 55.3 | G37: 11.5 | H37: -0.7920433996
B38: Uganda | C38: 106.8 | D38: 30.2 | E38: -0.7172284644 | F38: 182.1 | G38: 40.5 | H38: -0.7775947282
B39: Zambia | C39: 107.4 | D39: 39 | E39: -0.6368715084 | F39: 179.5 | G39: 55.6 | H39: -0.6902506964
B40: Zimbabwe | C40: 49.5 | D40: 34.6 | E40: -0.301010101 | F40: 76.6 | G40: 47.7 | H40: -0.3772845953
B41: Source: World Bank, databank.worldbank.org, World Development Indicators, accessed 14 November 2024
B42: a Number of deaths of infants under one year of age, per 1 000 live births.
B43: b Number of children who die by the age of five, per 1 000 live births.

Sheet Adultmortalityrate sel coun
B2: Average adult mortality ratesa selected countries, 2022
B4: Country | C4: Male | D4: Female | E4: Totalb | F4: PPPc gross national per capita income $ 2023
B5: Australia | C5: N/A | D5: N/A | E5: N/A | F5: 66260
B6: Botswana | C6: 297 | D6: 203 | E6: =C6+D6 -> 500 | F6: 19140
B7: Brazil | C7: 203 | D7: 110 | E7: =C7+D7 -> 313 | F7: 19990
B8: Chile | C8: 117 | D8: 65 | E8: 182 | F8: 31590
B9: China | C9: 104 | D9: 54 | E9: 158 | F9: 24380
B10: Denmark | C10: 71 | D10: 42 | E10: 113 | F10: 79390
B11: Egypt | C11: 200 | D11: 115 | E11: 315 | F11: 17990
B12: France | C12: N/A | D12: N/A | E12: N/A | F12: 62130
B13: Germany | C13: N/A | D13: N/A | E13: N/A | F13: 72110
B14: Ghana | C14: 286 | D14: 215 | E14: 501 | F14: 7370
B15: Greece | C15: 97 | D15: 43 | E15: 140 | F15: 40880
B16: Hong Kong | C16: 57 | D16: 28 | E16: 85 | F16: 77880
B17: India | C17: 243 | D17: 177 | E17: 420 | F17: 10030
B18: Indonesia | C18: 232 | D18: 170 | E18: 402 | F18: 15210
B19: Ireland | C19: N/A | D19: N/A | E19: N/A | F19: 98650
B20: Israel | C20: N/A | D20: N/A | E20: N/A | F20: 53340
B21: Italy | C21: N/A | D21: N/A | E21: N/A | F21: 58650
B22: Japan | C22: N/A | D22: N/A | E22: N/A | F22: 52640
B23: Kazakhstan | C23: 269 | D23: 126 | E23: 395 | F23: 35420
B24: Lithuania | C24: N/A | D24: N/A | E24: N/A | F24: 50100
B25: Mexico | C25: 197 | D25: 95 | E25: 292 | F25: 24970
B26: Mozambique | C26: 397 | D26: 253 | E26: 650 | F26: 1510
B27: Nigeria | C27: 365 | D27: 350 | E27: 715 | F27: 6200
B28: Pakistan | C28: 215 | D28: 142 | E28: 357 | F28: 6110
B29: Philippines | C29: 154 | D29: 108 | E29: 262 | F29: 11940
B30: Poland | C30: N/A | D30: N/A | E30: N/A | F30: 47380
B31: Russia | C31: N/A | D31: N/A | E31: N/A | F31: 43510
B32: Saudi Arabia | C32: 95 | D32: 76 | E32: 171 | F32: 55290
B33: South Africa | C33: 416 | D33: 308 | E33: 724 | F33: 15630
B34: Spain | C34: N/A | D34: N/A | E34: N/A | F34: 52420
B35: Switzerland | C35: 56 | D35: 32 | E35: 88 | F35: 90080
B36: Turkey | C36: 105 | D36: 46 | E36: 151 | F36: 43700
B37: Uganda | C37: 326 | D37: 234 | E37: 560 | F37: 3040
B38: United Kingdom | C38: N/A | D38: N/A | E38: N/A | F38: 58140
B39: United States | C39: N/A | D39: N/A | E39: N/A | F39: 82190
B40: Venezuela | C40: 243 | D40: 110 | E40: 353 | F40: N/A
B41: Source: World Bank, wdi.databank.org, World Development Indicators, accessed 14 November 2024
B42: a The probability (per 1 000 people in a population) of dying between the ages of 15 and 60, that is, the probability of a 15-year-old dying before reaching the age of 60.
B43: b CRA calculations.
B44: c Purchasing Power Parity (PPP). PPP gross national per capita income is income per person converted to international dollars using Purchasing Power Parity rates, which allows for a comparison of real levels of expenditure between countries. An international dollar has the same purchasing power over gross national income as a US Dollar in the United States. High income earners are more likely to have lower mortality rates most probably because of better access to quality healthcare.
B45: N/A — Not available.

Sheet Adultmortalityrate emer mrk
C2: Average adult mortality ratesa emerging markets, 2022
C4: Country | D4: Male | E4: Female | F4: Totalb | G4: PPPc gross national per capita income $ 2023
C5: Brazil | D5: 203 | E5: 110 | F5: =D5+E5 -> 313 | G5: 19990
C6: Bulgaria | D6: N/A | E6: N/A | F6: N/A | G6: 37380
C7: Chile | D7: 117 | E7: 65 | F7: =D7+E7 -> 182 | G7: 31590
C8: China | D8: 104 | E8: 54 | F8: 158 | G8: 24380
C9: Colombia | D9: 196 | E9: 102 | F9: 298 | G9: 21420
C10: Czech Republic | D10: N/A | E10: N/A | F10: N/A | G10: 51370
C11: Egypt | D11: 200 | E11: 115 | F11: 315 | G11: 17990
C12: Estonia | D12: N/A | E12: N/A | F12: N/A | G12: 47350
C13: Greece | D13: 97 | E13: 43 | F13: 140 | G13: 40880
C14: Hungary | D14: N/A | E14: N/A | F14: N/A | G14: 44650
C15: India | D15: 243 | E15: 177 | F15: 420 | G15: 10030
C16: Indonesia | D16: 232 | E16: 170 | F16: 402 | G16: 15210
C17: Jordan | D17: 126 | E17: 80 | F17: 206 | G17: 10360
C18: Kuwait | D18: 56 | E18: 30 | F18: 86 | G18: 67730
C19: Latvia | D19: N/A | E19: N/A | F19: N/A | G19: 41420
C20: Lithuania | D20: N/A | E20: N/A | F20: N/A | G20: 50100
C21: Malaysia | D21: 145 | E21: 73 | F21: 218 | G21: 36120
C22: Mauritius | D22: 190 | E22: 98 | F22: 288 | G22: 30230
C23: Mexico | D23: 197 | E23: 95 | F23: 292 | G23: 24970
C24: Morocco | D24: 122 | E24: 81 | F24: 203 | G24: 9600
C25: Oman | D25: 119 | E25: 81 | F25: 200 | G25: 41280
C26: Pakistan | D26: 215 | E26: 142 | F26: 357 | G26: 6110
C27: Peru | D27: 187 | E27: 124 | F27: 311 | G27: 15860
C28: Philippines | D28: 154 | E28: 108 | F28: 262 | G28: 11940
C29: Poland | D29: N/A | E29: N/A | F29: N/A | G29: 47380
C30: Qatar | D30: 43 | E30: 35 | F30: 78 | G30: N/A
C31: Romania | D31: 173 | E31: 74 | F31: 247 | G31: 46620
C32: Russia | D32: N/A | E32: N/A | F32: N/A | G32: 43510
C33: Slovakia | D33: N/A | E33: N/A | F33: N/A | G33: 43500
C34: South Africa | D34: 416 | E34: 308 | F34: 724 | G34: 15630
C35: Sri Lanka | D35: 152 | E35: 65 | F35: 217 | G35: 13990
C36: Thailand | D36: 170 | E36: 70 | F36: 240 | G36: 22880
C37: Turkey | D37: 105 | E37: 46 | F37: 151 | G37: 43700
C38: United Arab Emirates | D38: 68 | E38: 46 | F38: 114 | G38: 83750
C39: Venezuela | D39: 243 | E39: 110 | F39: 353 | G39: N/A
C40: Vietnam | D40: 182 | E40: 74 | F40: 256 | G40: 14400
B41: Source: World Bank, wdi.databank.org, World Development Indicators, accessed 14 November 2024
B42: a The probability (per 1 000 people in a population) of dying between the ages of 15 and 60, that is, probability of a 15-year-old dying before reaching the age of 60.
B43: b CRA calculations.
B44: c Purchasing Power Parity (PPP). PPP gross national per capita income is income per person converted to international dollars using Purchasing Power Parity rates, which allows for a comparison of real levels of expenditure between countries. An international dollar has the same purchasing power over gross national income as a US Dollar in the United States. High income earners are more likely to have lower mortality rates most probably because of better access to quality healthcare.
B45: N/A — Not available.

Sheet Adult mortalityrates.Africa
A2: Average adult mortality ratesa, selected African countries, 2022
B4: Country | C4: Male | D4: Female | E4: Totalb | F4: PPPc gross national per capita income $ 2023
B5: Algeria | C5: 92 | D5: 64 | E5: =C5+D5 -> 156 | F5: 16790
B6: Angola | C6: 324 | D6: 223 | E6: =C6+D6 -> 547 | F6: 7310
B7: Botswana | C7: 297 | D7: 203 | E7: =C7+D7 -> 500 | F7: 19140
B8: Burundi | C8: 310 | D8: 243 | E8: =C8+D8 -> 553 | F8: 950
B9: Cameroon | C9: 330 | D9: 274 | E9: 604 | F9: 5270
B10: Central African Republic | C10: 465 | D10: 373 | E10: 838 | F10: 1200
B11: Congo (DRC) | C11: 328 | D11: 250 | E11: 578 | F11: 1620
B12: Congo (Republic) | C12: 312 | D12: 263 | E12: 575 | F12: 6550
B13: Egypt | C13: 200 | D13: 115 | E13: 315 | F13: 17990
B14: Eritrea | C14: 244 | D14: 181 | E14: 425 | F14: N/A
B15: Eswatini | C15: 561 | D15: 355 | E15: 916 | F15: 10950
B16: Ethiopia | C16: 268 | D16: 171 | E16: 439 | F16: 3100
B17: Ghana | C17: 286 | D17: 215 | E17: 501 | F17: 7370
B18: Ivory Coast | C18: 357 | D18: 339 | E18: 696 | F18: 7480
B19: Kenya | C19: 408 | D19: 302 | E19: 710 | F19: 6220
B20: Lesotho | C20: 549 | D20: 431 | E20: 980 | F20: 3270
B21: Liberia | C21: 302 | D21: 263 | E21: 565 | F21: 1700
B22: Libya | C22: 192 | D22: 125 | E22: 317 | F22: 19670
B23: Madagascar | C23: 262 | D23: 189 | E23: 451 | F23: 1840
B24: Malawi | C24: 394 | D24: 257 | E24: 651 | F24: 1820
B25: Mauritius | C25: 190 | D25: 98 | E25: 288 | F25: 30230
B26: Morocco | C26: 122 | D26: 81 | E26: 203 | F26: 9600
B27: Mozambique | C27: 397 | D27: 253 | E27: 650 | F27: 1510
B28: Namibia | C28: 521 | D28: 348 | E28: 869 | F28: 12170
B29: Nigeria | C29: 365 | D29: 350 | E29: 715 | F29: 6200
B30: Rwanda | C30: 263 | D30: 184 | E30: 447 | F30: 3290
B31: Senegal | C31: 28 | D31: 148 | E31: 176 | F31: 4670
B32: Somalia | C32: 373 | D32: 288 | E32: 661 | F32: 1610
B33: South Africa | C33: 416 | D33: 308 | E33: 724 | F33: 15630
B34: Sudan | C34: 249 | D34: 171 | E34: 420 | F34: 3110
B35: Tanzania | C35: 246 | D35: 185 | E35: 431 | F35: 3900
B36: Tunisia | C36: 143 | D36: 75 | E36: 218 | F36: 13310
B37: Uganda | C37: 326 | D37: 234 | E37: 560 | F37: 3040
B38: Zambia | C38: 360 | D38: 242 | E38: 602 | F38: 3960
B39: Zimbabwe | C39: 449 | D39: 325 | E39: 774 | F39: 3850
B40: Source: World Bank, wdi.databank.org, World Development Indicators, accessed 14 November 2024
B41: a The probability (per 1 000 people in a population) of dying between the ages of 15 and 60, that is, the probability of a 15-year-old dying before reaching the age of 60.
B42: b CRA calculations.
B43: c Purchasing Power Parity (PPP). PPP gross national per capita income is income per person converted to international dollars using Purchasing Power Parity rates, which allows for a comparison of real levels of expenditure between countries. An international dollar has the same purchasing power over gross national income as a US Dollar in the United States. High income earners are more likely to have lower mortality rates most probably because of better access to quality healthcare.
B44: N/A — Not available.

Sheet Life expectancy

Sheet Life expec.by sex.02-24
B2: Life expectancy
B4: Life expectancy at birtha by sex, 2002-24
C6: Year | D6: Male | E6: Female | F6: Total
C7: 2002 | D7: 52.9 | E7: 56.3 | F7: 54.7
C8: 2003 | D8: 52.4 | E8: 56 | F8: 54.2
C9: 2004 | D9: 52 | E9: 55.6 | F9: 53.9
C10: 2005 | D10: 51.8 | E10: 55.3 | F10: 53.6
C11: 2006 | D11: 51.8 | E11: 55.3 | F11: 53.6
C12: 2007 | D12: 52 | E12: 56.6 | F12: 54.4
C13: 2008 | D13: 52.9 | E13: 57.6 | F13: 55.3
C14: 2009 | D14: 54.2 | E14: 59.2 | F14: 56.8
C15: 2010 | D15: 55.3 | E15: 61.2 | F15: 58.4
C16: 2011 | D16: 57.3 | E16: 62.6 | F16: 60
C17: 2012 | D17: 58.6 | E17: 64.2 | F17: 61.4
C18: 2013 | D18: 59.5 | E18: 65.3 | F18: 62.5
C19: 2014 | D19: 60.5 | E19: 66.1 | F19: 63.3
C20: 2015 | D20: 61 | E20: 66.6 | F20: 63.8
C21: 2016 | D21: 61.2 | E21: 66.8 | F21: 64
C22: 2017 | D22: 61.6 | E22: 66.9 | F22: 64.3
C23: 2018 | D23: 62.3 | E23: 67.3 | F23: 64.9
C24: 2019 | D24: 62.7 | E24: 67.8 | F24: 65.3
C25: 2020 | D25: 62.8 | E25: 68.3 | F25: 65.6
C26: 2021 | D26: 60.3 | E26: 65 | F26: 62.7
C27: 2022 | D27: 61.3 | E27: 66.5 | F27: 63.9
C28: 2023 | D28: 63.4 | E28: 69 | F28: 66.3
C29: 2024 | D29: 63.6 | E29: 69.2 | F29: 66.5
C30: 2002-24 | D30: =(D29-D7)/D7 -> 0.202268431 | E30: =(E29-E7)/E7 -> 0.2291296625 | F30: =(F29-F7)/F7 -> 0.2157221207
B31: Source: Stats SA, Mid-year population estimates 2024, Statistical release P0302, 30 July 2024, Appendix 2, p28
B32: a Stats SA figures are different from World Bank data, owing to the application of different methodology.

Sheet Life expec.prov.sex.01-26.
B2: Life expectancy by sex and province, 2001-26
B4: Province | C4: —Male— | H4: —Female—
C5: 2001-06 | D5: 2006-11 | E5: 2011-16 | F5: 2016-21 | G5: 2021-26 | H5: 2001-06 | I5: 2006-11 | J5: 2011-16 | K5: 2016-21 | L5: 2021-26
B6: Eastern Cape | C6: 51.53894745 | D6: 53.46988759 | E6: 59.26642093 | F6: 60.50483398 | G6: 61.36994417 | H6: 55.22569804 | I6: 58.5789587 | J6: 64.69486876 | K6: 65.40086635 | L6: 67.2191859
B7: Free State | C7: 43.34583544 | D7: 45.52844544 | E7: 53.89066934 | F7: 55.54214879 | G7: 56.98846489 | H7: 47.45852227 | I7: 51.75256757 | J7: 60.70342043 | K7: 61.9135668 | L7: 63.78223505
B8: Gauteng | C8: 55.0703766 | D8: 56.74290956 | E8: 62.2093011 | F8: 63.7813335 | G8: 65.11402226 | H8: 58.77723078 | I8: 61.78663182 | J8: 67.67127563 | K8: 68.60980889 | L8: 70.62444869
B9: KwaZulu-Natal | C9: 45.61164651 | D9: 48.06032722 | E9: 56.20152141 | F9: 57.39618834 | G9: 59.0586567 | H9: 49.69501001 | I9: 53.65995451 | J9: 62.73928769 | K9: 63.32741538 | L9: 65.29235737
B10: Limpopo | C10: 52.89506868 | D10: 54.4555725 | E10: 59.86686644 | F10: 61.44537977 | G10: 63.20098462 | H10: 56.55952299 | I10: 59.27820517 | J10: 65.35421352 | K10: 66.28201507 | L10: 68.32119931
B11: Mpumalanga | C11: 50.85136225 | D11: 52.97851176 | E11: 59.30359182 | F11: 61.41251045 | G11: 62.76778362 | H11: 54.45262066 | I11: 57.62358283 | J11: 64.39503153 | K11: 66.12349822 | L11: 67.43611075
B12: North West | C12: 46.10319015 | D12: 48.48525543 | E12: 56.22919365 | F12: 57.64829201 | G12: 59.55989812 | H12: 49.98595055 | I12: 53.88305111 | J12: 62.66847603 | K12: 63.47047394 | L12: 65.7835277
B13: Northern Cape | C13: 50.06896293 | D13: 51.1446082 | E13: 56.83024869 | F13: 58.15657557 | G13: 59.50049601 | H13: 54.2999288 | I13: 57.01121498 | J13: 63.27254495 | K13: 64.31493574 | L13: 65.98514308
B14: Western Cape | C14: 58.32766631 | D14: 60.65636874 | E14: 64.36003271 | F14: 66.22649557 | G14: 67.39052747 | H14: 61.66568839 | I14: 64.91614005 | J14: 69.0369729 | K14: 70.52505845 | L14: 71.5731485
B15: Source: Stats SA, Mid-year population estimates 2024, Statistical release P0302, 30 July 2024, Figures 10 and 11, pp17-18

Sheet Life expect. sel. count.94+22
B2: Life expectancy at birth, selected countries, 1990-2022
B4: Country | C4: 1990 | D4: 2000 | E4: 2010 | F4: 2022 | G4: Change 1990-2022
B5: Australia | C5: 77 | D5: 79.23414634 | E5: 81.69512195 | F5: 83.2 | G5: =(F5-C5)/C5 -> 0.08051948052
B6: Botswana | C6: 59.2 | D6: 50.629 | E6: 60.211 | F6: 65.9 | G6: =(F6-C6)/C6 -> 0.1131756757
B7: Brazil | C7: 66.3 | D7: 70.116 | E7: 73.619 | F7: 73.4 | G7: 0.1070889894
B8: Chile | C8: 73.5 | D8: 76.366 | E8: 78.779 | F8: 79.5 | G8: 0.08163265306
B9: China | C9: 69.1 | D9: 71.397 | E9: 74.409 | F9: 78.6 | G9: 0.1374819103
B10: Denmark | C10: 74.8 | D10: 76.59268293 | E10: 79.1 | F10: 81.3 | G10: 0.08689839572
B11: Egypt | C11: 64.6 | D11: 68.602 | E11: 70.349 | F11: 70.2 | G11: 0.0866873065
B12: France | C12: 76.6 | D12: 79.05609756 | E12: 81.66341463 | F12: 82.2 | G12: 0.07310704961
B13: Germany | C13: 75.2 | D13: 77.92682927 | E13: 79.98780488 | F13: 80.7 | G13: 0.07313829787
B14: Ghana | C14: 56.8 | D14: 57.002 | E14: 61.03 | F14: 63.9 | G14: 0.125
B15: Greece | C15: 76.9 | D15: 77.88780488 | E15: 80.38780488 | F15: 80.6 | G15: 0.04811443433
B16: Hong Kong | C16: 77.4 | D16: 80.87804878 | E16: 82.97804878 | F16: 83.7 | G16: 0.08139534884
B17: India | C17: 57.9 | D17: 62.505 | E17: 66.693 | F17: 67.7 | G17: 0.1692573402
B18: Indonesia | C18: 62.3 | D18: 65.772 | E18: 69.205 | F18: 68.3 | G18: 0.0963081862
B19: Ireland | C19: 74.8 | D19: 76.53658537 | E19: 80.74390244 | F19: 83.1 | G19: 0.1109625668
B20: Israel | C20: 76.6 | D20: 78.95365854 | E20: 81.60243902 | F20: 82.7 | G20: 0.07963446475
B21: Italy | C21: 77 | D21: 79.77804878 | E21: 82.03658537 | F21: 82.9 | G21: 0.07662337662
B22: Japan | C22: 78.8 | D22: 81.07609756 | E22: 82.84268293 | F22: 84 | G22: 0.06598984772
B23: Kazakhstan | C23: 68.3 | D23: 65.45 | E23: 68.45 | F23: 74.4 | G23: 0.08931185944
B24: Lithuania | C24: 71.2 | D24: 72.0195122 | E24: 73.26829268 | F24: 75.8 | G24: 0.06460674157
B25: Mexico | C25: 70.9 | D25: 74.34 | E25: 75.065 | F25: 74.8 | G25: 0.05500705219
B26: Mozambique | C26: 45.3 | D26: 48.946 | E26: 52.31 | F26: 59.6 | G26: 0.3156732892
B27: Nigeria | C27: 45.9 | D27: 46.267 | E27: 50.896 | F27: 53.6 | G27: 0.1677559913
B28: Pakistan | C28: 60.1 | D28: 62.82 | E28: 65.264 | F28: 66.4 | G28: 0.1048252912
B29: Philippines | C29: 66.4 | D29: 68.793 | E29: 69.823 | F29: 72.2 | G29: 0.08734939759
B30: Poland | C30: 70.9 | D30: 73.74878049 | E30: 76.24634146 | F30: 77.3 | G30: 0.09026798307
B31: Russia | C31: 68.9 | D31: 65.48365854 | E31: 68.84121951 | F31: 72.5 | G31: 0.05224963716
B32: Saudi Arabia | C32: 69.1 | D32: 72.561 | E32: 73.917 | F32: 77.9 | G32: 0.1273516643
B33: South Africa | C33: 63.3 | D33: 56.048 | E33: 57.669 | F33: 61.5 | G33: -0.02843601896
B34: Spain | C34: 76.8 | D34: 78.96585366 | E34: 81.62682927 | F34: 83.1 | G34: 0.08203125
B35: Switzerland | C35: 77.2 | D35: 79.6804878 | E35: 82.24634146 | F35: 83.5 | G35: 0.08160621762
B36: Turkey | C36: 64.3 | D36: 70.005 | E36: 74.507 | F36: 78.5 | G36: 0.2208398134
B37: Uganda | C37: 45.9 | D37: 46.229 | E37: 57.099 | F37: 63.6 | G37: 0.385620915
B38: United Kingdom | C38: 75.9 | D38: 77.74146341 | E38: 80.40243902 | F38: 82.1 | G38: 0.08168642951
B39: United States | C39: 75.2 | D39: 76.63658537 | E39: 78.54146341 | F39: 77.4 | G39: 0.02925531915
B40: Venezuela | C40: 70.7 | D40: 72.112 | E40: 73.134 | F40: 71.1 | G40: =(F40-C40)/C40 -> 0.005657708628
B41: Source: World Bank, databank.worldbank.org, World Development Indicators, accessed 12 November 2024

Sheet Life expect.emer mrkts.94+22
B2: Life expectancy at birth, emerging markets, 1990-2022
B4: Country | C4: 1990 | D4: 2000 | E4: 2010 | F4: 2022 | G4: Change 1990-2022
B5: Brazil | C5: 66.3 | D5: 70.116 | E5: 73.619 | F5: 73.4 | G5: =(F5-C5)/C5 -> 0.1070889894
B6: Bulgaria | C6: 71.6 | D6: 71.66341463 | E6: 73.51219512 | F6: 74.4 | G6: =(F6-C6)/C6 -> 0.03910614525
B7: Chile | C7: 73.5 | D7: 76.366 | E7: 78.779 | F7: 79.5 | G7: 0.08163265306
B8: China | C8: 69.1 | D8: 71.397 | E8: 74.409 | F8: 78.6 | G8: 0.1374819103
B9: Colombia | C9: 69.8 | D9: 72.945 | E9: 75.424 | F9: 73.7 | G9: 0.0558739255
B10: Czech Republic | C10: 71.4 | D10: 74.96829268 | E10: 77.42439024 | F10: 79 | G10: 0.106442577
B11: Egypt | C11: 64.6 | D11: 68.602 | E11: 70.349 | F11: 70.2 | G11: 0.0866873065
B12: Estonia | C12: 69.5 | D12: 70.41707317 | E12: 75.42926829 | F12: 77.9 | G12: 0.1208633094
B13: Greece | C13: 76.9 | D13: 77.88780488 | E13: 80.38780488 | F13: 80.6 | G13: 0.04811443433
B14: Hungary | C14: 69.3 | D14: 71.24634146 | E14: 74.20731707 | F14: 76 | G14: 0.09668109668
B15: India | C15: 57.9 | D15: 62.505 | E15: 66.693 | F15: 67.7 | G15: 0.1692573402
B16: Indonesia | C16: 62.3 | D16: 65.772 | E16: 69.205 | F16: 68.3 | G16: 0.0963081862
B17: Jordan | C17: 69.9 | D17: 71.73 | E17: 73.428 | F17: 74.2 | G17: 0.06151645207
B18: Kuwait | C18: 72.2 | D18: 73.142 | E18: 74.358 | F18: 80.3 | G18: 0.1121883657
B19: Latvia | C19: 69.3 | D19: 70.31463415 | E19: 73.48292683 | F19: 74.6 | G19: 0.07647907648
B20: Lithuania | C20: 71.2 | D20: 72.0195122 | E20: 73.26829268 | F20: 75.8 | G20: 0.06460674157
B21: Malaysia | C21: 70.9 | D21: 72.594 | E21: 74.493 | F21: 76.3 | G21: 0.07616361072
B22: Mauritius | C22: 69.4 | D22: 71.66341463 | E22: 72.96731707 | F22: 73.5 | G22: 0.0590778098
B23: Mexico | C23: 70.9 | D23: 74.34 | E23: 75.065 | F23: 74.8 | G23: 0.05500705219
B24: Morocco | C24: 64.7 | D24: 68.684 | E24: 74.382 | F24: 75 | G24: 0.1591962906
B25: Oman | C25: 67.2 | D25: 72.126 | E25: 75.682 | F25: 73.9 | G25: 0.09970238095
B26: Pakistan | C26: 60.1 | D26: 62.82 | E26: 65.264 | F26: 66.4 | G26: 0.1048252912
B27: Peru | C27: 66.2 | D27: 71.111 | E27: 74.41 | F27: 73.4 | G27: 0.1087613293
B28: Philippines | C28: 66.4 | D28: 68.793 | E28: 69.823 | F28: 72.2 | G28: 0.08734939759
B29: Poland | C29: 70.9 | D29: 73.74878049 | E29: 76.24634146 | F29: 77.3 | G29: 0.09026798307
B30: Qatar | C30: 75.8 | D30: 77.467 | E30: 79.108 | F30: 81.6 | G30: 0.0765171504
B31: Romania | C31: 69.7 | D31: 71.16341463 | E31: 73.45853659 | F31: 75.3 | G31: 0.08034433286
B32: Russia | C32: 68.9 | D32: 65.48365854 | E32: 68.84121951 | F32: 72.5 | G32: 0.05224963716
B33: Slovakia | C33: 70.9 | D33: 73.05121951 | E33: 75.11219512 | F33: 77.1 | G33: 0.0874471086
B34: South Africa | C34: 63.3 | D34: 56.048 | E34: 57.669 | F34: 61.5 | G34: -0.02843601896
B35: Sri Lanka | C35: 69.5 | D35: 71.333 | E35: 75.439 | F35: 76.6 | G35: 0.1021582734
B36: Thailand | C36: 70.2 | D36: 70.623 | E36: 74.184 | F36: 79.7 | G36: 0.1353276353
B37: Turkey | C37: 64.3 | D37: 70.005 | E37: 74.507 | F37: 78.5 | G37: 0.2208398134
B38: United Arab Emirates | C38: 71.9 | D38: 74.327 | E38: 76.332 | F38: 79.2 | G38: 0.1015299026
B39: Venezuela | C39: 70.7 | D39: 72.112 | E39: 73.134 | F39: 71.1 | G39: 0.005657708628
B40: Vietnam | C40: 70.6 | D40: 73.025 | E40: 74.837 | F40: 74.6 | G40: =(F40-C40)/C40 -> 0.0566572238
B41: Source: World Bank, databank.worldbank.org, World Development Indicators, accessed 12 November 2024

Sheet Life expect.birth.Africa.90+22
B2: Life expectancy at birth, selected African countries, 1990-2022
B4: Country | C4: 1990 | D4: 2000 | E4: 2010 | F4: 2022 | G4: Change 1990-2022
B5: Algeria | C5: 66.9 | D5: 70.64 | E5: 74.938 | F5: 77.1 | G5: =(F5-C5)/C5 -> 0.1524663677
B6: Angola | C6: 45.3 | D6: 46.522 | E6: 55.35 | F6: 61.9 | G6: =(F6-C6)/C6 -> 0.3664459161
B7: Botswana | C7: 59.2 | D7: 50.629 | E7: 60.211 | F7: 65.9 | G7: =(F7-C7)/C7 -> 0.1131756757
B8: Burundi | C8: 47.8 | D8: 49.091 | E8: 57.228 | F8: 62 | G8: 0.2970711297
B9: Cameroon | C9: 53.4 | D9: 50.993 | E9: 55.101 | F9: 61 | G9: 0.1423220974
B10: Central African Republic | C10: 49.1 | D10: 44.19 | E10: 47.312 | F10: 54.5 | G10: 0.1099796334
B11: Congo (DRC) | C11: 49 | D11: 50.041 | E11: 56.909 | F11: 59.7 | G11: 0.2183673469
B12: Congo (Republic) | C12: 54.6 | D12: 52.123 | E12: 60.093 | F12: 63.1 | G12: =(F12-C12)/C12 -> 0.1556776557
B13: Egypt | C13: 64.6 | D13: 68.602 | E13: 70.349 | F13: 70.2 | G13: 0.0866873065
B14: Eritrea | C14: 49.6 | D14: 55.273 | E14: 62.193 | F14: 66.6 | G14: =(F14-C14)/C14 -> 0.3427419355
B15: Eswatini | C15: 62 | D15: 47.49 | E15: 46.601 | F15: 56.4 | G15: -0.09032258065
B16: Ethiopia | C16: 47.1 | D16: 51.941 | E16: 61.627 | F16: 65.6 | G16: 0.3927813163
B17: Ghana | C17: 56.8 | D17: 57.002 | E17: 61.03 | F17: 63.9 | G17: 0.125
B18: Ivory Coast | C18: 53.3 | D18: 49.635 | E18: 52.964 | F18: 58.9 | G18: 0.105065666
B19: Kenya | C19: 57.4 | D19: 50.921 | E19: 60.959 | F19: 62.1 | G19: 0.0818815331
B20: Lesotho | C20: 59.8 | D20: 47.691 | E20: 45.1 | F20: 53 | G20: -0.1137123746
B21: Liberia | C21: 46 | D21: 51.734 | E21: 59.6 | F21: 61.1 | G21: 0.3282608696
B22: Libya | C22: 68.5 | D22: 70.852 | E22: 72.044 | F22: 72.2 | G22: 0.05401459854
B23: Madagascar | C23: 51 | D23: 58.485 | E23: 63.388 | F23: 65.2 | G23: 0.2784313725
B24: Malawi | C24: 46.1 | D24: 45.09 | E24: 55.564 | F24: 62.9 | G24: =(F24-C24)/C24 -> 0.3644251627
B25: Mauritius | C25: 69.4 | D25: 71.66341463 | E25: 72.96731707 | F25: 73.5 | G25: =(F25-C25)/C25 -> 0.0590778098
B26: Morocco | C26: 64.7 | D26: 68.684 | E26: 74.382 | F26: 75 | G26: 0.1591962906
B27: Mozambique | C27: 45.3 | D27: 48.946 | E27: 52.31 | F27: 59.6 | G27: 0.3156732892
B28: Namibia | C28: 61.6 | D28: 52.192 | E28: 56.665 | F28: 58.1 | G28: -0.05681818182
B29: Nigeria | C29: 45.9 | D29: 46.267 | E29: 50.896 | F29: 53.6 | G29: 0.1677559913
B30: Rwanda | C30: 33.4 | D30: 48.649 | E30: 63.433 | F30: 67.1 | G30: 1.008982036
B31: Senegal | C31: 57.2 | D31: 57.787 | E31: 64.284 | F31: 67.9 | G31: 0.1870629371
B32: Somalia | C32: 45.4 | D32: 50.869 | E32: 53.99 | F32: 56.1 | G32: 0.2356828194
B33: South Africa | C33: 63.3 | D33: 56.048 | E33: 57.669 | F33: 61.5 | G33: =(F33-C33)/C33 -> -0.02843601896
B34: Sudan | C34: 55.5 | D34: 58.472 | E34: 62.764 | F34: 65.6 | G34: 0.181981982
B35: Tanzania | C35: 50.2 | D35: 50.801 | E35: 58.584 | F35: 66.8 | G35: 0.3306772908
B36: Tunisia | C36: 68.8 | D36: 73.172 | E36: 75.041 | F36: 74.3 | G36: 0.07994186047
B37: Uganda | C37: 45.9 | D37: 46.229 | E37: 57.099 | F37: 63.6 | G37: 0.385620915
B38: Zambia | C38: 49.2 | D38: 44 | E38: 55.655 | F38: 61.8 | G38: 0.256097561
B39: Zimbabwe | C39: 58.1 | D39: 44.649 | E39: 50.64 | F39: 59.4 | G39: 0.02237521515
B40: Source: World Bank, databank.worldbank.org, World Development Indicators, accessed 12 November 2024

Sheet Surv to age 65, sel count.22
B2: Survival to age 65 by sexa, selected countries, 1990 and 2022
C4: Country | D4: —Male— | F4: —Female—
D5: 1990 | E5: 2022 | F5: 1990 | G5: 2022
C6: Australia | D6: 0.801 | E6: 89.287141 | F6: 0.888 | G6: 93.468752
C7: Botswana | D7: 0.401 | E7: 57.261511 | F7: 0.584 | G7: 68.821925
C8: Brazil | D8: 0.594 | E8: 71.100394 | F8: 0.731 | G8: 82.974848
C9: Chile | D9: 0.723 | E9: 82.483579 | F9: 0.836 | G9: 89.50858
C10: China | D10: 0.716 | E10: 82.805894 | F10: 0.781 | G10: 90.781947
C11: Denmark | D11: 0.758 | E11: 87.92563 | F11: 0.841 | G11: 92.39657
C12: Egypt | D12: 0.608 | E12: 66.278947 | F12: 0.716 | G12: 78.617342
C13: France | D13: 0.752 | E13: 85.982675 | F13: 0.892 | G13: 92.776756
C14: Germany | D14: 0.757 | E14: 85.352269 | F14: 0.876 | G14: 91.877336
C15: Ghana | D15: 0.511 | E15: 57.89441 | F15: 0.57 | G15: 66.77967
C16: Greece | D16: 0.795 | E16: 84.229861 | F16: 0.894 | G16: 92.648841
C17: Hong Kong | D17: 0.807 | E17: 90.222998 | F17: 0.897 | G17: 94.994296
C18: India | D18: 0.522 | E18: 63.168279 | F18: 0.568 | G18: 71.128889
C19: Indonesia | D19: 0.599 | E19: 63.65722 | F19: 0.66 | G19: 73.500657
C20: Ireland | D20: 0.773 | E20: 90.067979 | F20: 0.864 | G20: 93.546907
C21: Israel | D21: 0.807 | E21: 88.535714 | F21: 0.874 | G21: 93.803963
C22: Italy | D22: 0.789 | E22: 90.780529 | F22: 0.896 | G22: 94.559543
C23: Japan | D23: 0.826 | E23: 89.99677 | F23: 0.913 | G23: 94.832667
C24: Kazakhstan | D24: 0.539 | E24: 60.094099 | F24: 0.759 | G24: 78.791196
C25: Lithuania | D25: 0.584 | E25: 66.8386 | F25: 0.82 | G25: 86.698307
C26: Mexico | D26: 0.679 | E26: 72.53396 | F26: 0.789 | G26: 84.656881
C27: Mozambique | D27: 0.353 | E27: 44.559126 | F27: 0.422 | G27: 60.527989
C28: Nigeria | D28: 0.357 | E28: 46.041738 | F28: 0.412 | G28: 47.754808
C29: Pakistan | D29: 0.595 | E29: 63.396418 | F29: 0.627 | G29: 73.755113
C30: Philippines | D30: 0.611 | E30: 74.008519 | F30: 0.758 | G30: 81.715031
C31: Poland | D31: 0.624 | E31: 76.620058 | F31: 0.829 | G31: 89.781126
C32: Russia | D32: 0.517 | E32: 55.001426 | F32: 0.787 | G32: 81.858171
C33: Saudi Arabia | D33: 0.699 | E33: 84.329583 | F33: 0.779 | G33: 87.781626
C34: South Africa | D34: 0.547 | E34: 44.233683 | F34: 0.681 | G34: 57.223982
C35: Spain | D35: 0.785 | E35: 88.88725 | F35: 0.904 | G35: 94.564687
C36: Switzerland | D36: 0.802 | E36: 91.311092 | F36: 0.899 | G36: 94.588086
C37: Turkey | D37: 0.608 | E37: 81.759683 | F37: 0.739 | G37: 91.568411
C38: Uganda | D38: 0.262 | E38: 54.463454 | F38: 0.394 | G38: 65.623891
C39: United Kingdom | D39: 0.784 | E39: 88.073559 | F39: 0.866 | G39: 92.047562
C40: United States | D40: 0.742 | E40: 77.585606 | F40: 0.851 | G40: 86.438982
C41: Venezuela | D41: 0.669 | E41: 66.170857 | F41: 0.785 | G41: 82.058206
C42: Source: World Bank, databank.worldbank.org, World Development Indicators, accessed 15 November 2024
C43: a The proportion of children born in that year projected to survive to the age of 65 or over. For example, 57.2% of girls born in South Africa in 2022 are predicted to survive to the age of 65 or over.

Sheet Surv to age 65 emer mrkts.22
B2: Survival to age 65 by sexa, emerging markets, 1990 and 2022
C4: Country | D4: —Male— | F4: —Female—
D5: 1990 | E5: 2022 | F5: 1990 | G5: 2022
C6: Brazil | D6: 0.594 | E6: 71.100394 | F6: 0.731 | G6: 82.974848
C7: Bulgaria | D7: 0.664 | E7: 65.003225 | F7: 0.832 | G7: 81.667078
C8: Chile | D8: 0.723 | E8: 82.483579 | F8: 0.836 | G8: 89.50858
C9: China | D9: 0.716 | E9: 82.805894 | F9: 0.781 | G9: 90.781947
C10: Colombia | D10: 0.654 | E10: 71.919309 | F10: 0.789 | G10: 83.716544
C11: Czech Republic | D11: 0.669 | E11: 81.211553 | F11: 0.843 | G11: 90.832654
C12: Egypt | D12: 0.608 | E12: 66.278947 | F12: 0.716 | G12: 78.617342
C13: Estonia | D13: 0.559 | E13: 77.702688 | F13: 0.807 | G13: 91.345086
C14: Greece | D14: 0.795 | E14: 84.229861 | F14: 0.894 | G14: 92.648841
C15: Hungary | D15: 0.571 | E15: 71.607961 | F15: 0.792 | G15: 85.416909
C16: India | D16: 0.522 | E16: 63.168279 | F16: 0.568 | G16: 71.128889
C17: Indonesia | D17: 0.599 | E17: 63.65722 | F17: 0.66 | G17: 73.500657
C18: Jordan | D18: 0.711 | E18: 77.973239 | F18: 0.772 | G18: 85.906457
C19: Kuwait | D19: 0.778 | E19: 89.433041 | F19: 0.836 | G19: 93.969016
C20: Latvia | D20: 0.541 | E20: 70.696271 | F20: 0.798 | G20: 87.74441
C21: Lithuania | D21: 0.584 | E21: 66.8386 | F21: 0.82 | G21: 86.698307
C22: Malaysia | D22: 0.703 | E22: 77.499413 | F22: 0.805 | G22: 87.521042
C23: Mauritius | D23: 0.607 | E23: 71.550843 | F23: 0.779 | G23: 84.108343
C24: Mexico | D24: 0.679 | E24: 72.53396 | F24: 0.789 | G24: 84.656881
C25: Morocco | D25: 0.629 | E25: 78.980988 | F25: 0.702 | G25: 86.228285
C26: Oman | D26: 0.663 | E26: 79.286243 | F26: 0.741 | G26: 85.36559
C27: Pakistan | D27: 0.595 | E27: 63.396418 | F27: 0.627 | G27: 73.755113
C28: Peru | D28: 0.649 | E28: 72.66549 | F28: 0.733 | G28: 80.468493
C29: Philippines | D29: 0.611 | E29: 74.008519 | F29: 0.758 | G29: 81.715031
C30: Poland | D30: 0.624 | E30: 76.620058 | F30: 0.829 | G30: 89.781126
C31: Qatar | D31: 0.822 | E31: 91.71742 | F31: 0.822 | G31: 93.56146
C32: Romania | D32: 0.631 | E32: 71.814563 | F32: 0.8 | G32: 86.859445
C33: Russia | D33: 0.517 | E33: 55.001426 | F33: 0.787 | G33: 81.858171
C34: Slovakia | D34: 0.628 | E34: 74.054385 | F34: 0.834 | G34: 87.802014
C35: South Africa | D35: 0.547 | E35: 44.233683 | F35: 0.681 | G35: 57.223982
C36: Sri Lanka | D36: 0.636 | E36: 77.108228 | F36: 0.798 | G36: 89.380769
C37: Thailand | D37: 0.662 | E37: 76.239345 | F37: 0.779 | G37: 89.087685
C38: Turkey | D38: 0.608 | E38: 81.759683 | F38: 0.739 | G38: 91.568411
C39: United Arab Emirates | D39: 0.742 | E39: 87.710539 | F39: 0.784 | G39: 91.819945
C40: Venezuela | D40: 0.669 | E40: 66.170857 | F40: 0.785 | G40: 82.058206
C41: Vietnam | D41: 0.667 | E41: 72.68571 | F41: 0.823 | G41: 87.611841
C42: Source: World Bank, databank.worldbank.org, World Development Indicators, accessed 15 November 2024
C43: a The proportion of children born in that year projected to survive to the age of 65 or over. For example, 57.2% of girls born in South Africa in 2022 are predicted to survive to the age of 65 or over.

Sheet Surv to age 65.Africa.22
B2: Survival to age 65 by sexa, selected African countries, 1990 and 2022
C4: Country | D4: —Male— | F4: —Female—
D5: 1990 | E5: 2022 | F5: 1990 | G5: 2022
C6: Algeria | D6: 0.663 | E6: 84.018003 | F6: 0.733 | G6: 88.46934
C7: Angola | D7: 0.335 | E7: 52.233344 | F7: 0.405 | G7: 64.128014
C8: Botswana | D8: 0.401 | E8: 57.261511 | F8: 0.584 | G8: 68.821925
C9: Burundi | D9: 0.339 | E9: 54.57275 | F9: 0.402 | G9: 62.685038
C10: Cameroon | D10: 0.447 | E10: 51.512169 | F10: 0.514 | G10: 58.645492
C11: Central African Republic | D11: 0.356 | E11: 37.306559 | F11: 0.441 | G11: 46.99572
C12: Congo (DRC) | D12: 0.398 | E12: 50.966608 | F12: 0.454 | G12: 60.390727
C13: Congo (Republic) | D13: 0.376 | E13: 55.03218 | F13: 0.512 | G13: 61.761608
C14: Egypt | D14: 0.608 | E14: 66.278947 | F14: 0.716 | G14: 78.617342
C15: Eritrea | D15: 0.395 | E15: 62.862083 | F15: 0.452 | G15: 71.278972
C16: Eswatini | D16: 0.533 | E16: 30.419901 | F16: 0.624 | G16: 51.209477
C17: Ethiopia | D17: 0.371 | E17: 59.716194 | F17: 0.429 | G17: 72.219637
C18: Ghana | D18: 0.511 | E18: 57.89441 | F18: 0.57 | G18: 66.77967
C19: Ivory Coast | D19: 0.436 | E19: 48.288605 | F19: 0.51 | G19: 51.815062
C20: Kenya | D20: 0.463 | E20: 45.994789 | F20: 0.568 | G20: 58.286694
C21: Lesotho | D21: 0.44 | E21: 30.385943 | F21: 0.643 | G21: 42.174781
C22: Liberia | D22: 0.387 | E22: 53.817804 | F22: 0.456 | G22: 59.206489
C23: Libya | D23: 0.683 | E23: 70.691095 | F23: 0.761 | G23: 80.465739
C24: Madagascar | D24: 0.436 | E24: 60.287815 | F24: 0.486 | G24: 69.604369
C25: Malawi | D25: 0.326 | E25: 47.02527 | F25: 0.425 | G25: 62.664211
C26: Mauritius | D26: 0.607 | E26: 71.550843 | F26: 0.779 | G26: 84.108343
C27: Morocco | D27: 0.629 | E27: 78.980988 | F27: 0.702 | G27: 86.228285
C28: Mozambique | D28: 0.353 | E28: 44.559126 | F28: 0.422 | G28: 60.527989
C29: Namibia | D29: 0.512 | E29: 34.105225 | F29: 0.645 | G29: 52.423459
C30: Nigeria | D30: 0.357 | E30: 46.041738 | F30: 0.412 | G30: 47.754808
C31: Rwanda | D31: 0.213 | E31: 61.199241 | F31: 0.258 | G31: 71.350829
C32: Senegal | D32: 0.521 | E32: 64.354516 | F32: 0.595 | G32: 75.450748
C33: Somalia | D33: 0.348 | E33: 44.86185 | F33: 0.405 | G33: 54.112813
C34: South Africa | D34: 0.547 | E34: 44.233683 | F34: 0.681 | G34: 57.223982
C35: Sudan | D35: 0.489 | E35: 61.400028 | F35: 0.551 | G35: 71.435972
C36: Tanzania | D36: 0.374 | E36: 61.858196 | F36: 0.463 | G36: 69.87761
C37: Tunisia | D37: 0.685 | E37: 76.150226 | F37: 0.762 | G37: 86.405285
C38: Uganda | D38: 0.262 | E38: 54.463454 | F38: 0.394 | G38: 65.623891
C39: Zambia | D39: 0.366 | E39: 49.134736 | F39: 0.423 | G39: 62.604672
C40: Zimbabwe | D40: 0.408 | E40: 41.037746 | F40: 0.552 | G40: 54.538231
C41: Source: World Bank, databank.worldbank.org, World Development Indicators, accessed 15 November 2024
C42: a The proportion of children born in that year projected to survive to the age of 65 or over. For example, 57.2% of girls born in South Africa in 2022 are predicted to survive to the age of 65 or over.

Sheet Dependency

Sheet Dependency on employed 94-24
B2: Dependency on the employed by race, 1994-2024
B4: Year | C4: Black | D4: Coloured | E4: Indian/Asian | F4: White | G4: Total
B5: 1994 | C5: 490 | D5: 180 | E5: 140 | F5: 220 | G5: 380
B6: 1995 | C6: 490 | D6: 200 | E6: 130 | F6: 230 | G6: 390
B7: 1996 | C7: 580 | D7: 180 | E7: 150 | F7: 220 | G7: 430
B8: 1997 | C8: 590 | D8: 200 | E8: 130 | F8: 240 | G8: 450
B9: 1998 | C9: 450 | D9: 220 | E9: 210 | F9: 130 | G9: 350
B10: 1999 | C10: 400 | D10: 190 | E10: 180 | F10: 120 | G10: 320
B11: 2000 | C11: 330 | D11: 190 | E11: 180 | F11: 120 | G11: 270
B12: 2001 | C12: 300 | D12: 190 | E12: 190 | F12: 120 | G12: 260
B13: 2002 | C13: 330 | D13: 190 | E13: 200 | F13: 120 | G13: 280
B14: 2003 | C14: 370 | D14: 190 | E14: 190 | F14: 110 | G14: 300 | AA14: Formula: (Total population -employed)/employed*100
B15: 2004 | C15: 360 | D15: 180 | E15: 190 | F15: 120 | G15: 290 | R15: Formula: (Total population -employed)/employed*100
B16: 2005 | C16: 330 | D16: 190 | E16: 180 | F16: 110 | G16: 280 | T16: Black | U16: Coloured | V16: Indian/Asian | W16: White | X16: Total
B17: 2006 | C17: 310 | D17: 190 | E17: 160 | F17: 110 | G17: 260 | R17: Population by race | T17: 51509312 | U17: 5338586 | V17: 1628794 | W17: 4539212 | X17: 63015904 | AA17: Black | AB17: Coloured | AC17: Indian/Asian | AD17: White | AE17: Total
B18: 2007 | C18: 310 | D18: 180 | E18: 170 | F18: 110 | G18: 260 | R18: Employment by race | T18: 12668000 | U18: 1685000 | V18: 552000 | W18: 1748000 | X18: 16652000 | AA18: 49070809 | AB18: 5339919 | AC18: 1554996 | AD18: 4639268 | AE18: 60604992
B19: 2008 | C19: 300 | D19: 180 | E19: 160 | F19: 120 | G19: 250 | AA19: 11789000 | AB19: 1531000 | AC19: 543000 | AD19: 1699000 | AE19: 15562000
B20: 2009 | C20: 320 | D20: 180 | E20: 170 | F20: 120 | G20: 270
B21: 2010 | C21: 340 | D21: 200 | E21: 160 | F21: 130 | G21: 280 | T21: =(T17-T18)/T18 -> 3.066096621 | U21: =(U17-U18)/U18 -> 2.168300297 | V21: 1.950713768 | W21: 1.596803204 | X21: 2.78428441 | AA21: =(AA18-AA19)/AA19*100 -> 316.2423361 | AB21: =(AB18-AB19)/AB19*100 -> 248.7863488 | AC21: =(AC18-AC19)/AC19*100 -> 186.3712707 | AD21: 173.0587404 | AE21: 289.4421797
B22: 2011 | C22: 340 | D22: 220 | E22: 160 | F22: 130 | G22: 290
B23: 2012 | C23: 320 | D23: 210 | E23: 170 | F23: 140 | G23: 280 | T23: =T21*100 -> 306.6096621 | U23: =U21*100 -> 216.8300297 | V23: 195.0713768 | W23: 159.6803204 | X23: 278.428441
B24: 2013 | C24: 331 | D24: 223 | E24: 160 | F24: 139 | G24: 286
B25: 2014 | C25: 291 | D25: 198 | E25: 180 | F25: 135 | G25: 257
B26: 2015 | C26: 280 | D26: 200 | E26: 180 | F26: 130 | G26: 250
B27: 2016 | C27: 280 | D27: 200 | E27: 170 | F27: 130 | G27: 250
B28: 2017 | C28: 279.67 | D28: 200 | E28: 168 | F28: 134 | G28: 250
B29: 2018 | C29: 284 | D29: 196 | E29: 165 | F29: 144 | G29: 254
B30: 2019 | C30: 287 | D30: 207 | E30: 184 | F30: 152 | G30: 260
B31: 2020 | C31: 356 | D31: 272 | E31: 216 | F31: 176 | G31: 321
B32: 2021 | C32: 331 | D32: 274 | E32: 217 | F32: 138 | G32: 303
B33: 2022 | C33: 316.2423361 | D33: 248.7863488 | E33: 186.3712707 | F33: 173.0587404 | G33: 289.4421797
B34: 2023 | C34: 302 | D34: 213 | E34: 201 | F34: 166 | G34: 275
B35: 2024 | C35: 306.6096621 | D35: 216.8300297 | E35: 195.0713768 | F35: 159.6803204 | G35: 278.428441
B36: 1994-2024 | C36: =(C35-C5)/C5 -> -0.3742659956 | D36: =(D35-D5)/D5 -> 0.204611276 | E36: 0.3933669772 | F36: =(F35-F5)/F5 -> -0.274180362 | G36: =(G35-G5)/G5 -> -0.2672935762
B37: Source: CRA calculations based on the Stats SA data
B38: This table shows the number of people not working (including both the officially unemployed, those who choose not to work, and those too young or old to work) for every 100 employed people. For example, in 1994, there were on average 490 black people who were not working for every 100 employed black people. The total column reflects the average for the whole country. So in 1994, there were 380 people not working for every 100 employed. This data gives a more comprehensive picture of dependency than the official dependency ratio, which assesses the ratio of the young and old to the working-age population, regardless of whether they are actually working or not (also see the Employment chapter).

Sheet Old age dependency on the e
B2: Old-age dependency on the employeda by race, 2003-24
B4: Year | C4: Black | D4: Coloured | E4: Indian/Asian | F4: White | G4: Total
B5: 2003 | C5: 21 | D5: 12 | E5: 14 | F5: 24 | G5: 20
B6: 2004 | C6: 15 | D6: 10 | E6: 15 | F6: 22 | G6: 16
B7: 2005 | C7: 18 | D7: 13 | E7: 18 | F7: 26 | G7: 19
B8: 2006 | C8: 17 | D8: 13 | E8: 17 | F8: 27 | G8: 18
B9: 2007 | C9: 17 | D9: 14 | E9: 19 | F9: 28 | G9: 19
B10: 2008 | C10: 15 | D10: 12 | E10: 17 | F10: 27 | G10: 17
B11: 2009 | C11: 16 | D11: 13 | E11: 20 | F11: 30 | G11: 18 | AC11: Formula: (Total population -employed)/employed*100
B12: 2010 | C12: 17 | D12: 14 | E12: 19 | F12: 32 | G12: 19
B13: 2011 | C13: 19 | D13: 16 | E13: 18 | F13: 32 | G13: 21 | AB13: Black | AC13: Coloured | AD13: Indian/Asian | AE13: White | AF13: Total
B14: 2012 | C14: 18 | D14: 15 | E14: 19 | F14: 33 | G14: 20 | Y14: People 65+ | AB14: 2522357 | AC14: 418040 | AD14: 175565 | AE14: 1016164 | AF14: 4132126
B15: 2013 | C15: 18 | D15: 15 | E15: 18 | F15: 33 | G15: 20 | Y15: People working | AB15: 12668000 | AC15: 1685000 | AD15: 552000 | AE15: 1748000 | AF15: 16652000
B16: 2014 | C16: 19 | D16: 13 | E16: 18 | F16: 33 | G16: 20
B17: 2015 | C17: 16 | D17: 15 | E17: 21 | F17: 37 | G17: 18
B18: 2016 | C18: 16 | D18: 15 | E18: 21 | F18: 38 | G18: 19 | AB18: =AB14/AB15 -> 0.1991124882 | AC18: =AC14/AC15 -> 0.2480949555 | AD18: 0.3180525362 | AE18: 0.5813295195 | AF18: 0.2481459284
B19: 2017 | C19: 20 | D19: 17 | E19: 22 | F19: 40 | G19: 19
B20: 2018 | C20: 16 | D20: 19 | E20: 25 | F20: 47 | G20: 20 | AB20: =AB18*100 -> 19.91124882 | AC20: =AC18*100 -> 24.80949555 | AD20: 31.80525362 | AE20: 58.13295195 | AF20: 24.81459284
B21: 2019 | C21: 17 | D21: 19 | E21: 27 | F21: 49 | G21: 22
B22: 2020 | C22: 21 | D22: 25 | E22: 31 | F22: 56 | G22: 35
B23: 2021 | C23: 20 | D23: 26 | E23: 31 | F23: 54 | G23: 25
B24: 2022 | C24: 20 | D24: 25 | E24: 31 | F24: 58 | G24: 25
B25: 2023 | C25: 19 | D25: 23 | E25: 31 | F25: 57 | G25: 24
B26: 2024 | C26: 19.91124882 | D26: 24.80949555 | E26: 31.80525362 | F26: 58.13295195 | G26: 24.81459284
B27: 2003-24 | C27: =(C26-C5)/C5 -> -0.05184529448 | D27: =(D26-D5)/D5 -> 1.067457962 | E27: 1.27180383 | F27: =(F26-F5)/F5 -> 1.422206331 | G27: =(G26-G5)/G5 -> 0.2407296421
B28: Source: CRA calculations based on Stats SA data
B29: a The number of people aged 65 and over per 100 people who are working.

Sheet Dependency.by race. 03-24
B2: Old-age dependency on the employeda by race, 2003-20
J3: Black | K3: Coloured | L3: Indian/Asian | M3: White | N3: Total
B4: Year | C4: Black | D4: Coloured | E4: Indian/Asian | F4: White | G4: Total | I4: 2003 | J4: 21 | K4: 12 | L4: 14 | M4: 24 | N4: 20
B5: 2003 | C5: 21 | D5: 12 | E5: 14 | F5: 24 | G5: 20 | I5: 2024 | J5: 19.91124882 | K5: 24.80949555 | L5: 31.80525362 | M5: 58.13295195 | N5: 24.81459284
B6: 2004 | C6: 15 | D6: 10 | E6: 15 | F6: 22 | G6: 16
B7: 2005 | C7: 18 | D7: 13 | E7: 18 | F7: 26 | G7: 19
B8: 2006 | C8: 17 | D8: 13 | E8: 17 | F8: 27 | G8: 18
B9: 2007 | C9: 17 | D9: 14 | E9: 19 | F9: 28 | G9: 19
B10: 2008 | C10: 15 | D10: 12 | E10: 17 | F10: 27 | G10: 17
B11: 2009 | C11: 16 | D11: 13 | E11: 20 | F11: 30 | G11: 18
B12: 2010 | C12: 17 | D12: 14 | E12: 19 | F12: 32 | G12: 19 | J12: Black | K12: Coloured | L12: Indian/Asian | M12: White | N12: Total
B13: 2011 | C13: 19 | D13: 16 | E13: 18 | F13: 32 | G13: 21 | J13: 2137629 | K13: 328059 | L13: 142564 | M13: 912523 | N13: 3520776
B14: 2012 | C14: 18 | D14: 15 | E14: 19 | F14: 33 | G14: 20 | J14: 12250000 | K14: 1687000 | L14: 530000 | M14: 1845000 | N14: 16313000
B15: 2013 | C15: 18 | D15: 15 | E15: 18 | F15: 33 | G15: 20 | J15: =(J13/J14)*100 -> 17.45003265 | K15: =(K13/K14)*100 -> 19.4462952 | L15: 26.89886792 | M15: 49.45924119 | N15: 21.58263961
B16: 2014 | C16: 19 | D16: 13 | E16: 18 | F16: 33 | G16: 20
B17: 2015 | C17: 16 | D17: 15 | E17: 21 | F17: 37 | G17: 18 | J17: =(J14/J13) -> 5.730648302
B18: 2016 | C18: 16 | D18: 15 | E18: 21 | F18: 38 | G18: 19
B19: 2017 | C19: 20 | D19: 17 | E19: 22 | F19: 40 | G19: 19
B20: 2018 | C20: 16 | D20: 19 | E20: 25 | F20: 47 | G20: 20
B21: 2003-18 | C21: =(C20-C5)/C5 -> -0.2380952381 | D21: =(D20-D5)/D5 -> 0.5833333333 | E21: 0.7857142857 | F21: 0.9583333333 | G21: 0
B22: Source: CRA calculations based on Stats SA data
B23: a The number of people aged 65 and over per 100 people who are working.

Sheet Dependen ratio sel count. 90+23
B2: Dependency ratio, selected countries, 1990 and 2023
B4: Country | C4: Child dependency —ratioa— | E4: Old-age dependency —ratiob— | G4: Dependency —ratiob—
C5: 1990 | D5: 2023 | E5: 1990 | F5: 2023 | G5: 1990 | H5: 2023
B6: Australia | C6: 32.92652 | D6: 27.7524919 | E6: 16.56986 | F6: 26.60236369 | G6: 49.49638 | H6: 54.3548556
B7: Botswana | C7: 88.29714 | D7: 50.32338075 | E7: 6.036712 | F7: 5.884496116 | G7: 94.33386 | H7: 56.20787686
B8: Brazil | C8: 58.4451 | D8: 28.66411613 | E8: 7.406175 | F8: 14.63414171 | G8: 65.85128 | H8: 43.29825784
B9: Chile | C9: 46.57103 | D9: 26.59389265 | E9: 9.213851 | F9: 19.70831068 | G9: 55.78489 | H9: 46.30220333
B10: China | C10: 43.88424 | D10: 24.34960998 | E10: 8.046113 | F10: 20.69261013 | G10: 51.93035 | H10: 45.04222012
B11: Denmark | C11: 25.30601 | D11: 25.17917459 | E11: 23.18562 | F11: 32.71406565 | G11: 48.49163 | H11: 57.89324024
B12: Egypt | C12: 75.32732 | D12: 52.22229926 | E12: 7.749764 | F12: 7.862323751 | G12: 83.07709 | H12: 60.08462301
B13: France | C13: 30.46166 | D13: 27.95524579 | E13: 21.4081 | F13: 36.0898635 | G13: 51.86976 | H13: 64.04510929
B14: Germany | C14: 23.41014 | D14: 22.11157127 | E14: 21.60665 | F14: 35.95536353 | G14: 45.01678 | H14: 58.0669348
B15: Ghana | C15: 92.39359 | D15: 61.26310473 | E15: 5.15058 | F15: 6.108161165 | G15: 97.54417 | H15: 67.3712659
B16: Greece | C16: 28.86789 | D16: 21.49866626 | E16: 20.85609 | F16: 36.59795104 | G16: 49.72399 | H16: 58.09661731
B17: Hong Kong | C17: 29.84088 | D17: 17.77842135 | E17: 12.27184 | F17: 32.01674599 | G17: 42.11273 | H17: 49.79516734
B18: India | C18: 65.51317 | D18: 36.60329997 | E18: 7.041142 | F18: 10.39594769 | G18: 72.55431 | H18: 46.99924766
B19: Indonesia | C19: 59.39576 | D19: 36.54110859 | E19: 6.709845 | F19: 10.31617889 | G19: 66.1056 | H19: 46.85728748
B20: Ireland | C20: 44.14439 | D20: 29.37779462 | E20: 18.73943 | F20: 23.70402606 | G20: 62.88382 | H20: 53.08182069
B21: Israel | C21: 51.38934 | D21: 46.65708485 | E21: 16.23758 | F21: 20.32351797 | G21: 67.62692 | H21: 66.98060282
B22: Italy | C22: 24.14479 | D22: 19.25819229 | E22: 21.82879 | F22: 38.61667186 | G22: 45.97358 | H22: 57.87486415
B23: Japan | C23: 25.63425 | D23: 19.61718246 | E23: 17.78329 | F23: 51.42976332 | G23: 43.41754 | H23: 71.04694578
B24: Kazakhstan | C24: 50.48048 | D24: 47.66414753 | E24: 8.646098 | F24: 13.17471099 | G24: 59.12658 | H24: 60.83885852
B25: Lithuania | C25: 33.72579 | D25: 24.34623703 | E25: 16.49604 | F25: 33.4932303 | G25: 50.22183 | H25: 57.83946733
B26: Mexico | C26: 68.69672 | D26: 35.64116125 | E26: 7.226973 | F26: 12.7432926 | G26: 75.92369 | H26: 48.38445385
B27: Mozambique | C27: 84.06262 | D27: 79.96506162 | E27: 5.545009 | F27: 4.749915905 | G27: 89.60763 | H27: 84.71497753
B28: Nigeria | C28: 85.99168 | D28: 78.82217247 | E28: 6.157397 | F28: 5.503446348 | G28: 92.14908 | H28: 84.32561882
B29: Pakistan | C29: 82.81946 | D29: 60.73701486 | E29: 6.540675 | F29: 7.304263454 | G29: 89.36013 | H29: 68.04127832
B30: Philippines | C30: 72.2664 | D30: 46.60118347 | E30: 5.929805 | F30: 8.705151047 | G30: 78.1962 | H30: 55.30633452
B31: Poland | C31: 38.3684 | D31: 22.46282134 | E31: 15.52565 | F31: 27.85534715 | G31: 53.89405 | H31: 50.31816849
B32: Russia | C32: 34.26762 | D32: 26.51867588 | E32: 14.84815 | F32: 24.38727629 | G32: 49.11577 | H32: 50.90595216
B33: Saudi Arabia | C33: 73.7785 | D33: 35.87450635 | E33: 4.606365 | F33: 4.276204025 | G33: 78.38486 | H33: 40.15071037
B34: South Africa | C34: 66.78582 | D34: 42.97623708 | E34: 6.699893 | F34: 8.886482906 | G34: 73.48572 | H34: 51.86271998
B35: Spain | C35: 29.9211 | D35: 20.46363363 | E35: 20.55782 | F35: 31.51368363 | G35: 50.47892 | H35: 51.97731726
B36: Switzerland | C36: 25.01773 | D36: 22.96482617 | E36: 21.30438 | F36: 30.10066862 | G36: 46.32211 | H36: 53.06549479
B37: Turkey | C37: 60.00969 | D37: 33.75072225 | E37: 7.939259 | F37: 13.12437602 | G37: 67.94895 | H37: 46.87509828
B38: Uganda | C38: 98.95269 | D38: 82.49652394 | E38: 5.733953 | F38: 3.192579245 | G38: 104.6866 | H38: 85.68910319
B39: United Kingdom | C39: 29.16065 | D39: 27.1877651 | E39: 24.08328 | F39: 30.72757315 | G39: 53.24393 | H39: 57.91533825
B40: United States | C40: 32.58315 | D40: 27.30241517 | E40: 18.56815 | F40: 27.16816043 | G40: 51.1513 | H40: 54.4705756
B41: Venezuela | C41: 65.49709 | D41: 41.48744437 | E41: 6.724103 | F41: 13.67662138 | G41: 72.22119 | H41: 55.16406575
B42: Source: World Bank, databank.worldbank.org, World Development Indicators, accessed 15 November 2024
B43: a Refers to the number of children under 15 years of age who are dependent on every 100 people in the working-age population (aged between 15 and 64).
B44: b Refers to the number of people aged 65 and over who are dependent on every 100 people in the working-age population.
B45: c Refers to the number of children under 15 and adults over 65 who are dependent on every 100 people in the working-age population.

Sheet Depen ratio emer mrkts. 90&23
B2: Dependency ratio, emerging markets, 1990 and 2023
B4: Country | C4: Child dependency —ratioa— | E4: Old-age dependency —ratiob— | G4: Dependency —ratiob—
C5: 1990 | D5: 2023 | E5: 1990 | F5: 2023 | G5: 1990 | H5: 2023
B6: Brazil | C6: 58.4451 | D6: 28.66411613 | E6: 7.406175 | F6: 14.63414171 | G6: 65.85128 | H6: 43.29825784
B7: Bulgaria | C7: 31.01391 | D7: 21.92212125 | E7: 21.46431 | F7: 35.00011958 | G7: 52.47822 | H7: 56.92224083
B8: Chile | C8: 46.57103 | D8: 26.59389265 | E8: 9.213851 | F8: 19.70831068 | G8: 55.78489 | H8: 46.30220333
B9: China | C9: 43.88424 | D9: 24.34960998 | E9: 8.046113 | F9: 20.69261013 | G9: 51.93035 | H9: 45.04222012
B10: Colombia | C10: 60.66795 | D10: 30.38411686 | E10: 6.487465 | F10: 13.48018373 | G10: 67.15541 | H10: 43.86430059
B11: Czech Republic | C11: 32.44805 | D11: 24.89994443 | E11: 19.00677 | F11: 32.77731923 | G11: 51.45482 | H11: 57.67726366
B12: Egypt | C12: 75.32732 | D12: 52.22229926 | E12: 7.749764 | F12: 7.862323751 | G12: 83.07709 | H12: 60.08462301
B13: Estonia | C13: 33.66358 | D13: 25.88687721 | E13: 17.59581 | F13: 33.27255973 | G13: 51.25939 | H13: 59.15943694
B14: Greece | C14: 28.86789 | D14: 21.49866626 | E14: 20.85609 | F14: 36.59795104 | G14: 49.72399 | H14: 58.09661731
B15: Hungary | C15: 30.47332 | D15: 21.83018227 | E15: 20.13147 | F15: 29.97591491 | G15: 50.60479 | H15: 51.80609718
B16: India | C16: 65.51317 | D16: 36.60329997 | E16: 7.041142 | F16: 10.39594769 | G16: 72.55431 | H16: 46.99924766
B17: Indonesia | C17: 59.39576 | D17: 36.54110859 | E17: 6.709845 | F17: 10.31617889 | G17: 66.1056 | H17: 46.85728748
B18: Jordan | C18: 88.3306 | D18: 48.82776714 | E18: 4.545115 | F18: 6.165496282 | G18: 92.87572 | H18: 54.99326342
B19: Kuwait | C19: 65.12819 | D19: 27.04182053 | E19: 2.548986 | F19: 7.315428626 | G19: 67.67717 | H19: 34.35724916
B20: Latvia | C20: 31.80407 | D20: 24.76540803 | E20: 18.18326 | F20: 35.68645809 | G20: 49.98733 | H20: 60.45186612
B21: Lithuania | C21: 33.72579 | D21: 24.34623703 | E21: 16.49604 | F21: 33.4932303 | G21: 50.22183 | H21: 57.83946733
B22: Malaysia | C22: 60.71693 | D22: 32.11919274 | E22: 6.175209 | F22: 11.15623189 | G22: 66.89214 | H22: 43.27542463
B23: Mauritius | C23: 46.03553 | D23: 22.6523242 | E23: 8.258295 | F23: 18.82482423 | G23: 54.29382 | H23: 41.47714843
B24: Mexico | C24: 68.69672 | D24: 35.64116125 | E24: 7.226973 | F24: 12.7432926 | G24: 75.92369 | H24: 48.38445385
B25: Morocco | C25: 71.94041 | D25: 40.01397079 | E25: 5.377944 | F25: 12.22222709 | G25: 77.31836 | H25: 52.23619789
B26: Oman | C26: 81.72781 | D26: 38.47031155 | E26: 4.637112 | F26: 3.99672267 | G26: 86.36493 | H26: 42.46703422
B27: Pakistan | C27: 82.81946 | D27: 60.73701486 | E27: 6.540675 | F27: 7.304263454 | G27: 89.36013 | H27: 68.04127832
B28: Peru | C28: 69.06545 | D28: 39.06416094 | E28: 6.353569 | F28: 13.03900475 | G28: 75.41902 | H28: 52.10316569
B29: Philippines | C29: 72.2664 | D29: 46.60118347 | E29: 5.929805 | F29: 8.705151047 | G29: 78.1962 | H29: 55.30633452
B30: Poland | C30: 38.3684 | D30: 22.46282134 | E30: 15.52565 | F30: 27.85534715 | G30: 53.89405 | H30: 50.31816849
B31: Qatar | C31: 38.03702 | D31: 18.97379488 | E31: 1.536118 | F31: 1.948501442 | G31: 39.57314 | H31: 20.92229632
B32: Romania | C32: 35.63184 | D32: 24.10763093 | E32: 15.99051 | F32: 28.09723352 | G32: 51.62235 | H32: 52.20486446
B33: Russia | C33: 34.26762 | D33: 26.51867588 | E33: 14.84815 | F33: 24.38727629 | G33: 49.11577 | H33: 50.90595216
B34: Slovakia | C34: 39.14854 | D34: 23.17781074 | E34: 15.7811 | F34: 25.12574432 | G34: 54.92964 | H34: 48.30355506
B35: South Africa | C35: 66.78582 | D35: 42.97623708 | E35: 6.699893 | F35: 8.886482906 | G35: 73.48572 | H35: 51.86271998
B36: Sri Lanka | C36: 51.63303 | D36: 34.13282213 | E36: 9.82802 | F36: 18.14670633 | G36: 61.46105 | H36: 52.27952846
B37: Thailand | C37: 45.63889 | D37: 22.12435723 | E37: 6.470889 | F37: 23.18922369 | G37: 52.10978 | H37: 45.31358091
B38: Turkey | C38: 60.00969 | D38: 33.75072225 | E38: 7.939259 | F38: 13.12437602 | G38: 67.94895 | H38: 46.87509828
B39: United Arab Emirates | C39: 42.83722 | D39: 18.35113333 | E39: 1.493937 | F39: 2.249885379 | G39: 44.33116 | H39: 20.6010187
B40: Venezuela | C40: 65.49709 | D40: 41.48744437 | E40: 6.724103 | F40: 13.67662138 | G40: 72.22119 | H40: 55.16406575
B41: Vietnam | C41: 68.38978 | D41: 32.52050024 | E41: 10.03514 | F41: 13.98553526 | G41: 78.42492 | H41: 46.5060355
B42: Source: World Bank, databank.worldbank.org, World Development Indicators, accessed 15 November 2024
B43: a Refers to the number of children under 15 years of age who are dependent on every 100 people in the working-age population (aged between 15 and 64).
B44: b Refers to the number of people aged 65 and over who are dependent on every 100 people in the working-age population.
B45: c Refers to the number of children under 15 and adults over 65 who are dependent on every 100 people in the working-age population.

Sheet Depen ratio sel afr count.90+23
B2: Dependency ratio, selected African countries, 1990 and 2023
B4: Country | C4: Child dependency —ratioa— | E4: Old-age dependency —ratiob— | G4: Dependency —ratiob—
C5: 1990 | D5: 2023 | E5: 1990 | F5: 2023 | G5: 1990 | H5: 2023
B6: Algeria | C6: 79.29497 | D6: 48.37599596 | E6: 5.759636 | F6: 10.49926774 | G6: 85.05461 | H6: 58.87526371
B7: Angola | C7: 90.77928 | D7: 85.24124376 | E7: 4.083816 | F7: 4.992690212 | G7: 94.86309 | H7: 90.23393397
B8: Botswana | C8: 88.29714 | D8: 50.32338075 | E8: 6.036712 | F8: 5.884496116 | G8: 94.33386 | H8: 56.20787686
B9: Burundi | C9: 99.62124 | D9: 86.23896638 | E9: 5.885302 | F9: 4.757305898 | G9: 105.5065 | H9: 90.99627228
B10: Cameroon | C10: 92.72897 | D10: 75.73282794 | E10: 7.181587 | F10: 4.786080948 | G10: 99.91056 | H10: 80.51890889
B11: Central African Republic | C11: 87.78717 | D11: 96.36593901 | E11: 5.135148 | F11: 5.085222638 | G11: 92.92232 | H11: 101.4511616
B12: Congo (DRC) | C12: 85.08303 | D12: 91.89843354 | E12: 5.406781 | F12: 5.711170402 | G12: 90.48981 | H12: 97.60960394
B13: Congo (Republic) | C13: 84.67831 | D13: 71.73449105 | E13: 6.401905 | F13: 4.909428653 | G13: 91.08022 | H13: 76.6439197
B14: Egypt | C14: 75.32732 | D14: 52.22229926 | E14: 7.749764 | F14: 7.862323751 | G14: 83.07709 | H14: 60.08462301
B15: Eritrea | C15: 86.82162 | D15: 67.44784394 | E15: 5.256058 | F15: 7.037158049 | G15: 92.07768 | H15: 74.48500199
B16: Eswatini | C16: 96.51809 | D16: 55.76182071 | E16: 4.8901 | F16: 6.519265487 | G16: 101.4082 | H16: 62.2810862
B17: Ethiopia | C17: 91.09264 | D17: 68.28628873 | E17: 5.302121 | F17: 5.487333438 | G17: 96.39476 | H17: 73.77362217
B18: Ghana | C18: 92.39359 | D18: 61.26310473 | E18: 5.15058 | F18: 6.108161165 | G18: 97.54417 | H18: 67.3712659
B19: Ivory Coast | C19: 93.63177 | D19: 72.81790015 | E19: 5.219501 | F19: 4.257300334 | G19: 98.85127 | H19: 77.07520048
B20: Kenya | C20: 101.7089 | D20: 62.16632477 | E20: 4.344663 | F20: 4.855699962 | G20: 106.0536 | H20: 67.02202473
B21: Lesotho | C21: 79.45874 | D21: 54.62327676 | E21: 7.495001 | F21: 6.811984759 | G21: 86.95374 | H21: 61.43526152
B22: Liberia | C22: 82.80139 | D22: 70.55823222 | E22: 5.225136 | F22: 5.807793287 | G22: 88.02653 | H22: 76.3660255
B23: Libya | C23: 72.3337 | D23: 41.15716722 | E23: 5.041288 | F23: 7.38235192 | G23: 77.37499 | H23: 48.53951914
B24: Madagascar | C24: 87.89341 | D24: 66.93705909 | E24: 5.661065 | F24: 5.884156789 | G24: 93.55447 | H24: 72.82121588
B25: Malawi | C25: 91.70524 | D25: 75.87750286 | E25: 7.289297 | F25: 4.584719412 | G25: 98.99454 | H25: 80.46222228
B26: Mauritius | C26: 46.03553 | D26: 22.6523242 | E26: 8.258295 | F26: 18.82482423 | G26: 54.29382 | H26: 41.47714843
B27: Morocco | C27: 71.94041 | D27: 40.01397079 | E27: 5.377944 | F27: 12.22222709 | G27: 77.31836 | H27: 52.23619789
B28: Mozambique | C28: 84.06262 | D28: 79.96506162 | E28: 5.545009 | F28: 4.749915905 | G28: 89.60763 | H28: 84.71497753
B29: Namibia | C29: 78.09695 | D29: 60.52653193 | E29: 6.288587 | F29: 6.57231296 | G29: 84.38554 | H29: 67.09884489
B30: Nigeria | C30: 85.99168 | D30: 78.82217247 | E30: 6.157397 | F30: 5.503446348 | G30: 92.14908 | H30: 84.32561882
B31: Rwanda | C31: 99.56461 | D31: 64.88992222 | E31: 4.669137 | F31: 5.574924523 | G31: 104.2337 | H31: 70.46484675
B32: Senegal | C32: 92.5446 | D32: 73.8187925 | E32: 6.128956 | F32: 5.626726641 | G32: 98.67356 | H32: 79.44551914
B33: Somalia | C33: 93.21424 | D33: 93.37351928 | E33: 6.082261 | F33: 5.066609443 | G33: 99.29651 | H33: 98.44012872
B34: South Africa | C34: 66.78582 | D34: 42.97623708 | E34: 6.699893 | F34: 8.886482906 | G34: 73.48572 | H34: 51.86271998
B35: Sudan | C35: 96.41196 | D35: 73.05170094 | E35: 5.366409 | F35: 6.409299875 | G35: 101.7784 | H35: 79.46100082
B36: Tanzania | C36: 91.45794 | D36: 80.16912558 | E36: 5.774305 | F36: 5.751860468 | G36: 97.23225 | H36: 85.92098605
B37: Tunisia | C37: 66.28794 | D37: 37.38672464 | E37: 7.613719 | F37: 14.12409996 | G37: 73.90166 | H37: 51.5108246
B38: Uganda | C38: 98.95269 | D38: 82.49652394 | E38: 5.733953 | F38: 3.192579245 | G38: 104.6866 | H38: 85.68910319
B39: Zambia | C39: 100.2608 | D39: 76.09710073 | E39: 5.540879 | F39: 3.170630463 | G39: 105.8017 | H39: 79.2677312
B40: Zimbabwe | C40: 98.22634 | D40: 71.38268025 | E40: 6.329884 | F40: 5.84078694 | G40: 104.5562 | H40: 77.22346719
B41: Source: World Bank, databank.worldbank.org, World Development Indicators, accessed 15 November 2024
B42: a Refers to the number of children under 15 years of age who are dependent on every 100 people in the working-age population (aged between 15 and 64).
B43: b Refers to the number of people aged 65 and over who are dependent on every 100 people in the working-age population.
B44: c Refers to the number of children under 15 and adults over 65 who are dependent on every 100 people in the working-age population.

Sheet HOUSEHOLDS

Sheet Households by province.2023
B2: HOUSEHOLDS
B4: Households by province, 2023
B6: Province | C6: Number | D6: Proportion of total households | E6: Proportion of total population | F6: Average household size ͣ
B7: Eastern Cape | C7: 1761000 | D7: =C7/19005000 -> 0.09265982636 | E7: 0.115 | F7: 3.711527541
B8: Free State | C8: 999000 | D8: =C8/19005000 -> 0.05256511444 | E8: 0.049 | F8: 3.03003003
B9: Gauteng | C9: 5779000 | D9: 0.3040778742 | E9: 0.252 | F9: 2.880083059
B10: KwaZulu-Natal | C10: 3292000 | D10: 0.1732175743 | E10: 0.196 | F10: 3.633049818
B11: Limpopo | C11: 1775000 | D11: 0.09339647461 | E11: 0.102 | F11: 3.511549296
B12: Mpumalanga | C12: 1493000 | D12: 0.07855827414 | E12: 0.08 | F12: 3.307434695
B13: North West | C13: 1390000 | D13: 0.07313864772 | E13: 0.066 | F13: 3.069064748
B14: Northern Cape | C14: 380000 | D14: 0.01999473823 | E14: 0.022 | F14: 3.442105263
B15: Western Cape | C15: 2136000 | D15: 0.1123914759 | E15: 0.12 | F15: 3.450374532
B16: South Africa | C16: 19005000 | D16: 1 | E16: 1 | F16: 3.277190213
B17: Source: Stats SA, General Household Survey 2023, Statistical release P0318, 23 May 2024, Figure 2.1, p2; Figure 2.2, p3; Mid-year population estimates 2024, Statistical release P0302, 30 July 2024, Table 10, p21
B18: a CRA calculations.

Sheet Households by race.1960-2023
B2: Household numbers by race, 1960-2023
B4: Yeara | C4: Black | D4: Coloured | E4: Indian/Asian | F4: White | G4: Total
B5: 1960 | C5: 2218000 | D5: 317000 | E5: 94000 | F5: 843000 | G5: 3473000
B6: 1970 | C6: 3047000 | D6: 420000 | E6: 131000 | F6: 1047000 | G6: 4645000
B7: 1980 | C7: 4150000 | D7: 541000 | E7: 171000 | F7: 1416000 | G7: 6278000
B8: 1990 | C8: 5795000 | D8: 658000 | E8: 207000 | F8: 1723000 | G8: 8383000
B9: 2000 | C9: 7866000 | D9: 874000 | E9: 276000 | F9: 1804000 | G9: 10820000
B10: 2002 | C10: 8892669 | D10: 882948 | E10: 291680 | F10: 1792299 | G10: 11859597
B11: 2004 | C11: 9381063 | D11: 918475 | E11: 302082 | F11: 1813802 | G11: 12415422
B12: 2006 | C12: 9834234 | D12: 951567 | E12: 312423 | F12: 1831164 | G12: 12929389
B13: 2008 | C13: 10284000 | D13: 1115000 | E13: 353000 | F13: 1695000 | G13: 13447000
B14: 2010 | C14: 11126000 | D14: 1143000 | E14: 359000 | F14: 1676000 | G14: 14304000
B15: 2011b | C15: 11360570 | D15: 1056076 | E15: 347208 | F15: 1606631 | G15: 14450133
B16: 2012 | C16: 11592000 | D16: 1075000 | E16: 346000 | F16: 1618000 | G16: 14631000
B17: 2013 | C17: 12038000 | D17: 1096000 | E17: 354000 | F17: 1619000 | G17: 15107000
B18: 2014 | C18: 12506000 | D18: 1116000 | E18: 361000 | F18: 1619000 | G18: 15602000
B19: 2015 | C19: 12998000 | D19: 1136000 | E19: 369000 | F19: 1619000 | G19: 16122000
B20: 2016 | C20: 13512000 | D20: 1154000 | E20: 377000 | F20: 1619000 | G20: 16662000
B21: 2017 | C21: 13042000 | D21: 1172000 | E21: 397000 | F21: 1588000 | G21: 16199000
B22: 2018 | C22: 13493000 | D22: 1191000 | E22: 405000 | F22: 1582000 | G22: 16671000
B23: 2019 | C23: 13964000 | D23: 1210000 | E23: 414000 | F23: 1575000 | G23: 17163000
B24: 2020 | C24: 14209000 | D24: 1219000 | E24: 418000 | F24: 1571000 | G24: 17418000
B25: 2021 | C25: 14716000 | D25: 1239000 | E25: 427000 | F25: 1564000 | G25: 17947000
B26: 2022 | C26: 15227000 | D26: 1258000 | E26: 436000 | F26: 1556000 | G26: 18477000
B27: 2023 | C27: 15738000 | D27: 1277000 | E27: 444000 | F27: 1546000 | G27: 19005000
B28: 2002-23 | C28: =(C27-C10)/C10 -> 0.7697723822 | D28: =(D27-D10)/D10 -> 0.4462912878 | E28: 0.5222161273 | F28: -0.1374207094 | G28: 0.6024996465
B29: Average household size 1960 | C29: 5.4 | D29: 4.7 | E29: 5.1 | F29: 3.6 | G29: 4.9
B30: Average household size 2023 | C30: 3.247871394 | D30: 4.155050901 | E30: 3.454954955 | F30: 2.799482536 | G30: 3.277190213
B31: Source: South Africa Survey 2004/2005, p21; South Africa Survey 2017, p4; Bureau of Census and Statistics Pretoria, Union Statistics for Fifty Years, 1910-1960, Jubilee Issue, March 1960, pA-8; Stats SA, General Household Survey, 2008-23 data; Census 2011: Census in Brief, Report no: 03-01 -41, 30 October 2012, Table 3.4, p67; Municipal Fact Sheet, November 2012, pp2-14, 27-37
B32: a Data from 1960 to 2000 is from the Bureau of Market Research. Data from 2002 to 2023 is from Stats SA. The two sets are therefore not strictly comparable. Nevertheless, a comparison of changes over time is indicative of trends.
B33: b Census/Community Survey data.

Sheet Households by type.96-23
B2: Households by typea, 1996-2023
B4: Household type | C4: 1996 | D4: 2001 | E4: 2018 | F4: 2023 | J4: 1996 | K4: 2001 | L4: 2023
B5: Singleb | C5: 0.163 | D5: 0.211 | E5: 0.257 | F5: 0.265 | I5: Single | J5: 0.163 | K5: 0.211 | L5: 0.265
B6: Nuclearc | C6: 0.465 | D6: 0.399 | E6: 0.391 | F6: 0.39 | I6: Nuclear | J6: 0.465 | K6: 0.399 | L6: 0.39
B7: Extendedd | C7: 0.32 | D7: 0.358 | E7: 0.329 | F7: 0.323 | I7: Extended | J7: 0.32 | K7: 0.358 | L7: 0.323
B8: Complexe | C8: 0.053 | D8: 0.033 | E8: 0.023 | F8: 0.021 | I8: Complex | J8: 0.053 | K8: 0.033 | L8: 0.021
B9: Totalf | C9: 1 | D9: 1 | E9: 1 | F9: 1
B10: Source: Department of Social Development (DSD), Fifteen Year Progress Review Of The Implementation Of The Population Policy For South Africa (1998) And The International Conference On Population And Development (ICPD) Programme Of Action (1994) @20, RP364/2015, Figure 8, p76; Stats SA, Vulnerable Groups Indicator Report 2017, Report No 03-19-02, 22 August 2017, Table 3.2.2, p59; General Household Survey 2018, Statistical release P0318, 28 May 2019, Figure 3.4, p6; General Household Survey 2023, Statistical release P0318, 23 May 2024, Figure 3.4, p5
B11: a Households headed by people aged 15 and above.
B12: b A single person living alone. Hostel dwellers are regarded as individuals (or single households) except where circumstances indicate otherwise.
B13: c Nuclear households have a head, their spouse, and/or offspring, although they also include single-parent households.
B14: d Nuclear households with extended family members.
B15: e Households in which one or more non-related individuals are considered members.
B16: f Numbers should add up vertically but may not, owing to rounding.

Sheet FAMILIES.

Sheet Children

Sheet Children by sex.24
B2: Children
B4: Statistics
B6: Childrena by race and sex, 2024
B8: Sex | C8: Black | D8: Coloured | E8: Indian/Asian | F8: White | G8: Total
B9: Male | C9: 9113497.694 | D9: 795621.3504 | E9: 165619.5664 | F9: 400596.1136 | G9: 10475334.72
B10: Female | C10: 8908548.642 | D10: 773550.592 | E10: 158954.0816 | F10: 390136.4736 | G10: 10231189.79
B11: Total | C11: 18022046.34 | D11: =SUM(D9:D10) -> 1569171.942 | E11: =SUM(E9:E10) -> 324573.648 | F11: 790732.5872 | G11: 20706524.51
B12: Source: Stats SA, Mid-year population estimates 2024, Statistical release P0302, 30 July 2024, Table 1, pvii
B13: a People under the age of 18.

Sheet Children by province.24
B2: Childrena by province, 2024
B4: Province | C4: Number of children | D4: Proportion | E4: Total population | F4: Proportion of population who are children
B5: Eastern Cape | C5: 2702964.563 | D5: =(C5/Total123656) -> 0.1305368538 | E5: 7176230.047 | F5: =(C5/E5) -> 0.3766552279
B6: Free State | C6: 1015026.366 | D6: =(C6/Total123656) -> 0.04901963943 | E6: 3044049.548 | F6: =(C6/E6) -> 0.3334460723
B7: Gauteng | C7: 4411790.471 | D7: 0.2130628184 | E7: 15931823.53 | F7: 0.2769168553
B8: KwaZulu-Natal | C8: 4434843.24 | D8: 0.2141761278 | E8: 12312711.68 | F8: 0.3601841214
B9: Limpopo | C9: 2512563.073 | D9: 0.1213416125 | E9: 6402593.659 | F9: 0.3924289447
B10: Mpumalanga | C10: 1682443.034 | D10: =(C10/Total123656) -> 0.08125183119 | E10: 5057661.5 | F10: 0.33265236
B11: North West | C11: 1385057.968 | D11: 0.06688992966 | E11: 4155302.868 | F11: 0.3333229881
B12: Northern Cape | C12: 470066.7738 | D12: 0.02270138446 | E12: 1372943.133 | F12: =(C12/E12) -> 0.3423789104
B13: Western Cape | C13: 2091769.024 | D13: 0.1010198028 | E13: 7562588.031 | F13: =(C13/E13) -> 0.2765943372
B14: South Africa | C14: 20706524.51 | D14: 1 | E14: 63015904 | F14: =(C14/E14) -> 0.328592041
B15: Source: Stats SA, MYPE report table website 2024, accessed 9 November 2024
B16: a People under the age of 18.

Sheet Children by household type.22
B2: Children by household type and race, 2022
C4: Total | E4: —Singlea— | G4: —Nuclearb— | I4: —Extendedc— | K4: —Complexd— | M4: —Unspecified—
B5: Race | D5: Total number of children | E5: Numbere | F5: Proportion | G5: Numbere | H5: Proportion | I5: Numbere | J5: Proportion | K5: Numbere | L5: Proportion | M5: Numbere | N5: Proportion
B6: Black | C6: 17228000 | D6: 17991000 | E6: =F6*D6 -> 17991 | F6: 0.001 | G6: =H6*D6 -> 5955021 | H6: 0.331 | I6: =J6*D6 -> 11694150 | J6: 0.65 | K6: =L6*D6 -> 287856 | L6: 0.016 | M6: =N6*D6 -> 35982 | N6: 0.002
B7: Coloured | C7: 1634000 | D7: 1690000 | E7: — | F7: — | G7: =H7*D7 -> 679380 | H7: 0.402 | I7: =J7*D7 -> 900770 | J7: 0.533 | K7: =L7*D7 -> 109850 | L7: 0.065 | M7: =N7*D7 -> 0 | N7: 0
B8: Indian/Asian | C8: 334000 | D8: 345000 | E8: — | F8: — | G8: 206310 | H8: 0.598 | I8: 126960 | J8: 0.368 | K8: =L8*D8 -> 11730 | L8: 0.034 | M8: — | N8: —
B9: White | C9: 879000 | D9: 841000 | E9: — | F9: — | G9: 692143 | H9: 0.823 | I9: 142129 | J9: 0.169 | K9: 6728 | L9: 0.008 | M9: — | N9: —
B10: Totalf | C10: 20075000 | D10: 20867000 | E10: =F10*D10 -> 20867 | F10: 0.001 | G10: =H10*D10 -> 7532987 | H10: 0.361 | I10: =J10*D10 -> 12874939 | J10: 0.617 | K10: =L10*D10 -> 417340 | L10: 0.02 | M10: 41734 | N10: 0.002
B11: Source: Stats SA, Marginalised Groups Indicator Report 2022, Report No 03-19-05, 26 March 2024, Table 1.2.7, p6
B12: a A one-person household. Hostel dwellers are regarded as individuals (or single households) except where circumstances indicate that they belong to a particular/different type of household.
B13: b Nuclear households have a head, their spouse, and/or their offspring, although they also include single-parent households.
B14: c Extended households are nuclear households with extended family members.
B15: d Complex households are those in which one or more non-related individuals are considered members of the household.
B16: e CRA calculations. For example, 287 856 (or 1.6%) of all black children live in complex households.
B17: f Actual numbers should add up vertically but may not, owing to rounding. Proportions should add up horizontally to 100% but may not, owing to rounding.

Sheet Children by hh type.location.22
B2: Children by household type and geographical location, 2022
C4: Total | E4: —Singlea— | G4: —Nuclearb— | I4: —Extendedc— | K4: —Complexd— | M4: —Unspecified—
B5: Location | D5: Total number of children | E5: Numbere | F5: Proportion | G5: Numbere | H5: Proportion | I5: Numbere | J5: Proportion | K5: Numbere | L5: Proportion | M5: Numbere | N5: Proportion
B6: Metro | C6: 11462000 | D6: 7364000 | E6: =F6*D6 -> 7364 | F6: 0.001 | G6: =H6*D6 -> 3542084 | H6: 0.481 | I6: =J6*D6 -> 3659908 | J6: 0.497 | K6: =L6*D6 -> 162008 | L6: 0.022 | M6: =N6*D6 -> 7364 | N6: 0.001
B7: Non-metro | C7: 8612000 | D7: 13503000 | E7: =F7*D7 -> 13503 | F7: 0.001 | G7: =H7*D7 -> 3996888 | H7: 0.296 | I7: =J7*D7 -> 9209046 | J7: 0.682 | K7: =L7*D7 -> 256557 | L7: 0.019 | M7: =N7*D7 -> 40509 | N7: 0.003
B8: Totalf | C8: 20075000 | D8: 20867000 | E8: =F8*D8 -> 20867 | F8: 0.001 | G8: 7532987 | H8: 0.361 | I8: 12874939 | J8: 0.617 | K8: 417340 | L8: 0.02 | M8: 41734 | N8: 0.002
B9: Source: Stats SA, Marginalised Groups Indicator Report 2022, Report No 03-19-05, 26 March 2024, Table 1.2.6, p6
B10: a A one-person household. Hostel dwellers are regarded as individuals (or single households) except where circumstances indicate that they belong to a particular/different type of household.
B11: b Nuclear households have a head, their spouse, and/or their offspring, although they also include single-parent households.
B12: c Extended households are nuclear households with extended family members.
B13: d Complex households are those in which one or more non-related individuals are considered members of the household.
B14: e CRA calculations. For example, 162 008 (or 2.2%) of children in metros live in complex households.
B15: f Actual numbers should add up vertically but may not, owing to rounding. Proportions should add up horizontally to 100% but may not, owing to rounding.

Sheet Childrens living arrang.sex.22
C2: Children’s living arrangements by sex, 2022
C4: Living arrangement | D4: —Male— | F4: —Female— | H4: —Totalb—
D5: Numbera | E5: Proportion | F5: Numbera | G5: Proportion | H5: Numbera | I5: Proportion
C6: With mother only | D6: =E6*10454000 -> 4568398 | E6: 0.437 | F6: =G6*10413000 -> 4623372 | G6: 0.444 | H6: =I6*20867000 -> 9202347 | I6: 0.441
C7: With father only | D7: =E7*10454000 -> 459976 | E7: 0.044 | F7: =G7*10413000 -> 312390 | G7: 0.03 | H7: =I7*20867000 -> 772079 | I7: 0.037
C8: With both parents | D8: 3324372 | E8: 0.318 | F8: 3488355 | G8: 0.335 | H8: 6823509 | I8: 0.327
C9: Lives with neither | D9: 2090800 | E9: 0.2 | F9: 1988883 | G9: 0.191 | H9: 4069065 | I9: 0.195
C10: Total | D10: 10454000 | E10: 1 | F10: 10413000 | G10: 1 | H10: 20867000 | I10: 1
C11: Source: Stats SA, Marginalised Groups Indicator Report 2022, Report No 03-19-05, 26 March 2024, Table 1.2.4, p64
A12: a CRA calculations. | C12: a CRA calculations.
C13: b Figures should add up vertically but may not, owing to rounding.

Sheet Orphans by province.2022
B2: Orphans
B4: Orphans ͣ by province, 2022
C6: Total number of children | D6: — Maternal orphansᵇ — | F6: — Paternal orphansc — | H6: — Double orphansd —
B7: Province | D7: Numberᵉ | E7: Proportion | F7: Numberᵉ | G7: Proportion | H7: Numberᵉ | I7: Proportion
B8: Eastern Cape | C8: 2530000 | D8: =E8*C8 -> 68310 | E8: 0.027 | F8: =G8*C8 -> 215050 | G8: 0.085 | H8: =I8*C8 -> 70840 | I8: 0.028
B9: Free State | C9: 1035000 | D9: =E9*C9 -> 39330 | E9: 0.038 | F9: =G9*C9 -> 99360 | G9: 0.096 | H9: =I9*C9 -> 23805 | I9: 0.023
B10: Gauteng | C10: 4621000 | D10: 106283 | E10: 0.023 | F10: 314228 | G10: 0.068 | H10: 87799 | I10: 0.019
B11: KwaZulu-Natal | C11: 4352000 | D11: 95744 | E11: 0.022 | F11: 378624 | G11: 0.087 | H11: 100096 | I11: 0.023
B12: Limpopo | C12: 2516000 | D12: 57868 | E12: 0.023 | F12: 166056 | G12: 0.066 | H12: 42772 | I12: 0.017
B13: Mpumalanga | C13: 1769000 | D13: 54839 | E13: 0.031 | F13: 145058 | G13: 0.082 | H13: 28304 | I13: 0.016
B14: North West | C14: 1480000 | D14: =E14*C14 -> 38480 | E14: 0.026 | F14: 124320 | G14: 0.084 | H14: 32560 | I14: 0.022
B15: Northern Cape | C15: 438000 | D15: 13578 | E15: 0.031 | F15: 23652 | G15: 0.054 | H15: 7884 | I15: 0.018
B16: Western Cape | C16: 2125000 | D16: 36125 | E16: 0.017 | F16: 114750 | G16: 0.054 | H16: 29750 | I16: 0.014
B17: South Africaf | C17: 20867000 | D17: 500808 | E17: 0.024 | F17: 1585892 | G17: 0.076 | H17: 417340 | I17: 0.02
B18: Source: Stats SA, Marginalised Groups Indicator Report 2022, Report No 03-19-05, 26 March 2024, Table 1.2.4, p64
B19: a The proportion of all children in each province who are orphans. For example, 2.7% of all children in the Eastern Cape are maternal orphans, 8.5% are paternal orphans and 2.8% are double orphans.
B20: b Children who have lost their mother only.
B21: c Children who have lost their father only. The high number of paternal orphans can be partly attributed to higher mortality rates among men.
B22: d Children who have lost both parents.
B23: e CRA calculations.
B24: f Actual numbers should add up vertically but may not, owing to rounding.

Sheet Orphans by race.2022
B2: Orphansa by race, 2022
C4: — Maternal orphansᵇ — | E4: —Paternal orphansc— | G4: —Double orphansd—
B5: Race | C5: Numbere | D5: Proportion | E5: Numbere | F5: Proportion | G5: Numbere | H5: Proportion
B6: Black | C6: 467766 | D6: 0.026 | E6: 1475262 | F6: 0.082 | G6: 395802 | H6: 0.022
B7: Coloured | C7: 37180 | D7: 0.022 | E7: 86190 | F7: 0.051 | G7: 20280 | H7: 0.012
B8: Indian/Asian | C8: 690 | D8: 0.002 | E8: 2070 | F8: 0.006 | G8: 1035 | H8: 0.003
B9: White | C9: 2523 | D9: 0.003 | E9: 25230 | F9: 0.03 | G9: 2523 | H9: 0.003
B10: Totalf | C10: 500808 | D10: 0.024 | E10: 1585892 | F10: 0.076 | G10: 417340 | H10: 0.02
B11: Source: Stats SA, Marginalised Groups Indicator Report 2022, Report No 03-19-05, 26 March 2024, Table 1.2.3, p4
B12: a The proportion of all children in each race group who are orphans. For example, 2.6% of all black children are maternal orphans, 8.2% are paternal orphans and 2.2% are double orphans. Actual numbers should add up vertically but may not, owing to rounding.
B13: b Children who have lost their mother only.
B14: c Children who have lost their father only. The high number of paternal orphans can be partly attributed to higher mortality rates among men.
B15: d Children who have lost both parents.
B16: e CRA calculations.
B17: f Actual numbers should add up vertically but may not, owing to rounding.

Sheet Teenagefertilityrate 1960-2022
B2: Teenage fertility
B4: Teenage fertility ratea, 1960-2022
C6: Year | D6: Rate | J6: Teenage fertility rate
C7: 1960 | D7: 101.605 | I7: 1960 | J7: 101.605
C8: 1965 | D8: 101.095 | I8: 1965 | J8: 101.095
C9: 1970 | D9: 95.564 | I9: 1970 | J9: 95.564
C10: 1975 | D10: 101.636 | I10: 1975 | J10: 101.636
C11: 1980 | D11: 105.943 | I11: 1980 | J11: 105.943
C12: 1985 | D12: 102.908 | I12: 1985 | J12: 102.908
C13: 1990 | D13: 95.872 | I13: 1990 | J13: 95.872
C14: 1995 | D14: 76.521 | I14: 1995 | J14: 76.521
C15: 2000 | D15: 65.691 | I15: 2000 | J15: 65.691
C16: 2005 | D16: 56.003 | I16: 2005 | J16: 56.003
C17: 2010 | D17: 67.824 | I17: 2010 | J17: 67.824
C18: 2015 | D18: 78.367 | I18: 2015 | J18: 78.367
C19: 2016 | D19: 70.813 | I19: 2016 | J19: 70.813
C20: 2017 | D20: 63.706 | I20: 2017 | J20: 63.706
C21: 2018 | D21: 59.361 | I21: 2018 | J21: 59.361
C22: 2019 | D22: 64.982 | I22: 2019 | J22: 64.982
C23: 2020 | D23: 62.742 | I23: 2020 | J23: 62.742
C24: 2021 | D24: 61.206 | I24: 2021 | J24: 61.206
C25: 2022 | D25: 60.891 | I25: 2022 | J25: 60.891
C26: 1960-2022 | D26: =(D25-D7)/D7 -> -0.4007086265
B27: Source: World Bank, databank.worldbank.org, World Development Indicators, accessed 11 November 2024
B28: a The number of births per 1 000 women aged 15 to 19.

Sheet Teenage fer rate int. comp. 22
B2: Teenage fertility ratea, international comparisons, 2022
B4: —Selected countries— | D4: —Emerging markets— | F4: —Selected African countries—
B5: Australia | C5: 7.731 | D5: Brazil | E5: 43.582 | F5: Algeria | G5: 11.564
B6: Chile | C6: 22.793 | D6: Bulgaria | E6: 38.215 | F6: Angola | G6: 135.792
B7: China | C7: 11.146 | D7: Chile | E7: 22.793 | F7: Botswana | G7: 48.343
B8: Denmark | C8: 1.814 | D8: China | E8: 11.146 | F8: Burundi | G8: 52.595
B9: France | C9: 9.442 | D9: Colombia | E9: 57.612 | F9: Cameroon | G9: 108.618
B10: Germany | C10: 7.186 | D10: Czech Republic | E10: 9.364 | F10: Central African Republic | G10: 158.998
B11: Ghana | C11: 63.41 | D11: Egypt | E11: 43.603 | F11: Congo (DRC) | G11: 107.481
B12: Greece | C12: 8.315 | D12: Estonia | E12: 8.1 | F12: Congo (Republic) | G12: 101.197
B13: Hong Kong | C13: 1.571 | D13: Hungary | E13: 21.889 | F13: Egypt | G13: 43.603
B14: India | C14: 16.299 | D14: India | E14: 16.299 | F14: Eritrea | G14: 63.639
B15: Indonesia | C15: 32.94 | D15: Indonesia | E15: 32.94 | F15: Eswatini | G15: 68.426
B16: Ireland | C16: 5.872 | D16: Jordan | E16: 24.87 | F16: Ethiopia | G16: 66.502
B17: Israel | C17: 7.42 | D17: Kuwait | E17: 5.298 | F17: Ghana | G17: 63.41
B18: Italy | C18: 3.899 | D18: Latvia | E18: 10.536 | F18: Ivory Coast | G18: 103.293
B19: Japan | C19: 2.813 | D19: Lithuania | E19: 9.714 | F19: Kenya | G19: 62.61
B20: Kazakhstan | C20: 20.882 | D20: Malaysia | E20: 9.127 | F20: Lesotho | G20: 89.077
B21: Lithuania | C21: 9.714 | D21: Mauritius | E21: 24.023 | F21: Liberia | G21: 121.996
B22: Mexico | C22: 53.693 | D22: Mexico | E22: 53.693 | F22: Libya | G22: 6.987
B23: Mozambique | C23: 165.136 | D23: Morocco | E23: 25.455 | F23: Madagascar | G23: 118.125
B24: Nigeria | C24: 99.56 | D24: Oman | E24: 9.693 | F24: Malawi | G24: 117.23
B25: Pakistan | C25: 41.205 | D25: Pakistan | E25: 41.205 | F25: Mozambique | G25: 165.136
B26: Philippines | C26: 48.059 | D26: Peru | E26: 56.091 | F26: Namibia | G26: 63.074
B27: Poland | C27: 9.16 | D27: Philippines | E27: 48.059 | F27: Nigeria | G27: 99.56
B28: Russia | C28: 14.471 | D28: Poland | E28: 9.16 | F28: Rwanda | G28: 32.248
B29: Saudi Arabia | C29: 11.577 | D29: Qatar | E29: 6.896 | F29: Senegal | G29: 64.613
B30: South Africa | C30: 60.891 | D30: Romania | E30: 35.423 | F30: Somalia | G30: 116.067
B31: Spain | C31: 6.349 | D31: Russia | E31: 14.471 | F31: South Africa | G31: 60.891
B32: Switzerland | C32: 2.2 | D32: Slovakia | E32: 26.623 | F32: Sudan | G32: 77.58
B33: Turkey | C33: 15.656 | D33: South Africa | E33: 60.891 | F33: Tanzania | G33: 123.44
B34: Uganda | C34: 105.679 | D34: Sri Lanka | E34: 15.355 | F34: Tunisia | G34: 6.632
B35: United Kingdom | C35: 9.985 | D35: Thailand | E35: 31.585 | F35: Uganda | G35: 105.679
B36: United States | C36: 15.119 | D36: Turkey | E36: 15.656 | F36: Zambia | G36: 116.091
B37: Venezuela | C37: 82.006 | D37: United Arab Emirates | E37: 2.844 | F37: Zimbabwe | G37: 92.566
B38: Source: World Bank, databank.worldbank.org, World Development Indicators, accessed 12 November 2024
B39: a Births per 1 000 women aged 15 to 19.
B41: For more related information, please refer to the Education and Health chapters.

Sheet Older persons

Sheet Older persons.sex.96-24
B2: Older persons
B4: Older personsa by sex, 1996-2024
C6: — 1996— | F6: — 2001— | I6: — 2011 — | L6: — 2024 —
B7: Age group | C7: Male | D7: Female | E7: Total | F7: Male | G7: Female | H7: Total | I7: Male | J7: Female | K7: Total | L7: Male | M7: Female | N7: Total
B8: 60–64 | C8: 352053 | D8: 538483 | E8: 890536 | F8: 444510 | G8: 620784 | H8: 1065294 | I8: 612364 | J8: 773404 | K8: 1385768 | L8: 866481 | M8: 1134227 | N8: 2000708
B9: 65–69 | C9: 304013 | D9: 454874 | E9: 758887 | F9: 304763 | G9: 483164 | H9: 787927 | I9: 401548 | J9: 556256 | K9: 957805 | L9: 654162 | M9: 921092 | N9: 1575254
B10: 70–74 | C10: 195119 | D10: 287044 | E10: 482163 | F10: 232547 | G10: 398922 | H10: 631469 | I10: 293498 | J10: 454832 | K10: 748331 | L10: 459581 | M10: 697690 | N10: 1157271
B11: 75–79 | C11: 141844 | D11: 235583 | E11: 377427 | F11: 136436 | G11: 231101 | H11: 367537 | I11: 165283 | J11: 315984 | K11: 481267 | L11: 273676 | M11: 471861 | N11: 745537
B12: 80+ | C12: 360555 | D12: 445826 | E12: 806381 | F12: 136742 | G12: 291536 | H12: 428278 | I12: 176237 | J12: 402352 | K12: 578589 | L12: 212322 | M12: 441742 | N12: 654064
B13: Total | C13: =SUM(C8:C12) -> 1353584 | D13: =SUM(D8:D12) -> 1961810 | E13: 3315394 | F13: 1254998 | G13: 2025507 | H13: 3280505 | I13: 1648930 | J13: 2502828 | K13: 4151760 | L13: =SUM(L8:L12) -> 2466222 | M13: =SUM(M8:M12) -> 3666612 | N13: 6132834
B14: Source: Stats SA, Census 1996: Census in Brief, Report No. 03-01-11 (1996), Tables 2.16-2.18, pp22-24; Census 2001: Census in Brief, Report No. 03-02-03 (2001), 2003, Tables 2.14- 2.16, pp27-29; Census 2011: Census in Brief, Report No. 03-01-41, Tables 2.9-2.11, pp28-30; Community Survey 2016, Report 03-01-06, 2016, Tables 5-7, pp22-27;Stats SA, Mid-year population estimates 2024, Statistical release P0302, 30 July 2024, Table 6, p14
B15: a People aged 60 and above.

Sheet Older person by province, 24
B2: Older personsa by province, 2024
B4: Province | C4: Provincial population | D4: Total number of older people | E4: Proportion of provincial populationb | F4: Proportion of total older personsc
B5: Eastern Cape | C5: 7176230 | D5: 864707.5693 | E5: =D5/C5 -> 0.1204960779 | F5: =D5/6132834 -> 0.1409964087
B6: Free State | C6: 3044049 | D6: 312702.2748 | E6: =D6/C6 -> 0.1027257691 | F6: =D6/6132834 -> 0.05098821765
B7: Gauteng | C7: 15931823 | D7: 1521853.109 | E7: 0.09552284811 | F7: 0.2481484267
B8: KwaZulu-Natal | C8: 12312711 | D8: 1041009.312 | E8: 0.08454753073 | F8: 0.1697435984
B9: Limpopo | C9: 6402593 | D9: 573565.558 | E9: 0.0895833232 | F9: 0.09352373765
B10: Mpumalanga | C10: 5057661 | D10: 430154.5187 | E10: 0.08505008911 | F10: 0.0701395992
B11: North West | C11: 4155302 | D11: 379617.7536 | E11: 0.09135744012 | F11: 0.06189923837
B12: Northern Cape | C12: 1372943 | D12: 143425.6091 | E12: 0.1044658148 | F12: 0.02338651415
B13: Western Cape | C13: 7562588 | D13: 865798.2961 | E13: =D13/C13 -> 0.1144843929 | F13: 0.1411742591
B14: South Africad | C14: 63015904 | D14: 6132834 | E14: 0.09732200303 | F14: 1
B15: Source: Stats SA, Mid-year population estimates 2024, Statistical release P0302, 30 July 2024, Table 6, p14
B16: a People aged 60 and above.
B17: b CRA calculations. For example, older persons account for 12.0% of the Eastern Cape’s population.
B18: c CRA calculations.For example, 14.1% of all older persons in South Africa are in the Eastern Cape.
B19: d Figures should add up vertically but may not, owing to rounding.

Sheet Marriages and divorces

Sheet Marriages registered.03-22
B2: Marriages and divorces
B4: Registered marriagesa , 2003-22
B6: Year | C6: Civil marriagesᵇ | D6: Customary marriagesc | E6: Total | F6: Civil marriages as a proportion of all marriagesb | G6: Civil unionsd
B7: 2003 | C7: 178689 | D7: 17283 | E7: 195972 | F7: =(C7/E7) -> 0.9118088298 | G7: —
B8: 2004 | C8: 176521 | D8: 20301 | E8: 196822 | F8: =(C8/E8) -> 0.8968560425 | G8: —
B9: 2005 | C9: 180657 | D9: 19252 | E9: 199909 | F9: 0.9036961818 | G9: —
B10: 2006 | C10: 184860 | D10: 14039 | E10: 198899 | F10: 0.9294164375 | G10: —
B11: 2007 | C11: 183030 | D11: 20259 | E11: 203289 | F11: 0.9003438455 | G11: —
B12: 2008 | C12: 186522 | D12: 16003 | E12: 202525 | F12: 0.9209825947 | G12: —
B13: 2009 | C13: 171989 | D13: 13506 | E13: 185495 | F13: 0.9271894121 | G13: —
B14: 2010 | C14: 170826 | D14: 9996 | E14: 180822 | F14: =(C14/E14) -> 0.944719116 | G14: —
B15: 2011 | C15: 167264 | D15: 5084 | E15: 172348 | F15: =(C15/E15) -> 0.9705015434 | G15: 867
B16: 2012 | C16: 161112 | D16: 4555 | E16: 165667 | F16: =(C16/E16) -> 0.9725050855 | G16: 987
B17: 2013 | C17: 158642 | D17: 3498 | E17: 162140 | F17: 0.9784260516 | G17: 993
B18: 2014 | C18: 150852 | D18: 3062 | E18: 153914 | F18: 0.9801057734 | G18: 1144
B19: 2015 | C19: 138627 | D19: 3467 | E19: 142094 | F19: 0.9756006587 | G19: 1185
B20: 2016 | C20: 139512 | D20: 3978 | E20: =SUM(C20:D20) -> 143490 | F20: =(C20/E20) -> 0.9722768137 | G20: 1331
B21: 2017 | C21: 135458 | D21: 2588 | E21: =SUM(C21:D21) -> 138046 | F21: 0.9812526259 | G21: 1357
B22: 2018 | C22: 131240 | D22: 3160 | E22: =SUM(C22:D22) -> 134400 | F22: 0.9764880952 | G22: 1650
B23: 2019 | C23: 129597 | D23: 2789 | E23: 132386 | F23: 0.9789328177 | G23: 1771
B24: 2020 | C24: 89338 | D24: 1585 | E24: 90923 | F24: 0.9825676671 | G24: 1471
B25: 2021 | C25: 106499 | D25: 2676 | E25: =SUM(C25:D25) -> 109175 | F25: =(C25/E25) -> 0.975488894 | G25: 2240
B26: 2022 | C26: 111784 | D26: 4376 | E26: 116160 | F26: =(C26/E26) -> 0.9623278237 | G26: 2461
B27: Source: Stats SA, Marriages and divorces 2022, Statistical release P0307, 14 March 2024, Figure 1, p2; Figure 7, p11; Figure 11, p15
B28: a Refers to all marriages of citizens and permanent residents that are recorded in the civil registration systems of the Department of Home Affairs (DHA), including those solemnised outside South Africa and subsequently registered in the country.
B29: b Civil marriages are administered through the Marriages Act of 1961. They include marriages solemnised by licensed marriage officers and by religious figures such as priests. All civil marriages are automatically in community of property, unless the partners sign an ante-nuptial contract before the marriage. Note that marriages in community of property are not listed separately — it is however likely that the majority of civil marriages are in COP.
B30: c According to the Recognition of Customary Marriages Act of 1998, customary marriages are marriages that are negotiated, celebrated, or concluded according to any of the systems of indigenous African customary law which exist in South Africa. To be included in the data, customary marriages must have been registered at the DHA. The Act does not prohibit a man already in a customary marriage from entering into a civil marriage or another customary marriage. However, data is not collected on the marital status of men at the time they register new customary marriages, and so no official data on the number of polygamous marriages in South Africa currently exists.
B31: d Same sex marriages concluded in terms of the Civil Union Act of 2006.

Sheet Divorces.03-22
B2: Divorces, 2003-22
B4: Year | C4: Divorces | D4: Civil marriages | E4: Divorces as a proportion of civil marriages
B5: 2003 | C5: 31566 | D5: 178689 | E5: =(C5/D5) -> 0.1766532915
B6: 2004 | C6: 31768 | D6: 176521 | E6: =(C6/D6) -> 0.179967256
B7: 2005 | C7: 32484 | D7: 180657 | E7: =(C7/D7) -> 0.1798103589
B8: 2006 | C8: 31270 | D8: 184860 | E8: 0.1691550362
B9: 2007 | C9: 29639 | D9: 183030 | E9: 0.1619352019
B10: 2008 | C10: 28924 | D10: 186522 | E10: 0.1550701794
B11: 2009 | C11: 30763 | D11: 171989 | E11: 0.1788660903
B12: 2010 | C12: 22936 | D12: 170826 | E12: 0.1342652758
B13: 2011 | C13: 20980 | D13: 167264 | E13: 0.1254304572
B14: 2012 | C14: 21998 | D14: 161112 | E14: 0.136538557
B15: 2013 | C15: 23885 | D15: 158642 | E15: 0.1505591205
B16: 2014 | C16: 24689 | D16: 150852 | E16: =(C16/D16) -> 0.1636637234
B17: 2015 | C17: 25260 | D17: 138627 | E17: 0.1822155857
B18: 2016 | C18: 25326 | D18: 139512 | E18: =(C18/D18) -> 0.1815327714
B19: 2017 | C19: 25390 | D19: 135458 | E19: =(C19/D19) -> 0.1874381727
B20: 2018 | C20: 25284 | D20: 131240 | E20: =(C20/D20) -> 0.1926546785
B21: 2019 | C21: 23710 | D21: 129597 | E21: =(C21/D21) -> 0.1829517659
B22: 2020 | C22: 16097 | D22: 89338 | E22: =(C22/D22) -> 0.1801808861
B23: 2021 | C23: 18208 | D23: 106499 | E23: =(C23/D23) -> 0.1709687415
B24: 2022 | C24: 20196 | D24: 111784 | E24: =(C24/D24) -> 0.1806698633
B25: 2003-22 | C25: =(C24-C5)/C5 -> -0.360197681 | D25: =(D24-D5)/D5 -> -0.3744214809 | E25: —
B26: Source: Stats SA, Marriages and divorces 2022, Statistical release P0307, 14 March 2024, Figure 1, p2; Table 7, p19

Sheet HUMAN DEVELOPMENT INDEX

Sheet HDI selected countries1990-2022
B2: HUMAN DEVELOPMENT INDEX
B4: Human Development Indexa, selected countries, 1990-2022
B6: Country | C6: 1990 | D6: 2000 | E6: 2010 | F6: 2022 | G6: Change 1990-2022
B7: Australia | C7: 0.865 | D7: 0.896 | E7: 0.923 | F7: 0.946 | G7: =(F7-C7)/C7 -> 0.0936416185
B8: Botswana | C8: 0.586 | D8: 0.585 | E8: 0.66 | F8: 0.708 | G8: =(F8-C8)/C8 -> 0.2081911263
B9: Brazil | C9: 0.61 | D9: 0.679 | E9: 0.723 | F9: 0.76 | G9: 0.2459016393
B10: Chile | C10: 0.706 | D10: 0.763 | E10: 0.813 | F10: 0.86 | G10: 0.2181303116
B11: China | C11: 0.484 | D11: 0.584 | E11: 0.691 | F11: 0.788 | G11: 0.6280991736
B12: Denmark | C12: 0.834 | D12: 0.889 | E12: 0.913 | F12: 0.952 | G12: 0.1414868106
B13: Egypt | C13: 0.572 | D13: 0.633 | E13: 0.675 | F13: 0.728 | G13: 0.2727272727
B14: France | C14: 0.791 | D14: 0.844 | E14: 0.877 | F14: 0.91 | G14: 0.1504424779
B15: Germany | C15: 0.829 | D15: 0.889 | E15: 0.926 | F15: 0.95 | G15: 0.1459589867
B16: Ghana | C16: 0.46 | D16: 0.507 | E16: 0.574 | F16: 0.602 | G16: 0.3086956522
B17: Greece | C17: 0.759 | D17: 0.81 | E17: 0.869 | F17: 0.893 | G17: 0.1765480896
B18: Hong Kong | C18: 0.788 | D18: 0.851 | E18: 0.907 | F18: 0.956 | G18: 0.2131979695
B19: India | C19: 0.434 | D19: 0.491 | E19: 0.575 | F19: 0.644 | G19: 0.4838709677
B20: Indonesia | C20: 0.526 | D20: 0.595 | E20: 0.664 | F20: 0.713 | G20: 0.355513308
B21: Ireland | C21: 0.737 | D21: 0.847 | E21: 0.904 | F21: 0.95 | G21: 0.289009498
B22: Israel | C22: 0.787 | D22: 0.844 | E22: 0.894 | F22: 0.915 | G22: 0.1626429479
B23: Italy | C23: 0.778 | D23: 0.841 | E23: 0.882 | F23: 0.906 | G23: 0.1645244216
B24: Japan | C24: 0.845 | D24: 0.877 | E24: 0.898 | F24: 0.92 | G24: 0.08875739645
B25: Kazakhstan | C25: 0.673 | D25: 0.68 | E25: 0.767 | F25: 0.802 | G25: 0.191679049
B26: Lithuania | C26: 0.734 | D26: 0.766 | E26: 0.842 | F26: 0.879 | G26: 0.1975476839
B27: Mexico | C27: 0.662 | D27: 0.709 | E27: 0.746 | F27: 0.781 | G27: 0.1797583082
B28: Mozambique | C28: 0.238 | D28: 0.303 | E28: 0.402 | F28: 0.461 | G28: 0.9369747899
B29: Nigeria | C29: N/A | D29: N/A | E29: 0.482 | F29: 0.548 | G29: —
B30: Pakistan | C30: N/A | D30: N/A | E30: N/A | F30: 0.54 | G30: —
B31: Philippines | C31: 0.598 | D31: 0.633 | E31: 0.674 | F31: 0.71 | G31: =(F31-C31)/C31 -> 0.1872909699
B32: Poland | C32: 0.716 | D32: 0.793 | E32: 0.841 | F32: 0.881 | G32: =(F32-C32)/C32 -> 0.2304469274
B33: Russia | C33: 0.743 | D33: 0.732 | E33: 0.796 | F33: 0.821 | G33: 0.1049798116
B34: Saudi Arabia | C34: 0.678 | D34: 0.737 | E34: 0.816 | F34: 0.875 | G34: 0.290560472
B35: South Africa | C35: 0.632 | D35: 0.633 | E35: 0.675 | F35: 0.717 | G35: 0.1344936709
B36: Spain | C36: 0.757 | D36: 0.825 | E36: 0.868 | F36: 0.911 | G36: 0.2034346103
B37: Switzerland | C37: N/A | D37: N/A | E37: N/A | F37: 0.967 | G37: —
B38: Turkey | C38: 0.6 | D38: 0.67 | E38: 0.749 | F38: N/A | G38: —
B39: Uganda | C39: 0.329 | D39: 0.394 | E39: 0.502 | F39: 0.55 | G39: =(F39-C39)/C39 -> 0.6717325228
B40: United Kingdom | C40: 0.804 | D40: 0.862 | E40: 0.912 | F40: 0.94 | G40: =(F40-C40)/C40 -> 0.1691542289
B41: United States | C41: 0.872 | D41: 0.891 | E41: 0.911 | F41: 0.927 | G41: 0.0630733945
B42: Venezuela | C42: 0.659 | D42: 0.684 | E42: 0.755 | F42: 0.699 | G42: 0.06069802731
B43: Source: United Nations Development Programme (UNDP), Human Development Report 2021-22: The next frontier: Human Development and the Anthropocene: Human Development Index Trends 1990-2022 Excel sheet, Table 2
B44: a The Human Development Index (HDI) is a measure that determines whether a country is developed, developing or underdeveloped. It combines three basic dimensions of human development: access to education, the standard of living and life expectancy. The average value of these three dimensions is put on a scale of 0 to 1, where greater is better. For example, South Africa's human development (0.717) is lower than that of Spain (0.911). The three dimensions are:
B45: • Life expectancy at birth, as an index of population health and longevity.
B46: • Knowledge and education, as measured by the mean years of schooling for adults aged 25 and expected years of schooling for children of school-entering age. Expected years of schooling estimates are based on enrolment by age at all levels of education and the population of official school age for each level of education. Expected years of schooling are capped at 18 years.
B47: • The standard of living, as measured by Gross National Income (GNI) per capita (PPP) in US Dollars, using the logarithm of income.
B48: N/A — Not available.

Sheet HDI rankings SC.00+22
B2: Human Development Index rankings, selected countries, 2000 and 2022
C4: Country | D4: 2000 (Out of 174) | E4: 2022 (Out of 193)
C5: Australia | D5: 3 | E5: 10
C6: Botswana | D6: 93 | E6: 114
C7: Brazil | D7: 63 | E7: 89
C8: Chile | D8: 36 | E8: 44
C9: China | D9: 94 | E9: 75
C10: Denmark | D10: 7 | E10: 5
C11: Egypt | D11: 80 | E11: 105
C12: France | D12: 17 | E12: 28
C13: Germany | D13: 7 | E13: 7
C14: Ghana | D14: 106 | E14: 145
C15: Greece | D15: 23 | E15: 33
C16: Hong Kong | D16: 15 | E16: 4
C17: India | D17: 108 | E17: 134
C18: Indonesia | D18: 89 | E18: 112
C19: Ireland | D19: 16 | E19: 7
C20: Israel | D20: 17 | E20: 25
C21: Italy | D21: 18 | E21: 30
C22: Japan | D22: 10 | E22: 24
C23: Kazakhstan | D23: 62 | E23: 67
C24: Lithuania | D24: 35 | E24: 37
C25: Mexico | D25: 48 | E25: 77
C26: Mozambique | D26: 145 | E26: 183
C27: Nigeria | D27: N/A | E27: 161
C28: Pakistan | D28: 124 | E28: 164
C29: Philippines | D29: 80 | E29: 113
C30: Poland | D30: 30 | E30: 36
C31: Russia | D31: 43 | E31: 56
C32: Saudi Arabia | D32: 42 | E32: 40
C33: South Africa | D33: 80 | E33: 110
C34: Spain | D34: 20 | E34: N/A
C35: Switzerland | D35: 8 | E35: 1
C36: Turkey | D36: 68 | E36: 45
C37: Uganda | D37: 133 | E37: 159
C38: United Kingdom | D38: 14 | E38: 15
C39: United States | D39: 5 | E39: 20
C40: Venezuela | D40: 59 | E40: 119
B41: Source: UNDP, Human Development Reports: Documentation and downloads, accessed 11 November 2024
B42: N/A — Not available.

Sheet HDI rankings EM.00+22
C2: Human Development Index rankings, emerging markets, 2000 and 2022
C4: Country | D4: 2000 (Out of 174) | E4: 2022 (Out of 193)
C5: Brazil | D5: 63 | E5: 89
C6: Bulgaria | D6: 44 | E6: 70
C7: Chile | D7: 36 | E7: 44
C8: China | D8: 94 | E8: 75
C9: Colombia | D9: 70 | E9: 27
C10: Czech Republic | D10: N/A | E10: 32
C11: Egypt | D11: 80 | E11: 105
C12: Estonia | D12: 32 | E12: 31
C13: Greece | D13: 23 | E13: 33
C14: Hungary | D14: 34 | E14: 47
C15: India | D15: 108 | E15: 134
C16: Indonesia | D16: 89 | E16: 112
C17: Jordan | D17: 64 | E17: 99
C18: Kuwait | D18: 32 | E18: 49
C19: Latvia | D19: 38 | E19: 37
C20: Lithuania | D20: 35 | E20: 37
C21: Malaysia | D21: 45 | E21: 63
C22: Mauritius | D22: 61 | E22: 72
C23: Mexico | D23: 48 | E23: 77
C24: Morocco | D24: 104 | E24: 120
C25: Oman | D25: N/A | E25: 59
C26: Pakistan | D26: 124 | E26: 164
C27: Peru | D27: 66 | E27: 87
C28: Philippines | D28: 80 | E28: 113
C29: Poland | D29: 30 | E29: 36
C30: Qatar | D30: 25 | E30: 40
C31: Romania | D31: 46 | E31: 53
C32: Russia | D32: 43 | E32: 56
C33: Slovakia | D33: 36 | E33: 45
C34: South Africa | D34: 80 | E34: 110
C35: Sri Lanka | D35: 56 | E35: 78
C36: Thailand | D36: 74 | E36: 66
C37: Turkey | D37: 68 | E37: 45
C38: United Arab Emirates | D38: 29 | E38: 17
C39: Vietnam | D39: 91 | E39: 107
B40: Source: UNDP, Human Development Reports: Documentation and downloads, accessed 11 November 2024
B41: N/A — Not available.

Sheet HDI rankings Africa.00+22
C2: Human Development Index rankings, selected African countries, 2000 and 2022
C4: Country | D4: 2000 (Out of 174) | E4: 2022 (Out of 193)
C5: Algeria | D5: 75 | E5: 93
C6: Angola | D6: 136 | E6: 150
C7: Botswana | D7: 93 | E7: 114
C8: Burundi | D8: 146 | E8: 187
C9: Cameroon | D9: 123 | E9: 151
C10: Central African Republic | D10: 142 | E10: 191
C11: Congo (DRC) | D11: 135 | E11: 180
C12: Congo (Republic) | D12: 108 | E12: 149
C13: Egypt | D13: 80 | E13: 105
C14: Eritrea | D14: N/A | E14: 175
C15: Eswatini | D15: 112 | E15: 142
C16: Ethiopia | D16: 149 | E16: 176
C17: Ghana | D17: 106 | E17: 145
C18: Ivory Coast | D18: 117 | E18: 166
C19: Kenya | D19: 111 | E19: 146
C20: Lesotho | D20: 118 | E20: 168
C21: Liberia | D21: 125 | E21: 177
C22: Libya | D22: 46 | E22: 92
C23: Madagascar | D23: 122 | E23: 177
C24: Malawi | D24: 137 | E24: 172
C25: Mauritius | D25: 61 | E25: 72
C26: Morocco | D26: 104 | E26: 120
C27: Mozambique | D27: 145 | E27: 183
C28: Namibia | D28: 103 | E28: 142
C29: Nigeria | D29: N/A | E29: 161
C30: Rwanda | D30: 140 | E30: 161
C31: Senegal | D31: 134 | E31: 169
C32: Somalia | D32: N/A | E32: 193
C33: South Africa | D33: 80 | E33: 110
C34: Sudan | D34: 127 | E34: 170
C35: Tanzania | D35: 132 | E35: 167
C36: Tunisia | D36: 73 | E36: 101
C37: Uganda | D37: 133 | E37: 159
C38: Zambia | D38: 128 | E38: 153
C39: Zimbabwe | D39: 118 | E39: 159
B40: Source: UNDP, Human Development Reports: Documentation and downloads, accessed 11 November 2024
B41: N/A — Not available.

Sheet Macros
A3: A | B3: HEAD 1 | C3: HELVETICA NEUE 21pt
A5: B | B5: HEAD 2 | C5: Helvetica Neue 18pt
A7: C | B7: HEAD 3 | C7: Helvetica Neue 16pt
A9: D | B9: HEAD 4 | C9: Helvetica Neue 14pt
A11: E | B11: HEAD 5 | C11: Lucia 12pt
A13: F | B13: HEAD 6 | C13: Helvetica Neue 13pt
A15: G | B15: HEAD 7 | C15: Helvetica Neue 12pt
A17: H | B17: Source | C17: Helvetica Neue 11pt
A19: I | B19: Footnote | C19: Helvetica Neue 11pt
A21: J | B21: Text | C21: Helvetica Neue 11pt
